Workbook

Sheet Cover
A1: =RIGHT(CELL("filename", $A$1), LEN(CELL("filename", $A$1)) - SEARCH("]", CELL("filename", $A$1))) -> 
B3: Resilience Interconnectors
B5: Model code: | C5: PR24CA94
B6: Version number: | C6: 3
B7: File name: | C7: =MID(CELL("filename"), FIND("[", CELL("filename"), 1) + 1, FIND("]", CELL("filename"), 1) - FIND("[", CELL("filename"), 1) - 1) -> 
B8: Date: | C8: 20th February 2025
B10: For enquiries please contact: | C10: PR24@ofwat.gov.uk
B24: Contents:
B26: Tab name | C26: Description
B27: Cover | C27: Details of the file and the enhancement assessment approach.
B28: Flow chart | C28: Flow diagram of the high-level enhancement assessment process and data flow in model.
B29: Inputs >>
B30: F_Input BP | C30: Submitted company business plan data import from central database.
B31: Reallocations | C31: Input data - Reallocations to Resilience Interconnectors; water totex.
B32: F_input_Water_totex | C32: Input data - PR24 BP Net totex - Total inc. accelerated & transition costs. Water price control net totex data import from central database used for materiality assessment.
B33: Consolidated Input | C33: Consolidated source data from transitional cost and post-reallocation resilience interconnector costs.
B34: F_Input Override | C34: Overrides for Input data.
B35: Final Input | C35: Final data used for the enhancement assessment.
B36: WACC | C36: Weight Average Cost of Capital for all companies. Used for calculating time-incentive payments for Price Control Deliverables
B37: Analysis >>
B38: Final data format | C38: Company level summary of expenditure request as submitted and post-reallocation.
B39: Schemeve level assessment | C39: Summary of individual resilience interconnector schemes with scheme costs, data source and link to assessments in this model.
B40: Materiality and shallow dive | C40: Initial assessment of the materiality of requested expenditure to inform the decision on the overall approach and shallow dive assessment.
B41: Deep Dives >>
B42: Company acronym - Deep dive name | C42: Detailed assessment per company of the requested expenditure where costs are material and / or a modelled approach is not appropriate.
B43: Cost efficiency checks | C43: Check of efficiency of pipeline schemes applying costs, pipeline lengths and benefits to supply interconnector model
B44: Outputs >>
B45: Allowance | C45: Summary of our assessed allowances per company before other adjustments (eg frontier shift).
B46: Outputs to aggregator | C46: Summary of submitted and assessed costs profiled over the 2023-30 period (including transitional and accelerated process expenditure).
B47: F_Outputs | C47: Allowance data export to central database.
B48: Post Adj & FS Alowance | C48: Summary of post-adjusted allowances per company per enhancement line per year.
B49: PCD | C49: Price control deliverables (PCD) calculation for resilience interconnectors, including payment rates for non-delivery and time-incentive PCDs.
B51: Error log
B53: Company | C53: Description of change to be made | D53: Sheet(s) in current model
B54: WSH | C54: A -£0.013m difference in the given allowance due to the bespoke adjustment, which should be £10.524m instead of £10.537m in the model. This will have a non-material impact (<0.05%) on PCD payment rate | D54: WSH
B55: SWB | C55: Changed the km deliverable value for the PCD after response to OFW-FD-SBB-005 and a follow up meeting | D55: PCD, cell Y19
B56: SVE | C56: Changed the totex (PCD) values for UME01_08: Hallgates to Elms Farm and UME01_12: Oldbury to Meriden to include transitional expenditure in response to an error identified in query OFW-SVE-014 | D56: PCD, cell AG17:AG18
B57: SVE | C57: Changed totext value for two shemes to check it reconciles, in response to an error identified in OFW-SVE-014 | D57: Scheme level assessment, D14:D15, D19, E13
B58: SEW | C58: Company identified a typo in a query response in cell Y59. Changed 0.005km to 0.05km. Cells AH59, AJ59 and AK59 are linked to the payment rates and have been recalculated and the values put into the PCD model. | D58: PCD, cell Y39

Sheet Flow chart
A1: =RIGHT(CELL("filename", A1), LEN(CELL("filename", A1)) - SEARCH("]", CELL("filename", A1))) -> 
A3: Conceptual model
A49: End of sheet

Sheet Inputs >>

Sheet F_Inputs BP
A1: =RIGHT(CELL("filename", $A$1), LEN(CELL("filename", $A$1)) - SEARCH("]", CELL("filename", $A$1))) -> 
C2: Resilience Interconnector_Oct2024 | E2: Run on 16 Oct 2024 15:35
A3: Acronym | B3: Reference | C3: Item description | D3: Unit | E3: Model | F3: 2023-24 | G3: 2024-25 | H3: 2025-26 | I3: 2026-27 | J3: 2027-28 | K3: 2028-29 | L3: 2029-30
F5: Price Review 2024 | G5: Price Review 2024 | H5: Price Review 2024 | I5: Price Review 2024 | J5: Price Review 2024 | K5: Price Review 2024 | L5: Price Review 2024
F6: Run 11 - PR24 FD Data | G6: Run 11 - PR24 FD Data | H6: Run 11 - PR24 FD Data | I6: Run 11 - PR24 FD Data | J6: Run 11 - PR24 FD Data | K6: Run 11 - PR24 FD Data | L6: Run 11 - PR24 FD Data
F7: Latest | G7: Latest | H7: Latest | I7: Latest | J7: Latest | K7: Latest | L7: Latest
A8: ANH | B8: CW12_117TOT_PR24 | C8: Water resilience and security - Resilience; enhancement water totex - Total | D8: £m | E8: Price Review 2024 | F8: 0 | G8: 0
A9: ANH | B9: CW17_117TOT_PR24 | C9: Water resilience and security - Resilience; enhancement water totex - Total | D9: £m | E9: Price Review 2024 | F9: 0 | G9: 0 | H9: 0 | I9: 0 | J9: 0 | K9: 0 | L9: 0
A10: ANH | B10: CW3_120TOT_PR24 | C10: Water resilience and security - Resilience; enhancement water totex - Total | D10: £m | E10: Price Review 2024 | F10: 0.9588940334 | G10: 1.549 | H10: 0.008 | I10: 5.11 | J10: 4.085 | K10: 2.968 | L10: 0.33
A11: ANH | B11: POSTREALL_CW3_120TOT_PR24 | C11: Water resilience and security - Resilience; enhancement water totex - Total - Post reallocation | D11: £m | E11: Price Review 2024 | H11: 0.008 | I11: 5.11 | J11: 4.085 | K11: 2.968 | L11: 0.33
A12: ANH | B12: CW3_149TOT_PR24 | C12: Resilience interconnectors; enhancement water totex - Total | D12: £m | E12: Price Review 2024 | F12: 0 | G12: 0 | H12: 0 | I12: 0 | J12: 0 | K12: 0 | L12: 0
A13: ANH | B13: POSTREALL_CW3_149TOT_PR24 | C13: Resilience interconnectors; enhancement water totex - Total - Post reallocation | D13: £m | E13: Price Review 2024 | F13: 0 | G13: 0 | H13: 0.778 | I13: 2.101 | J13: 3.125 | K13: 1.552 | L13: 0.001
A14: WSH | B14: CW12_117TOT_PR24 | C14: Water resilience and security - Resilience; enhancement water totex - Total | D14: £m | E14: Price Review 2024 | F14: 0 | G14: 0
A15: WSH | B15: CW17_117TOT_PR24 | C15: Water resilience and security - Resilience; enhancement water totex - Total | D15: £m | E15: Price Review 2024 | F15: 0 | G15: 0 | H15: 0 | I15: 0 | J15: 0 | K15: 0 | L15: 0
A16: WSH | B16: CW3_120TOT_PR24 | C16: Water resilience and security - Resilience; enhancement water totex - Total | D16: £m | E16: Price Review 2024 | F16: 2.459547417 | G16: 0.688 | H16: 25.938 | I16: 31.232 | J16: 38.207 | K16: 38.129 | L16: 29.675
A17: WSH | B17: POSTREALL_CW3_120TOT_PR24 | C17: Water resilience and security - Resilience; enhancement water totex - Total - Post reallocation | D17: £m | E17: Price Review 2024 | H17: 15.0422 | I17: 20.3362 | J17: 27.3112 | K17: 27.2332 | L17: 18.7792
A18: WSH | B18: CW3_149TOT_PR24 | C18: Resilience interconnectors; enhancement water totex - Total | D18: £m | E18: Price Review 2024
A19: WSH | B19: POSTREALL_CW3_149TOT_PR24 | C19: Resilience interconnectors; enhancement water totex - Total - Post reallocation | D19: £m | E19: Price Review 2024 | H19: 10.8958 | I19: 10.8958 | J19: 10.8958 | K19: 10.8958 | L19: 10.8958
A20: HDD | B20: CW12_117TOT_PR24 | C20: Water resilience and security - Resilience; enhancement water totex - Total | D20: £m | E20: Price Review 2024 | F20: 0 | G20: 0
A21: HDD | B21: CW17_117TOT_PR24 | C21: Water resilience and security - Resilience; enhancement water totex - Total | D21: £m | E21: Price Review 2024 | F21: 0 | G21: 0 | H21: 0 | I21: 0 | J21: 0 | K21: 0 | L21: 0
A22: HDD | B22: CW3_120TOT_PR24 | C22: Water resilience and security - Resilience; enhancement water totex - Total | D22: £m | E22: Price Review 2024 | F22: 2.459570072 | G22: 0 | H22: 0.18 | I22: 0.18 | J22: 0.18 | K22: 0.18 | L22: 0.18
A23: HDD | B23: POSTREALL_CW3_120TOT_PR24 | C23: Water resilience and security - Resilience; enhancement water totex - Total - Post reallocation | D23: £m | E23: Price Review 2024 | H23: 0.18 | I23: 0.18 | J23: 0.18 | K23: 0.18 | L23: 0.18
A24: HDD | B24: CW3_149TOT_PR24 | C24: Resilience interconnectors; enhancement water totex - Total | D24: £m | E24: Price Review 2024
A25: HDD | B25: POSTREALL_CW3_149TOT_PR24 | C25: Resilience interconnectors; enhancement water totex - Total - Post reallocation | D25: £m | E25: Price Review 2024 | H25: 0 | I25: 0 | J25: 0 | K25: 0 | L25: 0
A26: NES | B26: CW12_117TOT_PR24 | C26: Water resilience and security - Resilience; enhancement water totex - Total | D26: £m | E26: Price Review 2024 | F26: 1 | G26: 7
A27: NES | B27: CW17_117TOT_PR24 | C27: Water resilience and security - Resilience; enhancement water totex - Total | D27: £m | E27: Price Review 2024 | F27: 0 | G27: 0 | H27: 0 | I27: 0 | J27: 0 | K27: 0 | L27: 0
A28: NES | B28: CW3_120TOT_PR24 | C28: Water resilience and security - Resilience; enhancement water totex - Total | D28: £m | E28: Price Review 2024 | F28: 47.616 | G28: 69.28 | H28: 17.338 | I28: 14.872 | J28: 22.249 | K28: 19.729 | L28: 10.73
A29: NES | B29: POSTREALL_CW3_120TOT_PR24 | C29: Water resilience and security - Resilience; enhancement water totex - Total - Post reallocation | D29: £m | E29: Price Review 2024 | H29: 14.772 | I29: 12.306 | J29: 19.683 | K29: 17.163 | L29: 8.164
A30: NES | B30: CW3_149TOT_PR24 | C30: Resilience interconnectors; enhancement water totex - Total | D30: £m | E30: Price Review 2024
A31: NES | B31: POSTREALL_CW3_149TOT_PR24 | C31: Resilience interconnectors; enhancement water totex - Total - Post reallocation | D31: £m | E31: Price Review 2024 | H31: 0 | I31: 0 | J31: 0 | K31: 0 | L31: 0
A32: SVE | B32: CW12_117TOT_PR24 | C32: Water resilience and security - Resilience; enhancement water totex - Total | D32: £m | E32: Price Review 2024 | F32: 0.75 | G32: 4.19472373
A33: SVE | B33: CW17_117TOT_PR24 | C33: Water resilience and security - Resilience; enhancement water totex - Total | D33: £m | E33: Price Review 2024 | F33: 0 | G33: 0 | H33: 0 | I33: 0 | J33: 0 | K33: 0 | L33: 0
A34: SVE | B34: CW3_120TOT_PR24 | C34: Water resilience and security - Resilience; enhancement water totex - Total | D34: £m | E34: Price Review 2024 | F34: 36.769 | G34: 54.5212177 | H34: 39.22310771 | I34: 46.58306981 | J34: 50.08517786 | K34: 6.463988561 | L34: 12.30840946
A35: SVE | B35: POSTREALL_CW3_120TOT_PR24 | C35: Water resilience and security - Resilience; enhancement water totex - Total - Post reallocation | D35: £m | E35: Price Review 2024 | H35: 6.591107711 | I35: 7.155069813 | J35: 7.507177861 | K35: 3.210988561 | L35: 3.794409465
A36: SVE | B36: CW3_149TOT_PR24 | C36: Resilience interconnectors; enhancement water totex - Total | D36: £m | E36: Price Review 2024
A37: SVE | B37: POSTREALL_CW3_149TOT_PR24 | C37: Resilience interconnectors; enhancement water totex - Total - Post reallocation | D37: £m | E37: Price Review 2024 | H37: 32.632 | I37: 39.428 | J37: 42.578 | K37: 3.253 | L37: 8.514
A38: SWB | B38: CW12_117TOT_PR24 | C38: Water resilience and security - Resilience; enhancement water totex - Total | D38: £m | E38: Price Review 2024 | F38: 0 | G38: 0
A39: SWB | B39: CW17_117TOT_PR24 | C39: Water resilience and security - Resilience; enhancement water totex - Total | D39: £m | E39: Price Review 2024 | F39: 0 | G39: 0 | H39: 0 | I39: 0 | J39: 0 | K39: 0 | L39: 0
A40: SWB | B40: CW3_120TOT_PR24 | C40: Water resilience and security - Resilience; enhancement water totex - Total | D40: £m | E40: Price Review 2024 | F40: 70.752 | G40: 29.168 | H40: 9.932151 | I40: 7.573608 | J40: 17.147513 | K40: 21.101945 | L40: 20.506814
A41: SWB | B41: POSTREALL_CW3_120TOT_PR24 | C41: Water resilience and security - Resilience; enhancement water totex - Total - Post reallocation | D41: £m | E41: Price Review 2024 | H41: 0.6886981857 | I41: 0.5251561408 | J41: 1.189013447 | K41: 1.46321489 | L41: 1.421948337
A42: SWB | B42: CW3_149TOT_PR24 | C42: Resilience interconnectors; enhancement water totex - Total | D42: £m | E42: Price Review 2024
A43: SWB | B43: POSTREALL_CW3_149TOT_PR24 | C43: Resilience interconnectors; enhancement water totex - Total - Post reallocation | D43: £m | E43: Price Review 2024 | H43: 9.243452814 | I43: 7.048451859 | J43: 15.95849955 | K43: 19.63873011 | L43: 19.08486566
A44: SRN | B44: CW12_117TOT_PR24 | C44: Water resilience and security - Resilience; enhancement water totex - Total | D44: £m | E44: Price Review 2024 | F44: 2.831 | G44: 86.911
A45: SRN | B45: CW17_117TOT_PR24 | C45: Water resilience and security - Resilience; enhancement water totex - Total | D45: £m | E45: Price Review 2024 | F45: 0 | G45: 0 | H45: 0 | I45: 0 | J45: 0 | K45: 0 | L45: 0
A46: SRN | B46: CW3_120TOT_PR24 | C46: Water resilience and security - Resilience; enhancement water totex - Total | D46: £m | E46: Price Review 2024 | F46: 2.831 | G46: 86.911 | H46: 48.58778583 | I46: 79.09189694 | J46: 74.00946711 | K46: 75.06950358 | L46: 32.57279216
A47: SRN | B47: POSTREALL_CW3_120TOT_PR24 | C47: Water resilience and security - Resilience; enhancement water totex - Total - Post reallocation | D47: £m | E47: Price Review 2024 | H47: 48.58778583 | I47: 79.09189694 | J47: 74.00946711 | K47: 75.06950358 | L47: 32.57279216
A48: SRN | B48: CW3_149TOT_PR24 | C48: Resilience interconnectors; enhancement water totex - Total | D48: £m | E48: Price Review 2024
A49: SRN | B49: POSTREALL_CW3_149TOT_PR24 | C49: Resilience interconnectors; enhancement water totex - Total - Post reallocation | D49: £m | E49: Price Review 2024 | H49: 0 | I49: 0 | J49: 0 | K49: 0 | L49: 0
A50: TMS | B50: CW12_117TOT_PR24 | C50: Water resilience and security - Resilience; enhancement water totex - Total | D50: £m | E50: Price Review 2024 | F50: 0 | G50: 0
A51: TMS | B51: CW17_117TOT_PR24 | C51: Water resilience and security - Resilience; enhancement water totex - Total | D51: £m | E51: Price Review 2024 | F51: 0 | G51: 0 | H51: 0 | I51: 0 | J51: 0 | K51: 0 | L51: 0
A52: TMS | B52: CW3_120TOT_PR24 | C52: Water resilience and security - Resilience; enhancement water totex - Total | D52: £m | E52: Price Review 2024 | F52: 8.577 | G52: 23.38 | H52: 58.455 | I52: 107.338 | J52: 105.968 | K52: 110.421 | L52: 102.01
A53: TMS | B53: POSTREALL_CW3_120TOT_PR24 | C53: Water resilience and security - Resilience; enhancement water totex - Total - Post reallocation | D53: £m | E53: Price Review 2024 | H53: 58.455 | I53: 107.338 | J53: 105.968 | K53: 110.421 | L53: 102.01
A54: TMS | B54: CW3_149TOT_PR24 | C54: Resilience interconnectors; enhancement water totex - Total | D54: £m | E54: Price Review 2024
A55: TMS | B55: POSTREALL_CW3_149TOT_PR24 | C55: Resilience interconnectors; enhancement water totex - Total - Post reallocation | D55: £m | E55: Price Review 2024 | H55: 0 | I55: 0 | J55: 0 | K55: 0 | L55: 0
A56: WSX | B56: CW12_117TOT_PR24 | C56: Water resilience and security - Resilience; enhancement water totex - Total | D56: £m | E56: Price Review 2024 | F56: 0 | G56: 0.163983
A57: WSX | B57: CW17_117TOT_PR24 | C57: Water resilience and security - Resilience; enhancement water totex - Total | D57: £m | E57: Price Review 2024 | F57: 0 | G57: 0 | H57: 0 | I57: 0 | J57: 0 | K57: 0 | L57: 0
A58: WSX | B58: CW3_120TOT_PR24 | C58: Water resilience and security - Resilience; enhancement water totex - Total | D58: £m | E58: Price Review 2024 | F58: 0 | G58: 0.163983 | H58: 0.637745 | I58: 0.640934 | J58: 0.02656 | K58: 0.026692 | L58: 0.160952
A59: WSX | B59: POSTREALL_CW3_120TOT_PR24 | C59: Water resilience and security - Resilience; enhancement water totex - Total - Post reallocation | D59: £m | E59: Price Review 2024 | H59: 0.637745 | I59: 0.640934 | J59: 0.02656 | K59: 0.026692 | L59: 0.160952
A60: WSX | B60: CW3_149TOT_PR24 | C60: Resilience interconnectors; enhancement water totex - Total | D60: £m | E60: Price Review 2024
A61: WSX | B61: POSTREALL_CW3_149TOT_PR24 | C61: Resilience interconnectors; enhancement water totex - Total - Post reallocation | D61: £m | E61: Price Review 2024 | H61: 0 | I61: 0 | J61: 0 | K61: 0 | L61: 0
A62: YKY | B62: CW12_117TOT_PR24 | C62: Water resilience and security - Resilience; enhancement water totex - Total | D62: £m | E62: Price Review 2024 | F62: 0 | G62: 0
A63: YKY | B63: CW17_117TOT_PR24 | C63: Water resilience and security - Resilience; enhancement water totex - Total | D63: £m | E63: Price Review 2024 | F63: 0 | G63: 0 | H63: 0 | I63: 0 | J63: 0 | K63: 0 | L63: 0
A64: YKY | B64: CW3_120TOT_PR24 | C64: Water resilience and security - Resilience; enhancement water totex - Total | D64: £m | E64: Price Review 2024 | F64: 0 | G64: 0 | H64: 3.7903936 | I64: 5.3613568 | J64: 12.406272 | K64: 7.0942464 | L64: 7.4122752
A65: YKY | B65: POSTREALL_CW3_120TOT_PR24 | C65: Water resilience and security - Resilience; enhancement water totex - Total - Post reallocation | D65: £m | E65: Price Review 2024 | H65: 3.7903936 | I65: 5.3613568 | J65: 12.406272 | K65: 7.0942464 | L65: 7.4122752
A66: YKY | B66: CW3_149TOT_PR24 | C66: Resilience interconnectors; enhancement water totex - Total | D66: £m | E66: Price Review 2024
A67: YKY | B67: POSTREALL_CW3_149TOT_PR24 | C67: Resilience interconnectors; enhancement water totex - Total - Post reallocation | D67: £m | E67: Price Review 2024 | H67: 0 | I67: 0 | J67: 0 | K67: 0 | L67: 0
A68: AFW | B68: CW12_117TOT_PR24 | C68: Water resilience and security - Resilience; enhancement water totex - Total | D68: £m | E68: Price Review 2024 | F68: 0.066 | G68: 0.245
A69: AFW | B69: CW17_117TOT_PR24 | C69: Water resilience and security - Resilience; enhancement water totex - Total | D69: £m | E69: Price Review 2024 | F69: 0 | G69: 0 | H69: 0 | I69: 0 | J69: 0 | K69: 0 | L69: 0
A70: AFW | B70: CW3_120TOT_PR24 | C70: Water resilience and security - Resilience; enhancement water totex - Total | D70: £m | E70: Price Review 2024 | F70: 7.651 | G70: 11.466 | H70: 2.732 | I70: 3.723 | J70: 5.086 | K70: 5.763 | L70: 4.4
A71: AFW | B71: POSTREALL_CW3_120TOT_PR24 | C71: Water resilience and security - Resilience; enhancement water totex - Total - Post reallocation | D71: £m | E71: Price Review 2024 | H71: 0.5820687259 | I71: 1.473134363 | J71: 2.012452691 | K71: 2.280331274 | L71: 1.741012946
A72: AFW | B72: CW3_149TOT_PR24 | C72: Resilience interconnectors; enhancement water totex - Total | D72: £m | E72: Price Review 2024
A73: AFW | B73: POSTREALL_CW3_149TOT_PR24 | C73: Resilience interconnectors; enhancement water totex - Total - Post reallocation | D73: £m | E73: Price Review 2024 | H73: 2.149931274 | I73: 2.249865637 | J73: 3.073547309 | K73: 3.482668726 | L73: 2.658987054
A74: BRL | B74: CW12_117TOT_PR24 | C74: Water resilience and security - Resilience; enhancement water totex - Total | D74: £m | E74: Price Review 2024 | F74: 0 | G74: 0
A75: BRL | B75: CW17_117TOT_PR24 | C75: Water resilience and security - Resilience; enhancement water totex - Total | D75: £m | E75: Price Review 2024 | F75: 0 | G75: 0 | H75: 0 | I75: 0 | J75: 0 | K75: 0 | L75: 0
A76: BRL | B76: CW3_120TOT_PR24 | C76: Water resilience and security - Resilience; enhancement water totex - Total | D76: £m | E76: Price Review 2024 | F76: 0.125 | G76: 0.06610047272 | H76: 0 | I76: 0 | J76: 0 | K76: 0 | L76: 0
A77: BRL | B77: POSTREALL_CW3_120TOT_PR24 | C77: Water resilience and security - Resilience; enhancement water totex - Total - Post reallocation | D77: £m | E77: Price Review 2024 | H77: 0 | I77: 0 | J77: 0 | K77: 0 | L77: 0
A78: BRL | B78: CW3_149TOT_PR24 | C78: Resilience interconnectors; enhancement water totex - Total | D78: £m | E78: Price Review 2024
A79: BRL | B79: POSTREALL_CW3_149TOT_PR24 | C79: Resilience interconnectors; enhancement water totex - Total - Post reallocation | D79: £m | E79: Price Review 2024 | H79: 0 | I79: 0 | J79: 0 | K79: 0 | L79: 0
A80: PRT | B80: CW12_117TOT_PR24 | C80: Water resilience and security - Resilience; enhancement water totex - Total | D80: £m | E80: Price Review 2024 | F80: 0 | G80: 0
A81: PRT | B81: CW17_117TOT_PR24 | C81: Water resilience and security - Resilience; enhancement water totex - Total | D81: £m | E81: Price Review 2024 | F81: 0 | G81: 0 | H81: 0 | I81: 0 | J81: 0 | K81: 0 | L81: 0
A82: PRT | B82: CW3_120TOT_PR24 | C82: Water resilience and security - Resilience; enhancement water totex - Total | D82: £m | E82: Price Review 2024 | F82: 0.001894892197 | G82: 0 | H82: 0.977 | I82: 0.977 | J82: 0.977 | K82: 0.977 | L82: 0.977
A83: PRT | B83: POSTREALL_CW3_120TOT_PR24 | C83: Water resilience and security - Resilience; enhancement water totex - Total - Post reallocation | D83: £m | E83: Price Review 2024 | H83: 0.977 | I83: 0.977 | J83: 0.977 | K83: 0.977 | L83: 0.977
A84: PRT | B84: CW3_149TOT_PR24 | C84: Resilience interconnectors; enhancement water totex - Total | D84: £m | E84: Price Review 2024
A85: PRT | B85: POSTREALL_CW3_149TOT_PR24 | C85: Resilience interconnectors; enhancement water totex - Total - Post reallocation | D85: £m | E85: Price Review 2024 | H85: 0 | I85: 0 | J85: 0 | K85: 0 | L85: 0
A86: SEW | B86: CW12_117TOT_PR24 | C86: Water resilience and security - Resilience; enhancement water totex - Total | D86: £m | E86: Price Review 2024 | F86: 0.014926 | G86: 0
A87: SEW | B87: CW17_117TOT_PR24 | C87: Water resilience and security - Resilience; enhancement water totex - Total | D87: £m | E87: Price Review 2024 | F87: 0 | G87: 0 | H87: 0 | I87: 0 | J87: 0 | K87: 0 | L87: 0
A88: SEW | B88: CW3_120TOT_PR24 | C88: Water resilience and security - Resilience; enhancement water totex - Total | D88: £m | E88: Price Review 2024 | F88: 8.291949046 | G88: 1.225413092 | H88: 16.25171072 | I88: 38.17596345 | J88: 46.52084265 | K88: 61.61853722 | L88: 57.51865902
A89: SEW | B89: POSTREALL_CW3_120TOT_PR24 | C89: Water resilience and security - Resilience; enhancement water totex - Total - Post reallocation | D89: £m | E89: Price Review 2024 | H89: 10.56980937 | I89: 28.57234344 | J89: 35.41338621 | K89: 48.2062662 | L89: 44.85390785
A90: SEW | B90: CW3_149TOT_PR24 | C90: Resilience interconnectors; enhancement water totex - Total | D90: £m | E90: Price Review 2024
A91: SEW | B91: POSTREALL_CW3_149TOT_PR24 | C91: Resilience interconnectors; enhancement water totex - Total - Post reallocation | D91: £m | E91: Price Review 2024 | H91: 9.022901353 | I91: 20.93262001 | J91: 27.45545644 | K91: 39.63527102 | L91: 31.73075117
A92: SSC | B92: CW12_117TOT_PR24 | C92: Water resilience and security - Resilience; enhancement water totex - Total | D92: £m | E92: Price Review 2024 | F92: 0 | G92: 0
A93: SSC | B93: CW17_117TOT_PR24 | C93: Water resilience and security - Resilience; enhancement water totex - Total | D93: £m | E93: Price Review 2024 | F93: 0 | G93: 0 | H93: 0 | I93: 0 | J93: 0 | K93: 0 | L93: 0
A94: SSC | B94: CW3_120TOT_PR24 | C94: Water resilience and security - Resilience; enhancement water totex - Total | D94: £m | E94: Price Review 2024 | F94: 0.68 | G94: 0 | H94: 2.06821335 | I94: 2.878261422 | J94: 4.531646636 | K94: 4.262726591 | L94: 1.382249998
A95: SSC | B95: POSTREALL_CW3_120TOT_PR24 | C95: Water resilience and security - Resilience; enhancement water totex - Total - Post reallocation | D95: £m | E95: Price Review 2024 | H95: 1.60021335 | I95: 1.844261422 | J95: 2.496646636 | K95: 1.691726591 | L95: 0.312249998
A96: SSC | B96: CW3_149TOT_PR24 | C96: Resilience interconnectors; enhancement water totex - Total | D96: £m | E96: Price Review 2024
A97: SSC | B97: POSTREALL_CW3_149TOT_PR24 | C97: Resilience interconnectors; enhancement water totex - Total - Post reallocation | D97: £m | E97: Price Review 2024 | H97: 0.468 | I97: 1.034 | J97: 2.035 | K97: 2.571 | L97: 1.07
A98: SST | B98: CW12_117TOT_PR24 | C98: Water resilience and security - Resilience; enhancement water totex - Total | D98: £m | E98: Price Review 2024
A99: SST | B99: CW17_117TOT_PR24 | C99: Water resilience and security - Resilience; enhancement water totex - Total | D99: £m | E99: Price Review 2024
A100: SES | B100: CW12_117TOT_PR24 | C100: Water resilience and security - Resilience; enhancement water totex - Total | D100: £m | E100: Price Review 2024 | F100: 0 | G100: 0
A101: SES | B101: CW17_117TOT_PR24 | C101: Water resilience and security - Resilience; enhancement water totex - Total | D101: £m | E101: Price Review 2024 | F101: 0 | G101: 0 | H101: 0 | I101: 0 | J101: 0 | K101: 0 | L101: 0
A102: SES | B102: CW3_120TOT_PR24 | C102: Water resilience and security - Resilience; enhancement water totex - Total | D102: £m | E102: Price Review 2024 | F102: 0 | G102: 0 | H102: 0.447 | I102: 0.4323 | J102: 0.6888 | K102: 1.389 | L102: 1.4004
A103: SES | B103: POSTREALL_CW3_120TOT_PR24 | C103: Water resilience and security - Resilience; enhancement water totex - Total - Post reallocation | D103: £m | E103: Price Review 2024 | H103: 0.372 | I103: 0.3073 | J103: 0.5538 | K103: 1.289 | L103: 1.3254
A104: SES | B104: CW3_149TOT_PR24 | C104: Resilience interconnectors; enhancement water totex - Total | D104: £m | E104: Price Review 2024
A105: SES | B105: POSTREALL_CW3_149TOT_PR24 | C105: Resilience interconnectors; enhancement water totex - Total - Post reallocation | D105: £m | E105: Price Review 2024 | H105: 0.075 | I105: 0.125 | J105: 0.135 | K105: 0.1 | L105: 0.075

Sheet Reallocations
A1: =RIGHT(CELL("filename", $A$1), LEN(CELL("filename", $A$1)) - SEARCH("]", CELL("filename", $A$1))) -> 
A3: Company | B3: Cost category | C3: BON code | D3: 2025 | E3: 2026 | F3: 2027 | G3: 2028 | H3: 2029 | I3: TOTAL | K3: Reallocated to | L3: BON CODE | M3: 2025 | N3: 2026 | O3: 2027 | P3: 2028 | Q3: 2029 | R3: TOTAL
A4: SEW | B4: Water resilience and security - Resilience; enhancement water totex - Total | C4: SEWCW3_120TOT_PR24 | D4: 16.25171072 | E4: 38.17596345 | F4: 46.52084265 | G4: 61.61853722 | H4: 57.51865902 | I4: =SUM(D4:H4) -> 220.0857131 | K4: Resilience interconnectors; enhancement water totex - Total | L4: SEWCW3_149TOT_PR24 | M4: 5.534 | N4: 7.905 | O4: 10.396 | P4: 11.58 | Q4: 5.761 | R4: =SUM(M4:Q4) -> 41.176
A5: SES | B5: Water resilience and security - Resilience; enhancement water totex - Total | C5: SESCW3_120TOT_PR24 | D5: 0.447 | E5: 0.4323 | F5: 0.6888 | G5: 1.389 | H5: 1.4004 | I5: =SUM(D5:H5) -> 4.3575 | K5: Resilience interconnectors; enhancement water totex - Total | L5: SESCW3_149TOT_PR24 | M5: 0.075 | N5: 0.0125 | O5: 0.135 | P5: 0.1 | Q5: 0.075 | R5: =SUM(M5:Q5) -> 0.3975
A6: SSC | B6: Water resilience and security - Resilience; enhancement water totex - Total | C6: SSCCW3_120TOT_PR24 | D6: 2.06821335 | E6: 2.878261422 | F6: 4.531646636 | G6: 4.262726591 | H6: 1.382249998 | I6: 15.123098 | K6: Resilience interconnectors; enhancement water totex - Total | L6: SSCCW3_149TOT_PR24 | M6: 0.468 | N6: 1.034 | O6: 2.035 | P6: 2.571 | Q6: 1.07 | R6: 7.178
A7: SWB | B7: Water resilience and security - Resilience; enhancement water totex - Total | C7: SWBCW3_120TOT_PR24 | D7: 9.932151 | E7: 7.573608 | F7: 17.147513 | G7: 21.101945 | H7: 20.506814 | I7: 76.262031 | K7: Resilience interconnectors; enhancement water totex - Total | L7: SWBCW3_149TOT_PR24 | M7: 4.645 | N7: 7.573 | O7: 17.147 | P7: 21.102 | Q7: 20.507 | R7: 70.974
A8: ANH | B8: Supply-demand balance - Interconnectors delivering benefits in 2025-2030; SDB totex - Total | C8: ANHCW3_052TOT_PR24 | D8: 27.874 | E8: 61.43 | F8: 104.867 | G8: 155.59 | H8: 275.519 | I8: 625.28 | K8: Resilience interconnectors; enhancement water totex - Total | L8: ANHCW3_149TOT_PR24 | M8: 0.778 | N8: 2.101 | O8: 3.125 | P8: 1.552 | Q8: 0.001 | R8: 7.557
A9: SEW | B9: Supply-demand balance - Interconnectors delivering benefits in 2025-2030; SDB totex - Total | C9: SEWCW3_052TOT_PR24 | D9: 4.754 | E9: 11.613 | F9: 16.35 | G9: 21.708 | H9: 10.881 | I9: 65.306 | K9: Resilience interconnectors; enhancement water totex - Total | L9: SEWCW3_149TOT_PR24 | M9: 4.754 | N9: 11.613 | O9: 16.35 | P9: 21.708 | Q9: 10.881 | R9: 65.306
A10: SEW | B10: Supply-demand balance - Supply demand balance improvements delivering benefits starting from 2031; SDB totex - Total | C10: SEWCW3_055TOT_PR24 | D10: 1.581871256 | E10: 2.711105838 | F10: 2.993414572 | G10: 7.806497499 | H10: 13.70135094 | I10: 28.79424011 | K10: Resilience interconnectors; enhancement water totex - Total | L10: SEWCW3_149TOT_PR24 | M10: 0.847 | N10: 1.976 | O10: 2.258 | P10: 6.775 | Q10: 10.445 | R10: 22.301
A11: WSH | B11: Water resilience and security - Resilience; enhancement water totex - Total | C11: WSHCW3_120TOT_PR24 | D11: 25.938 | E11: 31.232 | F11: 38.207 | G11: 38.129 | H11: 29.675 | I11: 163.181 | K11: Resilience interconnectors; enhancement water totex - Total | L11: WSHCW3_149TOT_PR24 | M11: 10.8958 | N11: 10.8958 | O11: 10.8958 | P11: 10.8958 | Q11: 10.8958 | R11: 54.479
A12: SVE | B12: Water resilience and security - Resilience; enhancement water totex - Total | C12: SVECW3_120TOT_PR24 | D12: 44.27310771 | E12: 46.58306981 | F12: 50.08517786 | G12: 6.463988561 | H12: 12.30840946 | I12: 159.7137534 | K12: Resilience interconnectors; enhancement water totex - Total | L12: SVECW3_149TOT_PR24 | M12: 37.682 | N12: 39.428 | O12: 42.578 | P12: 3.253 | Q12: 8.514 | R12: 131.455
A13: AFW | B13: Water resilience and security - Resilience; enhancement water totex - Total | C13: AFWCW3_120TOT_PR24 | D13: 3.043 | E13: 3.723 | F13: 5.086 | G13: 5.763 | H13: 4.4 | I13: 22.015 | K13: Resilience interconnectors; enhancement water totex - Total | L13: AFWCW3_149TOT_PR24 | M13: 1.363 | N13: 2.043 | O13: 3.406 | P13: 4.083 | Q13: 2.72 | R13: 13.615

Sheet F_Input_Water_totex
A1: =RIGHT(CELL("filename", $A$1), LEN(CELL("filename", $A$1)) - SEARCH("]", CELL("filename", $A$1))) -> 
C2: Water TOTEX Run11 | E2: Run on 02 Oct 2024 16:15
A4: Company Acronym | B4: Item Code | C4: Item Description | D4: Item Unit | E4: Item Table Suite | F4: Constant
A5: Company Acronym | B5: Item Code | C5: Item Description | D5: Item Unit | E5: Item Table Suite | F5: Price Review 2024
A6: Company Acronym | B6: Item Code | C6: Item Description | D6: Item Unit | E6: Item Table Suite | F6: Run 11 - PR24 FD Data
A7: Company Acronym | B7: Item Code | C7: Item Description | D7: Item Unit | E7: Item Table Suite | F7: Latest
A8: ANH | B8: PR24_NETTOTEX_WATER | C8: PR24 BP Net totex - Total inc. accelerated & transition costs | D8: £m | E8: Price Review 2024 | F8: 4187.353839
A9: WSH | B9: PR24_NETTOTEX_WATER | C9: PR24 BP Net totex - Total inc. accelerated & transition costs | D9: £m | E9: Price Review 2024 | F9: 2365.636
A10: HDD | B10: PR24_NETTOTEX_WATER | C10: PR24 BP Net totex - Total inc. accelerated & transition costs | D10: £m | E10: Price Review 2024 | F10: 202.9929059
A11: NES | B11: PR24_NETTOTEX_WATER | C11: PR24 BP Net totex - Total inc. accelerated & transition costs | D11: £m | E11: Price Review 2024 | F11: 3081.858466
A12: SVE | B12: PR24_NETTOTEX_WATER | C12: PR24 BP Net totex - Total inc. accelerated & transition costs | D12: £m | E12: Price Review 2024 | F12: 5623.042444
A13: SWB | B13: PR24_NETTOTEX_WATER | C13: PR24 BP Net totex - Total inc. accelerated & transition costs | D13: £m | E13: Price Review 2024 | F13: 1570.211528
A14: SRN | B14: PR24_NETTOTEX_WATER | C14: PR24 BP Net totex - Total inc. accelerated & transition costs | D14: £m | E14: Price Review 2024 | F14: 3614.763
A15: TMS | B15: PR24_NETTOTEX_WATER | C15: PR24 BP Net totex - Total inc. accelerated & transition costs | D15: £m | E15: Price Review 2024 | F15: 10162.16273
A16: NWT | B16: PR24_NETTOTEX_WATER | C16: PR24 BP Net totex - Total inc. accelerated & transition costs | D16: £m | E16: Price Review 2024 | F16: 4204.144554
A17: WSX | B17: PR24_NETTOTEX_WATER | C17: PR24 BP Net totex - Total inc. accelerated & transition costs | D17: £m | E17: Price Review 2024 | F17: 1136.356395
A18: YKY | B18: PR24_NETTOTEX_WATER | C18: PR24 BP Net totex - Total inc. accelerated & transition costs | D18: £m | E18: Price Review 2024 | F18: 3120.05052
A19: AFW | B19: PR24_NETTOTEX_WATER | C19: PR24 BP Net totex - Total inc. accelerated & transition costs | D19: £m | E19: Price Review 2024 | F19: 2157.018576
A20: BRL | B20: PR24_NETTOTEX_WATER | C20: PR24 BP Net totex - Total inc. accelerated & transition costs | D20: £m | E20: Price Review 2024 | F20: 688.9547248
A21: PRT | B21: PR24_NETTOTEX_WATER | C21: PR24 BP Net totex - Total inc. accelerated & transition costs | D21: £m | E21: Price Review 2024 | F21: 341.6692826
A22: SEW | B22: PR24_NETTOTEX_WATER | C22: PR24 BP Net totex - Total inc. accelerated & transition costs | D22: £m | E22: Price Review 2024 | F22: 1862.837225
A23: SSC | B23: PR24_NETTOTEX_WATER | C23: PR24 BP Net totex - Total inc. accelerated & transition costs | D23: £m | E23: Price Review 2024 | F23: 737.9594339
A24: SES | B24: PR24_NETTOTEX_WATER | C24: PR24 BP Net totex - Total inc. accelerated & transition costs | D24: £m | E24: Price Review 2024 | F24: 377.6353912

Sheet Consolidated Input
A1: =RIGHT(CELL("filename", $A$1), LEN(CELL("filename", $A$1)) - SEARCH("]", CELL("filename", $A$1))) -> 
A3: Acronym | B3: BON code | C3: Item description | D3: Unit | E3: Model | F3: 2023-24 | G3: 2024-25 | H3: 2025-26 | I3: 2026-27 | J3: 2027-28 | K3: 2028-29 | L3: 2029-30 | M3: Total
A4: ='F_Inputs BP'!A8 -> ANH | B4: ='F_Inputs BP'!B8 -> CW12_117TOT_PR24 | C4: ='F_Inputs BP'!C8 -> Water resilience and security - Resilience; enhancement water totex - Total | D4: ='F_Inputs BP'!D8 -> £m | E4: ='F_Inputs BP'!E8 -> Price Review 2024 | F4: ='F_Inputs BP'!F8 -> 0 | G4: ='F_Inputs BP'!G8 -> 0 | H4: ='F_Inputs BP'!H8 ->  | I4: ='F_Inputs BP'!I8 ->  | J4: ='F_Inputs BP'!J8 ->  | K4: ='F_Inputs BP'!K8 ->  | L4: ='F_Inputs BP'!L8 ->  | M4: =SUM(F4:L4) -> 0
A5: ='F_Inputs BP'!A9 -> ANH | B5: ='F_Inputs BP'!B9 -> CW17_117TOT_PR24 | C5: ='F_Inputs BP'!C9 -> Water resilience and security - Resilience; enhancement water totex - Total | D5: ='F_Inputs BP'!D9 -> £m | E5: ='F_Inputs BP'!E9 -> Price Review 2024 | F5: ='F_Inputs BP'!F9 -> 0 | G5: ='F_Inputs BP'!G9 -> 0 | H5: ='F_Inputs BP'!H9 -> 0 | I5: ='F_Inputs BP'!I9 -> 0 | J5: ='F_Inputs BP'!J9 -> 0 | K5: ='F_Inputs BP'!K9 -> 0 | L5: ='F_Inputs BP'!L9 -> 0 | M5: 0
A6: ='F_Inputs BP'!A10 -> ANH | B6: ='F_Inputs BP'!B10 -> CW3_120TOT_PR24 | C6: ='F_Inputs BP'!C10 -> Water resilience and security - Resilience; enhancement water totex - Total | D6: ='F_Inputs BP'!D10 -> £m | E6: ='F_Inputs BP'!E10 -> Price Review 2024 | F6: ='F_Inputs BP'!F10 -> 0.9588940334 | G6: ='F_Inputs BP'!G10 -> 1.549 | H6: ='F_Inputs BP'!H10 -> 0.008 | I6: ='F_Inputs BP'!I10 -> 5.11 | J6: ='F_Inputs BP'!J10 -> 4.085 | K6: ='F_Inputs BP'!K10 -> 2.968 | L6: ='F_Inputs BP'!L10 -> 0.33 | M6: 15.00889403
A7: ='F_Inputs BP'!A11 -> ANH | B7: ='F_Inputs BP'!B11 -> POSTREALL_CW3_120TOT_PR24 | C7: ='F_Inputs BP'!C11 -> Water resilience and security - Resilience; enhancement water totex - Total - Post reallocation | D7: ='F_Inputs BP'!D11 -> £m | E7: ='F_Inputs BP'!E11 -> Price Review 2024 | F7: ='F_Inputs BP'!F11 ->  | G7: ='F_Inputs BP'!G11 ->  | H7: ='F_Inputs BP'!H11 -> 0.008 | I7: ='F_Inputs BP'!I11 -> 5.11 | J7: ='F_Inputs BP'!J11 -> 4.085 | K7: ='F_Inputs BP'!K11 -> 2.968 | L7: ='F_Inputs BP'!L11 -> 0.33 | M7: 12.501
A8: ='F_Inputs BP'!A12 -> ANH | B8: ='F_Inputs BP'!B12 -> CW3_149TOT_PR24 | C8: ='F_Inputs BP'!C12 -> Resilience interconnectors; enhancement water totex - Total | D8: ='F_Inputs BP'!D12 -> £m | E8: ='F_Inputs BP'!E12 -> Price Review 2024 | F8: ='F_Inputs BP'!F12 -> 0 | G8: ='F_Inputs BP'!G12 -> 0 | H8: ='F_Inputs BP'!H12 -> 0 | I8: ='F_Inputs BP'!I12 -> 0 | J8: ='F_Inputs BP'!J12 -> 0 | K8: ='F_Inputs BP'!K12 -> 0 | L8: ='F_Inputs BP'!L12 -> 0 | M8: 0
A9: ='F_Inputs BP'!A13 -> ANH | B9: ='F_Inputs BP'!B13 -> POSTREALL_CW3_149TOT_PR24 | C9: ='F_Inputs BP'!C13 -> Resilience interconnectors; enhancement water totex - Total - Post reallocation | D9: ='F_Inputs BP'!D13 -> £m | E9: ='F_Inputs BP'!E13 -> Price Review 2024 | F9: ='F_Inputs BP'!F13 -> 0 | G9: ='F_Inputs BP'!G13 -> 0 | H9: ='F_Inputs BP'!H13 -> 0.778 | I9: ='F_Inputs BP'!I13 -> 2.101 | J9: ='F_Inputs BP'!J13 -> 3.125 | K9: ='F_Inputs BP'!K13 -> 1.552 | L9: ='F_Inputs BP'!L13 -> 0.001 | M9: 7.557
A10: ='F_Inputs BP'!A14 -> WSH | B10: ='F_Inputs BP'!B14 -> CW12_117TOT_PR24 | C10: ='F_Inputs BP'!C14 -> Water resilience and security - Resilience; enhancement water totex - Total | D10: ='F_Inputs BP'!D14 -> £m | E10: ='F_Inputs BP'!E14 -> Price Review 2024 | F10: ='F_Inputs BP'!F14 -> 0 | G10: ='F_Inputs BP'!G14 -> 0 | H10: ='F_Inputs BP'!H14 ->  | I10: ='F_Inputs BP'!I14 ->  | J10: ='F_Inputs BP'!J14 ->  | K10: ='F_Inputs BP'!K14 ->  | L10: ='F_Inputs BP'!L14 ->  | M10: 0
A11: ='F_Inputs BP'!A15 -> WSH | B11: ='F_Inputs BP'!B15 -> CW17_117TOT_PR24 | C11: ='F_Inputs BP'!C15 -> Water resilience and security - Resilience; enhancement water totex - Total | D11: ='F_Inputs BP'!D15 -> £m | E11: ='F_Inputs BP'!E15 -> Price Review 2024 | F11: ='F_Inputs BP'!F15 -> 0 | G11: ='F_Inputs BP'!G15 -> 0 | H11: ='F_Inputs BP'!H15 -> 0 | I11: ='F_Inputs BP'!I15 -> 0 | J11: ='F_Inputs BP'!J15 -> 0 | K11: ='F_Inputs BP'!K15 -> 0 | L11: ='F_Inputs BP'!L15 -> 0 | M11: 0
A12: ='F_Inputs BP'!A16 -> WSH | B12: ='F_Inputs BP'!B16 -> CW3_120TOT_PR24 | C12: ='F_Inputs BP'!C16 -> Water resilience and security - Resilience; enhancement water totex - Total | D12: ='F_Inputs BP'!D16 -> £m | E12: ='F_Inputs BP'!E16 -> Price Review 2024 | F12: ='F_Inputs BP'!F16 -> 2.459547417 | G12: ='F_Inputs BP'!G16 -> 0.688 | H12: ='F_Inputs BP'!H16 -> 25.938 | I12: ='F_Inputs BP'!I16 -> 31.232 | J12: ='F_Inputs BP'!J16 -> 38.207 | K12: ='F_Inputs BP'!K16 -> 38.129 | L12: ='F_Inputs BP'!L16 -> 29.675 | M12: 166.3285474
A13: ='F_Inputs BP'!A17 -> WSH | B13: ='F_Inputs BP'!B17 -> POSTREALL_CW3_120TOT_PR24 | C13: ='F_Inputs BP'!C17 -> Water resilience and security - Resilience; enhancement water totex - Total - Post reallocation | D13: ='F_Inputs BP'!D17 -> £m | E13: ='F_Inputs BP'!E17 -> Price Review 2024 | F13: ='F_Inputs BP'!F17 ->  | G13: ='F_Inputs BP'!G17 ->  | H13: ='F_Inputs BP'!H17 -> 15.0422 | I13: ='F_Inputs BP'!I17 -> 20.3362 | J13: ='F_Inputs BP'!J17 -> 27.3112 | K13: ='F_Inputs BP'!K17 -> 27.2332 | L13: ='F_Inputs BP'!L17 -> 18.7792 | M13: 108.702
A14: ='F_Inputs BP'!A18 -> WSH | B14: ='F_Inputs BP'!B18 -> CW3_149TOT_PR24 | C14: ='F_Inputs BP'!C18 -> Resilience interconnectors; enhancement water totex - Total | D14: ='F_Inputs BP'!D18 -> £m | E14: ='F_Inputs BP'!E18 -> Price Review 2024 | F14: ='F_Inputs BP'!F18 ->  | G14: ='F_Inputs BP'!G18 ->  | H14: ='F_Inputs BP'!H18 ->  | I14: ='F_Inputs BP'!I18 ->  | J14: ='F_Inputs BP'!J18 ->  | K14: ='F_Inputs BP'!K18 ->  | L14: ='F_Inputs BP'!L18 ->  | M14: 0
A15: ='F_Inputs BP'!A19 -> WSH | B15: ='F_Inputs BP'!B19 -> POSTREALL_CW3_149TOT_PR24 | C15: ='F_Inputs BP'!C19 -> Resilience interconnectors; enhancement water totex - Total - Post reallocation | D15: ='F_Inputs BP'!D19 -> £m | E15: ='F_Inputs BP'!E19 -> Price Review 2024 | F15: ='F_Inputs BP'!F19 ->  | G15: ='F_Inputs BP'!G19 ->  | H15: ='F_Inputs BP'!H19 -> 10.8958 | I15: ='F_Inputs BP'!I19 -> 10.8958 | J15: ='F_Inputs BP'!J19 -> 10.8958 | K15: ='F_Inputs BP'!K19 -> 10.8958 | L15: ='F_Inputs BP'!L19 -> 10.8958 | M15: 54.479
A16: ='F_Inputs BP'!A20 -> HDD | B16: ='F_Inputs BP'!B20 -> CW12_117TOT_PR24 | C16: ='F_Inputs BP'!C20 -> Water resilience and security - Resilience; enhancement water totex - Total | D16: ='F_Inputs BP'!D20 -> £m | E16: ='F_Inputs BP'!E20 -> Price Review 2024 | F16: ='F_Inputs BP'!F20 -> 0 | G16: ='F_Inputs BP'!G20 -> 0 | H16: ='F_Inputs BP'!H20 ->  | I16: ='F_Inputs BP'!I20 ->  | J16: ='F_Inputs BP'!J20 ->  | K16: ='F_Inputs BP'!K20 ->  | L16: ='F_Inputs BP'!L20 ->  | M16: 0
A17: ='F_Inputs BP'!A21 -> HDD | B17: ='F_Inputs BP'!B21 -> CW17_117TOT_PR24 | C17: ='F_Inputs BP'!C21 -> Water resilience and security - Resilience; enhancement water totex - Total | D17: ='F_Inputs BP'!D21 -> £m | E17: ='F_Inputs BP'!E21 -> Price Review 2024 | F17: ='F_Inputs BP'!F21 -> 0 | G17: ='F_Inputs BP'!G21 -> 0 | H17: ='F_Inputs BP'!H21 -> 0 | I17: ='F_Inputs BP'!I21 -> 0 | J17: ='F_Inputs BP'!J21 -> 0 | K17: ='F_Inputs BP'!K21 -> 0 | L17: ='F_Inputs BP'!L21 -> 0 | M17: 0
A18: ='F_Inputs BP'!A22 -> HDD | B18: ='F_Inputs BP'!B22 -> CW3_120TOT_PR24 | C18: ='F_Inputs BP'!C22 -> Water resilience and security - Resilience; enhancement water totex - Total | D18: ='F_Inputs BP'!D22 -> £m | E18: ='F_Inputs BP'!E22 -> Price Review 2024 | F18: ='F_Inputs BP'!F22 -> 2.459570072 | G18: ='F_Inputs BP'!G22 -> 0 | H18: ='F_Inputs BP'!H22 -> 0.18 | I18: ='F_Inputs BP'!I22 -> 0.18 | J18: ='F_Inputs BP'!J22 -> 0.18 | K18: ='F_Inputs BP'!K22 -> 0.18 | L18: ='F_Inputs BP'!L22 -> 0.18 | M18: 3.359570072
A19: ='F_Inputs BP'!A23 -> HDD | B19: ='F_Inputs BP'!B23 -> POSTREALL_CW3_120TOT_PR24 | C19: ='F_Inputs BP'!C23 -> Water resilience and security - Resilience; enhancement water totex - Total - Post reallocation | D19: ='F_Inputs BP'!D23 -> £m | E19: ='F_Inputs BP'!E23 -> Price Review 2024 | F19: ='F_Inputs BP'!F23 ->  | G19: ='F_Inputs BP'!G23 ->  | H19: ='F_Inputs BP'!H23 -> 0.18 | I19: ='F_Inputs BP'!I23 -> 0.18 | J19: ='F_Inputs BP'!J23 -> 0.18 | K19: ='F_Inputs BP'!K23 -> 0.18 | L19: ='F_Inputs BP'!L23 -> 0.18 | M19: 0.9
A20: ='F_Inputs BP'!A24 -> HDD | B20: ='F_Inputs BP'!B24 -> CW3_149TOT_PR24 | C20: ='F_Inputs BP'!C24 -> Resilience interconnectors; enhancement water totex - Total | D20: ='F_Inputs BP'!D24 -> £m | E20: ='F_Inputs BP'!E24 -> Price Review 2024 | F20: ='F_Inputs BP'!F24 ->  | G20: ='F_Inputs BP'!G24 ->  | H20: ='F_Inputs BP'!H24 ->  | I20: ='F_Inputs BP'!I24 ->  | J20: ='F_Inputs BP'!J24 ->  | K20: ='F_Inputs BP'!K24 ->  | L20: ='F_Inputs BP'!L24 ->  | M20: 0
A21: ='F_Inputs BP'!A25 -> HDD | B21: ='F_Inputs BP'!B25 -> POSTREALL_CW3_149TOT_PR24 | C21: ='F_Inputs BP'!C25 -> Resilience interconnectors; enhancement water totex - Total - Post reallocation | D21: ='F_Inputs BP'!D25 -> £m | E21: ='F_Inputs BP'!E25 -> Price Review 2024 | F21: ='F_Inputs BP'!F25 ->  | G21: ='F_Inputs BP'!G25 ->  | H21: ='F_Inputs BP'!H25 -> 0 | I21: ='F_Inputs BP'!I25 -> 0 | J21: ='F_Inputs BP'!J25 -> 0 | K21: ='F_Inputs BP'!K25 -> 0 | L21: ='F_Inputs BP'!L25 -> 0 | M21: 0
A22: ='F_Inputs BP'!A26 -> NES | B22: ='F_Inputs BP'!B26 -> CW12_117TOT_PR24 | C22: ='F_Inputs BP'!C26 -> Water resilience and security - Resilience; enhancement water totex - Total | D22: ='F_Inputs BP'!D26 -> £m | E22: ='F_Inputs BP'!E26 -> Price Review 2024 | F22: ='F_Inputs BP'!F26 -> 1 | G22: ='F_Inputs BP'!G26 -> 7 | H22: ='F_Inputs BP'!H26 ->  | I22: ='F_Inputs BP'!I26 ->  | J22: ='F_Inputs BP'!J26 ->  | K22: ='F_Inputs BP'!K26 ->  | L22: ='F_Inputs BP'!L26 ->  | M22: 8
A23: ='F_Inputs BP'!A27 -> NES | B23: ='F_Inputs BP'!B27 -> CW17_117TOT_PR24 | C23: ='F_Inputs BP'!C27 -> Water resilience and security - Resilience; enhancement water totex - Total | D23: ='F_Inputs BP'!D27 -> £m | E23: ='F_Inputs BP'!E27 -> Price Review 2024 | F23: ='F_Inputs BP'!F27 -> 0 | G23: ='F_Inputs BP'!G27 -> 0 | H23: ='F_Inputs BP'!H27 -> 0 | I23: ='F_Inputs BP'!I27 -> 0 | J23: ='F_Inputs BP'!J27 -> 0 | K23: ='F_Inputs BP'!K27 -> 0 | L23: ='F_Inputs BP'!L27 -> 0 | M23: 0
A24: ='F_Inputs BP'!A28 -> NES | B24: ='F_Inputs BP'!B28 -> CW3_120TOT_PR24 | C24: ='F_Inputs BP'!C28 -> Water resilience and security - Resilience; enhancement water totex - Total | D24: ='F_Inputs BP'!D28 -> £m | E24: ='F_Inputs BP'!E28 -> Price Review 2024 | F24: ='F_Inputs BP'!F28 -> 47.616 | G24: ='F_Inputs BP'!G28 -> 69.28 | H24: ='F_Inputs BP'!H28 -> 17.338 | I24: ='F_Inputs BP'!I28 -> 14.872 | J24: ='F_Inputs BP'!J28 -> 22.249 | K24: ='F_Inputs BP'!K28 -> 19.729 | L24: ='F_Inputs BP'!L28 -> 10.73 | M24: 201.814
A25: ='F_Inputs BP'!A29 -> NES | B25: ='F_Inputs BP'!B29 -> POSTREALL_CW3_120TOT_PR24 | C25: ='F_Inputs BP'!C29 -> Water resilience and security - Resilience; enhancement water totex - Total - Post reallocation | D25: ='F_Inputs BP'!D29 -> £m | E25: ='F_Inputs BP'!E29 -> Price Review 2024 | F25: ='F_Inputs BP'!F29 ->  | G25: ='F_Inputs BP'!G29 ->  | H25: ='F_Inputs BP'!H29 -> 14.772 | I25: ='F_Inputs BP'!I29 -> 12.306 | J25: ='F_Inputs BP'!J29 -> 19.683 | K25: ='F_Inputs BP'!K29 -> 17.163 | L25: ='F_Inputs BP'!L29 -> 8.164 | M25: 72.088
A26: ='F_Inputs BP'!A30 -> NES | B26: ='F_Inputs BP'!B30 -> CW3_149TOT_PR24 | C26: ='F_Inputs BP'!C30 -> Resilience interconnectors; enhancement water totex - Total | D26: ='F_Inputs BP'!D30 -> £m | E26: ='F_Inputs BP'!E30 -> Price Review 2024 | F26: ='F_Inputs BP'!F30 ->  | G26: ='F_Inputs BP'!G30 ->  | H26: ='F_Inputs BP'!H30 ->  | I26: ='F_Inputs BP'!I30 ->  | J26: ='F_Inputs BP'!J30 ->  | K26: ='F_Inputs BP'!K30 ->  | L26: ='F_Inputs BP'!L30 ->  | M26: 0
A27: ='F_Inputs BP'!A31 -> NES | B27: ='F_Inputs BP'!B31 -> POSTREALL_CW3_149TOT_PR24 | C27: ='F_Inputs BP'!C31 -> Resilience interconnectors; enhancement water totex - Total - Post reallocation | D27: ='F_Inputs BP'!D31 -> £m | E27: ='F_Inputs BP'!E31 -> Price Review 2024 | F27: ='F_Inputs BP'!F31 ->  | G27: ='F_Inputs BP'!G31 ->  | H27: ='F_Inputs BP'!H31 -> 0 | I27: ='F_Inputs BP'!I31 -> 0 | J27: ='F_Inputs BP'!J31 -> 0 | K27: ='F_Inputs BP'!K31 -> 0 | L27: ='F_Inputs BP'!L31 -> 0 | M27: 0
A28: ='F_Inputs BP'!A32 -> SVE | B28: ='F_Inputs BP'!B32 -> CW12_117TOT_PR24 | C28: ='F_Inputs BP'!C32 -> Water resilience and security - Resilience; enhancement water totex - Total | D28: ='F_Inputs BP'!D32 -> £m | E28: ='F_Inputs BP'!E32 -> Price Review 2024 | F28: ='F_Inputs BP'!F32 -> 0.75 | G28: ='F_Inputs BP'!G32 -> 4.19472373 | H28: ='F_Inputs BP'!H32 ->  | I28: ='F_Inputs BP'!I32 ->  | J28: ='F_Inputs BP'!J32 ->  | K28: ='F_Inputs BP'!K32 ->  | L28: ='F_Inputs BP'!L32 ->  | M28: 4.94472373
A29: ='F_Inputs BP'!A33 -> SVE | B29: ='F_Inputs BP'!B33 -> CW17_117TOT_PR24 | C29: ='F_Inputs BP'!C33 -> Water resilience and security - Resilience; enhancement water totex - Total | D29: ='F_Inputs BP'!D33 -> £m | E29: ='F_Inputs BP'!E33 -> Price Review 2024 | F29: ='F_Inputs BP'!F33 -> 0 | G29: ='F_Inputs BP'!G33 -> 0 | H29: ='F_Inputs BP'!H33 -> 0 | I29: ='F_Inputs BP'!I33 -> 0 | J29: ='F_Inputs BP'!J33 -> 0 | K29: ='F_Inputs BP'!K33 -> 0 | L29: ='F_Inputs BP'!L33 -> 0 | M29: 0
A30: ='F_Inputs BP'!A34 -> SVE | B30: ='F_Inputs BP'!B34 -> CW3_120TOT_PR24 | C30: ='F_Inputs BP'!C34 -> Water resilience and security - Resilience; enhancement water totex - Total | D30: ='F_Inputs BP'!D34 -> £m | E30: ='F_Inputs BP'!E34 -> Price Review 2024 | F30: ='F_Inputs BP'!F34 -> 36.769 | G30: ='F_Inputs BP'!G34 -> 54.5212177 | H30: ='F_Inputs BP'!H34 -> 39.22310771 | I30: ='F_Inputs BP'!I34 -> 46.58306981 | J30: ='F_Inputs BP'!J34 -> 50.08517786 | K30: ='F_Inputs BP'!K34 -> 6.463988561 | L30: ='F_Inputs BP'!L34 -> 12.30840946 | M30: 245.9539711
A31: ='F_Inputs BP'!A35 -> SVE | B31: ='F_Inputs BP'!B35 -> POSTREALL_CW3_120TOT_PR24 | C31: ='F_Inputs BP'!C35 -> Water resilience and security - Resilience; enhancement water totex - Total - Post reallocation | D31: ='F_Inputs BP'!D35 -> £m | E31: ='F_Inputs BP'!E35 -> Price Review 2024 | F31: ='F_Inputs BP'!F35 ->  | G31: ='F_Inputs BP'!G35 ->  | H31: ='F_Inputs BP'!H35 -> 6.591107711 | I31: ='F_Inputs BP'!I35 -> 7.155069813 | J31: ='F_Inputs BP'!J35 -> 7.507177861 | K31: ='F_Inputs BP'!K35 -> 3.210988561 | L31: ='F_Inputs BP'!L35 -> 3.794409465 | M31: 28.25875341
A32: ='F_Inputs BP'!A36 -> SVE | B32: ='F_Inputs BP'!B36 -> CW3_149TOT_PR24 | C32: ='F_Inputs BP'!C36 -> Resilience interconnectors; enhancement water totex - Total | D32: ='F_Inputs BP'!D36 -> £m | E32: ='F_Inputs BP'!E36 -> Price Review 2024 | F32: ='F_Inputs BP'!F36 ->  | G32: ='F_Inputs BP'!G36 ->  | H32: ='F_Inputs BP'!H36 ->  | I32: ='F_Inputs BP'!I36 ->  | J32: ='F_Inputs BP'!J36 ->  | K32: ='F_Inputs BP'!K36 ->  | L32: ='F_Inputs BP'!L36 ->  | M32: 0
A33: ='F_Inputs BP'!A37 -> SVE | B33: ='F_Inputs BP'!B37 -> POSTREALL_CW3_149TOT_PR24 | C33: ='F_Inputs BP'!C37 -> Resilience interconnectors; enhancement water totex - Total - Post reallocation | D33: ='F_Inputs BP'!D37 -> £m | E33: ='F_Inputs BP'!E37 -> Price Review 2024 | F33: ='F_Inputs BP'!F37 ->  | G33: ='F_Inputs BP'!G37 ->  | H33: ='F_Inputs BP'!H37 -> 32.632 | I33: ='F_Inputs BP'!I37 -> 39.428 | J33: ='F_Inputs BP'!J37 -> 42.578 | K33: ='F_Inputs BP'!K37 -> 3.253 | L33: ='F_Inputs BP'!L37 -> 8.514 | M33: 126.405
A34: ='F_Inputs BP'!A38 -> SWB | B34: ='F_Inputs BP'!B38 -> CW12_117TOT_PR24 | C34: ='F_Inputs BP'!C38 -> Water resilience and security - Resilience; enhancement water totex - Total | D34: ='F_Inputs BP'!D38 -> £m | E34: ='F_Inputs BP'!E38 -> Price Review 2024 | F34: ='F_Inputs BP'!F38 -> 0 | G34: ='F_Inputs BP'!G38 -> 0 | H34: ='F_Inputs BP'!H38 ->  | I34: ='F_Inputs BP'!I38 ->  | J34: ='F_Inputs BP'!J38 ->  | K34: ='F_Inputs BP'!K38 ->  | L34: ='F_Inputs BP'!L38 ->  | M34: 0
A35: ='F_Inputs BP'!A39 -> SWB | B35: ='F_Inputs BP'!B39 -> CW17_117TOT_PR24 | C35: ='F_Inputs BP'!C39 -> Water resilience and security - Resilience; enhancement water totex - Total | D35: ='F_Inputs BP'!D39 -> £m | E35: ='F_Inputs BP'!E39 -> Price Review 2024 | F35: ='F_Inputs BP'!F39 -> 0 | G35: ='F_Inputs BP'!G39 -> 0 | H35: ='F_Inputs BP'!H39 -> 0 | I35: ='F_Inputs BP'!I39 -> 0 | J35: ='F_Inputs BP'!J39 -> 0 | K35: ='F_Inputs BP'!K39 -> 0 | L35: ='F_Inputs BP'!L39 -> 0 | M35: 0
A36: ='F_Inputs BP'!A40 -> SWB | B36: ='F_Inputs BP'!B40 -> CW3_120TOT_PR24 | C36: ='F_Inputs BP'!C40 -> Water resilience and security - Resilience; enhancement water totex - Total | D36: ='F_Inputs BP'!D40 -> £m | E36: ='F_Inputs BP'!E40 -> Price Review 2024 | F36: ='F_Inputs BP'!F40 -> 70.752 | G36: ='F_Inputs BP'!G40 -> 29.168 | H36: ='F_Inputs BP'!H40 -> 9.932151 | I36: ='F_Inputs BP'!I40 -> 7.573608 | J36: ='F_Inputs BP'!J40 -> 17.147513 | K36: ='F_Inputs BP'!K40 -> 21.101945 | L36: ='F_Inputs BP'!L40 -> 20.506814 | M36: =SUM(F36:L36) -> 176.182031
A37: ='F_Inputs BP'!A41 -> SWB | B37: ='F_Inputs BP'!B41 -> POSTREALL_CW3_120TOT_PR24 | C37: ='F_Inputs BP'!C41 -> Water resilience and security - Resilience; enhancement water totex - Total - Post reallocation | D37: ='F_Inputs BP'!D41 -> £m | E37: ='F_Inputs BP'!E41 -> Price Review 2024 | F37: ='F_Inputs BP'!F41 ->  | G37: ='F_Inputs BP'!G41 ->  | H37: ='F_Inputs BP'!H41 -> 0.6886981857 | I37: ='F_Inputs BP'!I41 -> 0.5251561408 | J37: ='F_Inputs BP'!J41 -> 1.189013447 | K37: ='F_Inputs BP'!K41 -> 1.46321489 | L37: ='F_Inputs BP'!L41 -> 1.421948337 | M37: 5.288031
A38: ='F_Inputs BP'!A42 -> SWB | B38: ='F_Inputs BP'!B42 -> CW3_149TOT_PR24 | C38: ='F_Inputs BP'!C42 -> Resilience interconnectors; enhancement water totex - Total | D38: ='F_Inputs BP'!D42 -> £m | E38: ='F_Inputs BP'!E42 -> Price Review 2024 | F38: ='F_Inputs BP'!F42 ->  | G38: ='F_Inputs BP'!G42 ->  | H38: ='F_Inputs BP'!H42 ->  | I38: ='F_Inputs BP'!I42 ->  | J38: ='F_Inputs BP'!J42 ->  | K38: ='F_Inputs BP'!K42 ->  | L38: ='F_Inputs BP'!L42 ->  | M38: 0
A39: ='F_Inputs BP'!A43 -> SWB | B39: ='F_Inputs BP'!B43 -> POSTREALL_CW3_149TOT_PR24 | C39: ='F_Inputs BP'!C43 -> Resilience interconnectors; enhancement water totex - Total - Post reallocation | D39: ='F_Inputs BP'!D43 -> £m | E39: ='F_Inputs BP'!E43 -> Price Review 2024 | F39: ='F_Inputs BP'!F43 ->  | G39: ='F_Inputs BP'!G43 ->  | H39: ='F_Inputs BP'!H43 -> 9.243452814 | I39: ='F_Inputs BP'!I43 -> 7.048451859 | J39: ='F_Inputs BP'!J43 -> 15.95849955 | K39: ='F_Inputs BP'!K43 -> 19.63873011 | L39: ='F_Inputs BP'!L43 -> 19.08486566 | M39: 70.974
A40: ='F_Inputs BP'!A44 -> SRN | B40: ='F_Inputs BP'!B44 -> CW12_117TOT_PR24 | C40: ='F_Inputs BP'!C44 -> Water resilience and security - Resilience; enhancement water totex - Total | D40: ='F_Inputs BP'!D44 -> £m | E40: ='F_Inputs BP'!E44 -> Price Review 2024 | F40: ='F_Inputs BP'!F44 -> 2.831 | G40: ='F_Inputs BP'!G44 -> 86.911 | H40: ='F_Inputs BP'!H44 ->  | I40: ='F_Inputs BP'!I44 ->  | J40: ='F_Inputs BP'!J44 ->  | K40: ='F_Inputs BP'!K44 ->  | L40: ='F_Inputs BP'!L44 ->  | M40: 89.742
A41: ='F_Inputs BP'!A45 -> SRN | B41: ='F_Inputs BP'!B45 -> CW17_117TOT_PR24 | C41: ='F_Inputs BP'!C45 -> Water resilience and security - Resilience; enhancement water totex - Total | D41: ='F_Inputs BP'!D45 -> £m | E41: ='F_Inputs BP'!E45 -> Price Review 2024 | F41: ='F_Inputs BP'!F45 -> 0 | G41: ='F_Inputs BP'!G45 -> 0 | H41: ='F_Inputs BP'!H45 -> 0 | I41: ='F_Inputs BP'!I45 -> 0 | J41: ='F_Inputs BP'!J45 -> 0 | K41: ='F_Inputs BP'!K45 -> 0 | L41: ='F_Inputs BP'!L45 -> 0 | M41: 0
A42: ='F_Inputs BP'!A46 -> SRN | B42: ='F_Inputs BP'!B46 -> CW3_120TOT_PR24 | C42: ='F_Inputs BP'!C46 -> Water resilience and security - Resilience; enhancement water totex - Total | D42: ='F_Inputs BP'!D46 -> £m | E42: ='F_Inputs BP'!E46 -> Price Review 2024 | F42: ='F_Inputs BP'!F46 -> 2.831 | G42: ='F_Inputs BP'!G46 -> 86.911 | H42: ='F_Inputs BP'!H46 -> 48.58778583 | I42: ='F_Inputs BP'!I46 -> 79.09189694 | J42: ='F_Inputs BP'!J46 -> 74.00946711 | K42: ='F_Inputs BP'!K46 -> 75.06950358 | L42: ='F_Inputs BP'!L46 -> 32.57279216 | M42: 399.0734456
A43: ='F_Inputs BP'!A47 -> SRN | B43: ='F_Inputs BP'!B47 -> POSTREALL_CW3_120TOT_PR24 | C43: ='F_Inputs BP'!C47 -> Water resilience and security - Resilience; enhancement water totex - Total - Post reallocation | D43: ='F_Inputs BP'!D47 -> £m | E43: ='F_Inputs BP'!E47 -> Price Review 2024 | F43: ='F_Inputs BP'!F47 ->  | G43: ='F_Inputs BP'!G47 ->  | H43: ='F_Inputs BP'!H47 -> 48.58778583 | I43: ='F_Inputs BP'!I47 -> 79.09189694 | J43: ='F_Inputs BP'!J47 -> 74.00946711 | K43: ='F_Inputs BP'!K47 -> 75.06950358 | L43: ='F_Inputs BP'!L47 -> 32.57279216 | M43: 309.3314456
A44: ='F_Inputs BP'!A48 -> SRN | B44: ='F_Inputs BP'!B48 -> CW3_149TOT_PR24 | C44: ='F_Inputs BP'!C48 -> Resilience interconnectors; enhancement water totex - Total | D44: ='F_Inputs BP'!D48 -> £m | E44: ='F_Inputs BP'!E48 -> Price Review 2024 | F44: ='F_Inputs BP'!F48 ->  | G44: ='F_Inputs BP'!G48 ->  | H44: ='F_Inputs BP'!H48 ->  | I44: ='F_Inputs BP'!I48 ->  | J44: ='F_Inputs BP'!J48 ->  | K44: ='F_Inputs BP'!K48 ->  | L44: ='F_Inputs BP'!L48 ->  | M44: 0
A45: ='F_Inputs BP'!A49 -> SRN | B45: ='F_Inputs BP'!B49 -> POSTREALL_CW3_149TOT_PR24 | C45: ='F_Inputs BP'!C49 -> Resilience interconnectors; enhancement water totex - Total - Post reallocation | D45: ='F_Inputs BP'!D49 -> £m | E45: ='F_Inputs BP'!E49 -> Price Review 2024 | F45: ='F_Inputs BP'!F49 ->  | G45: ='F_Inputs BP'!G49 ->  | H45: ='F_Inputs BP'!H49 -> 0 | I45: ='F_Inputs BP'!I49 -> 0 | J45: ='F_Inputs BP'!J49 -> 0 | K45: ='F_Inputs BP'!K49 -> 0 | L45: ='F_Inputs BP'!L49 -> 0 | M45: 0
A46: ='F_Inputs BP'!A50 -> TMS | B46: ='F_Inputs BP'!B50 -> CW12_117TOT_PR24 | C46: ='F_Inputs BP'!C50 -> Water resilience and security - Resilience; enhancement water totex - Total | D46: ='F_Inputs BP'!D50 -> £m | E46: ='F_Inputs BP'!E50 -> Price Review 2024 | F46: ='F_Inputs BP'!F50 -> 0 | G46: ='F_Inputs BP'!G50 -> 0 | H46: ='F_Inputs BP'!H50 ->  | I46: ='F_Inputs BP'!I50 ->  | J46: ='F_Inputs BP'!J50 ->  | K46: ='F_Inputs BP'!K50 ->  | L46: ='F_Inputs BP'!L50 ->  | M46: 0
A47: ='F_Inputs BP'!A51 -> TMS | B47: ='F_Inputs BP'!B51 -> CW17_117TOT_PR24 | C47: ='F_Inputs BP'!C51 -> Water resilience and security - Resilience; enhancement water totex - Total | D47: ='F_Inputs BP'!D51 -> £m | E47: ='F_Inputs BP'!E51 -> Price Review 2024 | F47: ='F_Inputs BP'!F51 -> 0 | G47: ='F_Inputs BP'!G51 -> 0 | H47: ='F_Inputs BP'!H51 -> 0 | I47: ='F_Inputs BP'!I51 -> 0 | J47: ='F_Inputs BP'!J51 -> 0 | K47: ='F_Inputs BP'!K51 -> 0 | L47: ='F_Inputs BP'!L51 -> 0 | M47: 0
A48: ='F_Inputs BP'!A52 -> TMS | B48: ='F_Inputs BP'!B52 -> CW3_120TOT_PR24 | C48: ='F_Inputs BP'!C52 -> Water resilience and security - Resilience; enhancement water totex - Total | D48: ='F_Inputs BP'!D52 -> £m | E48: ='F_Inputs BP'!E52 -> Price Review 2024 | F48: ='F_Inputs BP'!F52 -> 8.577 | G48: ='F_Inputs BP'!G52 -> 23.38 | H48: ='F_Inputs BP'!H52 -> 58.455 | I48: ='F_Inputs BP'!I52 -> 107.338 | J48: ='F_Inputs BP'!J52 -> 105.968 | K48: ='F_Inputs BP'!K52 -> 110.421 | L48: ='F_Inputs BP'!L52 -> 102.01 | M48: 516.149
A49: ='F_Inputs BP'!A53 -> TMS | B49: ='F_Inputs BP'!B53 -> POSTREALL_CW3_120TOT_PR24 | C49: ='F_Inputs BP'!C53 -> Water resilience and security - Resilience; enhancement water totex - Total - Post reallocation | D49: ='F_Inputs BP'!D53 -> £m | E49: ='F_Inputs BP'!E53 -> Price Review 2024 | F49: ='F_Inputs BP'!F53 ->  | G49: ='F_Inputs BP'!G53 ->  | H49: ='F_Inputs BP'!H53 -> 58.455 | I49: ='F_Inputs BP'!I53 -> 107.338 | J49: ='F_Inputs BP'!J53 -> 105.968 | K49: ='F_Inputs BP'!K53 -> 110.421 | L49: ='F_Inputs BP'!L53 -> 102.01 | M49: 484.192
A50: ='F_Inputs BP'!A54 -> TMS | B50: ='F_Inputs BP'!B54 -> CW3_149TOT_PR24 | C50: ='F_Inputs BP'!C54 -> Resilience interconnectors; enhancement water totex - Total | D50: ='F_Inputs BP'!D54 -> £m | E50: ='F_Inputs BP'!E54 -> Price Review 2024 | F50: ='F_Inputs BP'!F54 ->  | G50: ='F_Inputs BP'!G54 ->  | H50: ='F_Inputs BP'!H54 ->  | I50: ='F_Inputs BP'!I54 ->  | J50: ='F_Inputs BP'!J54 ->  | K50: ='F_Inputs BP'!K54 ->  | L50: ='F_Inputs BP'!L54 ->  | M50: 0
A51: ='F_Inputs BP'!A55 -> TMS | B51: ='F_Inputs BP'!B55 -> POSTREALL_CW3_149TOT_PR24 | C51: ='F_Inputs BP'!C55 -> Resilience interconnectors; enhancement water totex - Total - Post reallocation | D51: ='F_Inputs BP'!D55 -> £m | E51: ='F_Inputs BP'!E55 -> Price Review 2024 | F51: ='F_Inputs BP'!F55 ->  | G51: ='F_Inputs BP'!G55 ->  | H51: ='F_Inputs BP'!H55 -> 0 | I51: ='F_Inputs BP'!I55 -> 0 | J51: ='F_Inputs BP'!J55 -> 0 | K51: ='F_Inputs BP'!K55 -> 0 | L51: ='F_Inputs BP'!L55 -> 0 | M51: 0
A52: ='F_Inputs BP'!A56 -> WSX | B52: ='F_Inputs BP'!B56 -> CW12_117TOT_PR24 | C52: ='F_Inputs BP'!C56 -> Water resilience and security - Resilience; enhancement water totex - Total | D52: ='F_Inputs BP'!D56 -> £m | E52: ='F_Inputs BP'!E56 -> Price Review 2024 | F52: ='F_Inputs BP'!F56 -> 0 | G52: ='F_Inputs BP'!G56 -> 0.163983 | H52: ='F_Inputs BP'!H56 ->  | I52: ='F_Inputs BP'!I56 ->  | J52: ='F_Inputs BP'!J56 ->  | K52: ='F_Inputs BP'!K56 ->  | L52: ='F_Inputs BP'!L56 ->  | M52: 0.163983
A53: ='F_Inputs BP'!A57 -> WSX | B53: ='F_Inputs BP'!B57 -> CW17_117TOT_PR24 | C53: ='F_Inputs BP'!C57 -> Water resilience and security - Resilience; enhancement water totex - Total | D53: ='F_Inputs BP'!D57 -> £m | E53: ='F_Inputs BP'!E57 -> Price Review 2024 | F53: ='F_Inputs BP'!F57 -> 0 | G53: ='F_Inputs BP'!G57 -> 0 | H53: ='F_Inputs BP'!H57 -> 0 | I53: ='F_Inputs BP'!I57 -> 0 | J53: ='F_Inputs BP'!J57 -> 0 | K53: ='F_Inputs BP'!K57 -> 0 | L53: ='F_Inputs BP'!L57 -> 0 | M53: 0
A54: ='F_Inputs BP'!A58 -> WSX | B54: ='F_Inputs BP'!B58 -> CW3_120TOT_PR24 | C54: ='F_Inputs BP'!C58 -> Water resilience and security - Resilience; enhancement water totex - Total | D54: ='F_Inputs BP'!D58 -> £m | E54: ='F_Inputs BP'!E58 -> Price Review 2024 | F54: ='F_Inputs BP'!F58 -> 0 | G54: ='F_Inputs BP'!G58 -> 0.163983 | H54: ='F_Inputs BP'!H58 -> 0.637745 | I54: ='F_Inputs BP'!I58 -> 0.640934 | J54: ='F_Inputs BP'!J58 -> 0.02656 | K54: ='F_Inputs BP'!K58 -> 0.026692 | L54: ='F_Inputs BP'!L58 -> 0.160952 | M54: 1.656866
A55: ='F_Inputs BP'!A59 -> WSX | B55: ='F_Inputs BP'!B59 -> POSTREALL_CW3_120TOT_PR24 | C55: ='F_Inputs BP'!C59 -> Water resilience and security - Resilience; enhancement water totex - Total - Post reallocation | D55: ='F_Inputs BP'!D59 -> £m | E55: ='F_Inputs BP'!E59 -> Price Review 2024 | F55: ='F_Inputs BP'!F59 ->  | G55: ='F_Inputs BP'!G59 ->  | H55: ='F_Inputs BP'!H59 -> 0.637745 | I55: ='F_Inputs BP'!I59 -> 0.640934 | J55: ='F_Inputs BP'!J59 -> 0.02656 | K55: ='F_Inputs BP'!K59 -> 0.026692 | L55: ='F_Inputs BP'!L59 -> 0.160952 | M55: 1.492883
A56: ='F_Inputs BP'!A60 -> WSX | B56: ='F_Inputs BP'!B60 -> CW3_149TOT_PR24 | C56: ='F_Inputs BP'!C60 -> Resilience interconnectors; enhancement water totex - Total | D56: ='F_Inputs BP'!D60 -> £m | E56: ='F_Inputs BP'!E60 -> Price Review 2024 | F56: ='F_Inputs BP'!F60 ->  | G56: ='F_Inputs BP'!G60 ->  | H56: ='F_Inputs BP'!H60 ->  | I56: ='F_Inputs BP'!I60 ->  | J56: ='F_Inputs BP'!J60 ->  | K56: ='F_Inputs BP'!K60 ->  | L56: ='F_Inputs BP'!L60 ->  | M56: 0
A57: ='F_Inputs BP'!A61 -> WSX | B57: ='F_Inputs BP'!B61 -> POSTREALL_CW3_149TOT_PR24 | C57: ='F_Inputs BP'!C61 -> Resilience interconnectors; enhancement water totex - Total - Post reallocation | D57: ='F_Inputs BP'!D61 -> £m | E57: ='F_Inputs BP'!E61 -> Price Review 2024 | F57: ='F_Inputs BP'!F61 ->  | G57: ='F_Inputs BP'!G61 ->  | H57: ='F_Inputs BP'!H61 -> 0 | I57: ='F_Inputs BP'!I61 -> 0 | J57: ='F_Inputs BP'!J61 -> 0 | K57: ='F_Inputs BP'!K61 -> 0 | L57: ='F_Inputs BP'!L61 -> 0 | M57: 0
A58: ='F_Inputs BP'!A62 -> YKY | B58: ='F_Inputs BP'!B62 -> CW12_117TOT_PR24 | C58: ='F_Inputs BP'!C62 -> Water resilience and security - Resilience; enhancement water totex - Total | D58: ='F_Inputs BP'!D62 -> £m | E58: ='F_Inputs BP'!E62 -> Price Review 2024 | F58: ='F_Inputs BP'!F62 -> 0 | G58: ='F_Inputs BP'!G62 -> 0 | H58: ='F_Inputs BP'!H62 ->  | I58: ='F_Inputs BP'!I62 ->  | J58: ='F_Inputs BP'!J62 ->  | K58: ='F_Inputs BP'!K62 ->  | L58: ='F_Inputs BP'!L62 ->  | M58: 0
A59: ='F_Inputs BP'!A63 -> YKY | B59: ='F_Inputs BP'!B63 -> CW17_117TOT_PR24 | C59: ='F_Inputs BP'!C63 -> Water resilience and security - Resilience; enhancement water totex - Total | D59: ='F_Inputs BP'!D63 -> £m | E59: ='F_Inputs BP'!E63 -> Price Review 2024 | F59: ='F_Inputs BP'!F63 -> 0 | G59: ='F_Inputs BP'!G63 -> 0 | H59: ='F_Inputs BP'!H63 -> 0 | I59: ='F_Inputs BP'!I63 -> 0 | J59: ='F_Inputs BP'!J63 -> 0 | K59: ='F_Inputs BP'!K63 -> 0 | L59: ='F_Inputs BP'!L63 -> 0 | M59: 0
A60: ='F_Inputs BP'!A64 -> YKY | B60: ='F_Inputs BP'!B64 -> CW3_120TOT_PR24 | C60: ='F_Inputs BP'!C64 -> Water resilience and security - Resilience; enhancement water totex - Total | D60: ='F_Inputs BP'!D64 -> £m | E60: ='F_Inputs BP'!E64 -> Price Review 2024 | F60: ='F_Inputs BP'!F64 -> 0 | G60: ='F_Inputs BP'!G64 -> 0 | H60: ='F_Inputs BP'!H64 -> 3.7903936 | I60: ='F_Inputs BP'!I64 -> 5.3613568 | J60: ='F_Inputs BP'!J64 -> 12.406272 | K60: ='F_Inputs BP'!K64 -> 7.0942464 | L60: ='F_Inputs BP'!L64 -> 7.4122752 | M60: 36.064544
A61: ='F_Inputs BP'!A65 -> YKY | B61: ='F_Inputs BP'!B65 -> POSTREALL_CW3_120TOT_PR24 | C61: ='F_Inputs BP'!C65 -> Water resilience and security - Resilience; enhancement water totex - Total - Post reallocation | D61: ='F_Inputs BP'!D65 -> £m | E61: ='F_Inputs BP'!E65 -> Price Review 2024 | F61: ='F_Inputs BP'!F65 ->  | G61: ='F_Inputs BP'!G65 ->  | H61: ='F_Inputs BP'!H65 -> 3.7903936 | I61: ='F_Inputs BP'!I65 -> 5.3613568 | J61: ='F_Inputs BP'!J65 -> 12.406272 | K61: ='F_Inputs BP'!K65 -> 7.0942464 | L61: ='F_Inputs BP'!L65 -> 7.4122752 | M61: 36.064544
A62: ='F_Inputs BP'!A66 -> YKY | B62: ='F_Inputs BP'!B66 -> CW3_149TOT_PR24 | C62: ='F_Inputs BP'!C66 -> Resilience interconnectors; enhancement water totex - Total | D62: ='F_Inputs BP'!D66 -> £m | E62: ='F_Inputs BP'!E66 -> Price Review 2024 | F62: ='F_Inputs BP'!F66 ->  | G62: ='F_Inputs BP'!G66 ->  | H62: ='F_Inputs BP'!H66 ->  | I62: ='F_Inputs BP'!I66 ->  | J62: ='F_Inputs BP'!J66 ->  | K62: ='F_Inputs BP'!K66 ->  | L62: ='F_Inputs BP'!L66 ->  | M62: 0
A63: ='F_Inputs BP'!A67 -> YKY | B63: ='F_Inputs BP'!B67 -> POSTREALL_CW3_149TOT_PR24 | C63: ='F_Inputs BP'!C67 -> Resilience interconnectors; enhancement water totex - Total - Post reallocation | D63: ='F_Inputs BP'!D67 -> £m | E63: ='F_Inputs BP'!E67 -> Price Review 2024 | F63: ='F_Inputs BP'!F67 ->  | G63: ='F_Inputs BP'!G67 ->  | H63: ='F_Inputs BP'!H67 -> 0 | I63: ='F_Inputs BP'!I67 -> 0 | J63: ='F_Inputs BP'!J67 -> 0 | K63: ='F_Inputs BP'!K67 -> 0 | L63: ='F_Inputs BP'!L67 -> 0 | M63: 0
A64: ='F_Inputs BP'!A68 -> AFW | B64: ='F_Inputs BP'!B68 -> CW12_117TOT_PR24 | C64: ='F_Inputs BP'!C68 -> Water resilience and security - Resilience; enhancement water totex - Total | D64: ='F_Inputs BP'!D68 -> £m | E64: ='F_Inputs BP'!E68 -> Price Review 2024 | F64: ='F_Inputs BP'!F68 -> 0.066 | G64: ='F_Inputs BP'!G68 -> 0.245 | H64: ='F_Inputs BP'!H68 ->  | I64: ='F_Inputs BP'!I68 ->  | J64: ='F_Inputs BP'!J68 ->  | K64: ='F_Inputs BP'!K68 ->  | L64: ='F_Inputs BP'!L68 ->  | M64: 0.311
A65: ='F_Inputs BP'!A69 -> AFW | B65: ='F_Inputs BP'!B69 -> CW17_117TOT_PR24 | C65: ='F_Inputs BP'!C69 -> Water resilience and security - Resilience; enhancement water totex - Total | D65: ='F_Inputs BP'!D69 -> £m | E65: ='F_Inputs BP'!E69 -> Price Review 2024 | F65: ='F_Inputs BP'!F69 -> 0 | G65: ='F_Inputs BP'!G69 -> 0 | H65: ='F_Inputs BP'!H69 -> 0 | I65: ='F_Inputs BP'!I69 -> 0 | J65: ='F_Inputs BP'!J69 -> 0 | K65: ='F_Inputs BP'!K69 -> 0 | L65: ='F_Inputs BP'!L69 -> 0 | M65: 0
A66: ='F_Inputs BP'!A70 -> AFW | B66: ='F_Inputs BP'!B70 -> CW3_120TOT_PR24 | C66: ='F_Inputs BP'!C70 -> Water resilience and security - Resilience; enhancement water totex - Total | D66: ='F_Inputs BP'!D70 -> £m | E66: ='F_Inputs BP'!E70 -> Price Review 2024 | F66: ='F_Inputs BP'!F70 -> 7.651 | G66: ='F_Inputs BP'!G70 -> 11.466 | H66: ='F_Inputs BP'!H70 -> 2.732 | I66: ='F_Inputs BP'!I70 -> 3.723 | J66: ='F_Inputs BP'!J70 -> 5.086 | K66: ='F_Inputs BP'!K70 -> 5.763 | L66: ='F_Inputs BP'!L70 -> 4.4 | M66: 40.821
A67: ='F_Inputs BP'!A71 -> AFW | B67: ='F_Inputs BP'!B71 -> POSTREALL_CW3_120TOT_PR24 | C67: ='F_Inputs BP'!C71 -> Water resilience and security - Resilience; enhancement water totex - Total - Post reallocation | D67: ='F_Inputs BP'!D71 -> £m | E67: ='F_Inputs BP'!E71 -> Price Review 2024 | F67: ='F_Inputs BP'!F71 ->  | G67: ='F_Inputs BP'!G71 ->  | H67: ='F_Inputs BP'!H71 -> 0.5820687259 | I67: ='F_Inputs BP'!I71 -> 1.473134363 | J67: ='F_Inputs BP'!J71 -> 2.012452691 | K67: ='F_Inputs BP'!K71 -> 2.280331274 | L67: ='F_Inputs BP'!L71 -> 1.741012946 | M67: 8.089
A68: ='F_Inputs BP'!A72 -> AFW | B68: ='F_Inputs BP'!B72 -> CW3_149TOT_PR24 | C68: ='F_Inputs BP'!C72 -> Resilience interconnectors; enhancement water totex - Total | D68: ='F_Inputs BP'!D72 -> £m | E68: ='F_Inputs BP'!E72 -> Price Review 2024 | F68: ='F_Inputs BP'!F72 ->  | G68: ='F_Inputs BP'!G72 ->  | H68: ='F_Inputs BP'!H72 ->  | I68: ='F_Inputs BP'!I72 ->  | J68: ='F_Inputs BP'!J72 ->  | K68: ='F_Inputs BP'!K72 ->  | L68: ='F_Inputs BP'!L72 ->  | M68: =SUM(F68:L68) -> 0
A69: ='F_Inputs BP'!A73 -> AFW | B69: ='F_Inputs BP'!B73 -> POSTREALL_CW3_149TOT_PR24 | C69: ='F_Inputs BP'!C73 -> Resilience interconnectors; enhancement water totex - Total - Post reallocation | D69: ='F_Inputs BP'!D73 -> £m | E69: ='F_Inputs BP'!E73 -> Price Review 2024 | F69: ='F_Inputs BP'!F73 ->  | G69: ='F_Inputs BP'!G73 ->  | H69: ='F_Inputs BP'!H73 -> 2.149931274 | I69: ='F_Inputs BP'!I73 -> 2.249865637 | J69: ='F_Inputs BP'!J73 -> 3.073547309 | K69: ='F_Inputs BP'!K73 -> 3.482668726 | L69: ='F_Inputs BP'!L73 -> 2.658987054 | M69: 13.615
A70: ='F_Inputs BP'!A74 -> BRL | B70: ='F_Inputs BP'!B74 -> CW12_117TOT_PR24 | C70: ='F_Inputs BP'!C74 -> Water resilience and security - Resilience; enhancement water totex - Total | D70: ='F_Inputs BP'!D74 -> £m | E70: ='F_Inputs BP'!E74 -> Price Review 2024 | F70: ='F_Inputs BP'!F74 -> 0 | G70: ='F_Inputs BP'!G74 -> 0 | H70: ='F_Inputs BP'!H74 ->  | I70: ='F_Inputs BP'!I74 ->  | J70: ='F_Inputs BP'!J74 ->  | K70: ='F_Inputs BP'!K74 ->  | L70: ='F_Inputs BP'!L74 ->  | M70: 0
A71: ='F_Inputs BP'!A75 -> BRL | B71: ='F_Inputs BP'!B75 -> CW17_117TOT_PR24 | C71: ='F_Inputs BP'!C75 -> Water resilience and security - Resilience; enhancement water totex - Total | D71: ='F_Inputs BP'!D75 -> £m | E71: ='F_Inputs BP'!E75 -> Price Review 2024 | F71: ='F_Inputs BP'!F75 -> 0 | G71: ='F_Inputs BP'!G75 -> 0 | H71: ='F_Inputs BP'!H75 -> 0 | I71: ='F_Inputs BP'!I75 -> 0 | J71: ='F_Inputs BP'!J75 -> 0 | K71: ='F_Inputs BP'!K75 -> 0 | L71: ='F_Inputs BP'!L75 -> 0 | M71: 0
A72: ='F_Inputs BP'!A76 -> BRL | B72: ='F_Inputs BP'!B76 -> CW3_120TOT_PR24 | C72: ='F_Inputs BP'!C76 -> Water resilience and security - Resilience; enhancement water totex - Total | D72: ='F_Inputs BP'!D76 -> £m | E72: ='F_Inputs BP'!E76 -> Price Review 2024 | F72: ='F_Inputs BP'!F76 -> 0.125 | G72: ='F_Inputs BP'!G76 -> 0.06610047272 | H72: ='F_Inputs BP'!H76 -> 0 | I72: ='F_Inputs BP'!I76 -> 0 | J72: ='F_Inputs BP'!J76 -> 0 | K72: ='F_Inputs BP'!K76 -> 0 | L72: ='F_Inputs BP'!L76 -> 0 | M72: 0.1911004727
A73: ='F_Inputs BP'!A77 -> BRL | B73: ='F_Inputs BP'!B77 -> POSTREALL_CW3_120TOT_PR24 | C73: ='F_Inputs BP'!C77 -> Water resilience and security - Resilience; enhancement water totex - Total - Post reallocation | D73: ='F_Inputs BP'!D77 -> £m | E73: ='F_Inputs BP'!E77 -> Price Review 2024 | F73: ='F_Inputs BP'!F77 ->  | G73: ='F_Inputs BP'!G77 ->  | H73: ='F_Inputs BP'!H77 -> 0 | I73: ='F_Inputs BP'!I77 -> 0 | J73: ='F_Inputs BP'!J77 -> 0 | K73: ='F_Inputs BP'!K77 -> 0 | L73: ='F_Inputs BP'!L77 -> 0 | M73: 0
A74: ='F_Inputs BP'!A78 -> BRL | B74: ='F_Inputs BP'!B78 -> CW3_149TOT_PR24 | C74: ='F_Inputs BP'!C78 -> Resilience interconnectors; enhancement water totex - Total | D74: ='F_Inputs BP'!D78 -> £m | E74: ='F_Inputs BP'!E78 -> Price Review 2024 | F74: ='F_Inputs BP'!F78 ->  | G74: ='F_Inputs BP'!G78 ->  | H74: ='F_Inputs BP'!H78 ->  | I74: ='F_Inputs BP'!I78 ->  | J74: ='F_Inputs BP'!J78 ->  | K74: ='F_Inputs BP'!K78 ->  | L74: ='F_Inputs BP'!L78 ->  | M74: 0
A75: ='F_Inputs BP'!A79 -> BRL | B75: ='F_Inputs BP'!B79 -> POSTREALL_CW3_149TOT_PR24 | C75: ='F_Inputs BP'!C79 -> Resilience interconnectors; enhancement water totex - Total - Post reallocation | D75: ='F_Inputs BP'!D79 -> £m | E75: ='F_Inputs BP'!E79 -> Price Review 2024 | F75: ='F_Inputs BP'!F79 ->  | G75: ='F_Inputs BP'!G79 ->  | H75: ='F_Inputs BP'!H79 -> 0 | I75: ='F_Inputs BP'!I79 -> 0 | J75: ='F_Inputs BP'!J79 -> 0 | K75: ='F_Inputs BP'!K79 -> 0 | L75: ='F_Inputs BP'!L79 -> 0 | M75: 0
A76: ='F_Inputs BP'!A80 -> PRT | B76: ='F_Inputs BP'!B80 -> CW12_117TOT_PR24 | C76: ='F_Inputs BP'!C80 -> Water resilience and security - Resilience; enhancement water totex - Total | D76: ='F_Inputs BP'!D80 -> £m | E76: ='F_Inputs BP'!E80 -> Price Review 2024 | F76: ='F_Inputs BP'!F80 -> 0 | G76: ='F_Inputs BP'!G80 -> 0 | H76: ='F_Inputs BP'!H80 ->  | I76: ='F_Inputs BP'!I80 ->  | J76: ='F_Inputs BP'!J80 ->  | K76: ='F_Inputs BP'!K80 ->  | L76: ='F_Inputs BP'!L80 ->  | M76: 0
A77: ='F_Inputs BP'!A81 -> PRT | B77: ='F_Inputs BP'!B81 -> CW17_117TOT_PR24 | C77: ='F_Inputs BP'!C81 -> Water resilience and security - Resilience; enhancement water totex - Total | D77: ='F_Inputs BP'!D81 -> £m | E77: ='F_Inputs BP'!E81 -> Price Review 2024 | F77: ='F_Inputs BP'!F81 -> 0 | G77: ='F_Inputs BP'!G81 -> 0 | H77: ='F_Inputs BP'!H81 -> 0 | I77: ='F_Inputs BP'!I81 -> 0 | J77: ='F_Inputs BP'!J81 -> 0 | K77: ='F_Inputs BP'!K81 -> 0 | L77: ='F_Inputs BP'!L81 -> 0 | M77: 0
A78: ='F_Inputs BP'!A82 -> PRT | B78: ='F_Inputs BP'!B82 -> CW3_120TOT_PR24 | C78: ='F_Inputs BP'!C82 -> Water resilience and security - Resilience; enhancement water totex - Total | D78: ='F_Inputs BP'!D82 -> £m | E78: ='F_Inputs BP'!E82 -> Price Review 2024 | F78: ='F_Inputs BP'!F82 -> 0.001894892197 | G78: ='F_Inputs BP'!G82 -> 0 | H78: ='F_Inputs BP'!H82 -> 0.977 | I78: ='F_Inputs BP'!I82 -> 0.977 | J78: ='F_Inputs BP'!J82 -> 0.977 | K78: ='F_Inputs BP'!K82 -> 0.977 | L78: ='F_Inputs BP'!L82 -> 0.977 | M78: 4.886894892
A79: ='F_Inputs BP'!A83 -> PRT | B79: ='F_Inputs BP'!B83 -> POSTREALL_CW3_120TOT_PR24 | C79: ='F_Inputs BP'!C83 -> Water resilience and security - Resilience; enhancement water totex - Total - Post reallocation | D79: ='F_Inputs BP'!D83 -> £m | E79: ='F_Inputs BP'!E83 -> Price Review 2024 | F79: ='F_Inputs BP'!F83 ->  | G79: ='F_Inputs BP'!G83 ->  | H79: ='F_Inputs BP'!H83 -> 0.977 | I79: ='F_Inputs BP'!I83 -> 0.977 | J79: ='F_Inputs BP'!J83 -> 0.977 | K79: ='F_Inputs BP'!K83 -> 0.977 | L79: ='F_Inputs BP'!L83 -> 0.977 | M79: 4.885
A80: ='F_Inputs BP'!A84 -> PRT | B80: ='F_Inputs BP'!B84 -> CW3_149TOT_PR24 | C80: ='F_Inputs BP'!C84 -> Resilience interconnectors; enhancement water totex - Total | D80: ='F_Inputs BP'!D84 -> £m | E80: ='F_Inputs BP'!E84 -> Price Review 2024 | F80: ='F_Inputs BP'!F84 ->  | G80: ='F_Inputs BP'!G84 ->  | H80: ='F_Inputs BP'!H84 ->  | I80: ='F_Inputs BP'!I84 ->  | J80: ='F_Inputs BP'!J84 ->  | K80: ='F_Inputs BP'!K84 ->  | L80: ='F_Inputs BP'!L84 ->  | M80: 0
A81: ='F_Inputs BP'!A85 -> PRT | B81: ='F_Inputs BP'!B85 -> POSTREALL_CW3_149TOT_PR24 | C81: ='F_Inputs BP'!C85 -> Resilience interconnectors; enhancement water totex - Total - Post reallocation | D81: ='F_Inputs BP'!D85 -> £m | E81: ='F_Inputs BP'!E85 -> Price Review 2024 | F81: ='F_Inputs BP'!F85 ->  | G81: ='F_Inputs BP'!G85 ->  | H81: ='F_Inputs BP'!H85 -> 0 | I81: ='F_Inputs BP'!I85 -> 0 | J81: ='F_Inputs BP'!J85 -> 0 | K81: ='F_Inputs BP'!K85 -> 0 | L81: ='F_Inputs BP'!L85 -> 0 | M81: 0
A82: ='F_Inputs BP'!A86 -> SEW | B82: ='F_Inputs BP'!B86 -> CW12_117TOT_PR24 | C82: ='F_Inputs BP'!C86 -> Water resilience and security - Resilience; enhancement water totex - Total | D82: ='F_Inputs BP'!D86 -> £m | E82: ='F_Inputs BP'!E86 -> Price Review 2024 | F82: ='F_Inputs BP'!F86 -> 0.014926 | G82: ='F_Inputs BP'!G86 -> 0 | H82: ='F_Inputs BP'!H86 ->  | I82: ='F_Inputs BP'!I86 ->  | J82: ='F_Inputs BP'!J86 ->  | K82: ='F_Inputs BP'!K86 ->  | L82: ='F_Inputs BP'!L86 ->  | M82: 0.014926
A83: ='F_Inputs BP'!A87 -> SEW | B83: ='F_Inputs BP'!B87 -> CW17_117TOT_PR24 | C83: ='F_Inputs BP'!C87 -> Water resilience and security - Resilience; enhancement water totex - Total | D83: ='F_Inputs BP'!D87 -> £m | E83: ='F_Inputs BP'!E87 -> Price Review 2024 | F83: ='F_Inputs BP'!F87 -> 0 | G83: ='F_Inputs BP'!G87 -> 0 | H83: ='F_Inputs BP'!H87 -> 0 | I83: ='F_Inputs BP'!I87 -> 0 | J83: ='F_Inputs BP'!J87 -> 0 | K83: ='F_Inputs BP'!K87 -> 0 | L83: ='F_Inputs BP'!L87 -> 0 | M83: 0
A84: ='F_Inputs BP'!A88 -> SEW | B84: ='F_Inputs BP'!B88 -> CW3_120TOT_PR24 | C84: ='F_Inputs BP'!C88 -> Water resilience and security - Resilience; enhancement water totex - Total | D84: ='F_Inputs BP'!D88 -> £m | E84: ='F_Inputs BP'!E88 -> Price Review 2024 | F84: ='F_Inputs BP'!F88 -> 8.291949046 | G84: ='F_Inputs BP'!G88 -> 1.225413092 | H84: ='F_Inputs BP'!H88 -> 16.25171072 | I84: ='F_Inputs BP'!I88 -> 38.17596345 | J84: ='F_Inputs BP'!J88 -> 46.52084265 | K84: ='F_Inputs BP'!K88 -> 61.61853722 | L84: ='F_Inputs BP'!L88 -> 57.51865902 | M84: 229.6030752
A85: ='F_Inputs BP'!A89 -> SEW | B85: ='F_Inputs BP'!B89 -> POSTREALL_CW3_120TOT_PR24 | C85: ='F_Inputs BP'!C89 -> Water resilience and security - Resilience; enhancement water totex - Total - Post reallocation | D85: ='F_Inputs BP'!D89 -> £m | E85: ='F_Inputs BP'!E89 -> Price Review 2024 | F85: ='F_Inputs BP'!F89 ->  | G85: ='F_Inputs BP'!G89 ->  | H85: ='F_Inputs BP'!H89 -> 10.56980937 | I85: ='F_Inputs BP'!I89 -> 28.57234344 | J85: ='F_Inputs BP'!J89 -> 35.41338621 | K85: ='F_Inputs BP'!K89 -> 48.2062662 | L85: ='F_Inputs BP'!L89 -> 44.85390785 | M85: 167.6157131
A86: ='F_Inputs BP'!A90 -> SEW | B86: ='F_Inputs BP'!B90 -> CW3_149TOT_PR24 | C86: ='F_Inputs BP'!C90 -> Resilience interconnectors; enhancement water totex - Total | D86: ='F_Inputs BP'!D90 -> £m | E86: ='F_Inputs BP'!E90 -> Price Review 2024 | F86: ='F_Inputs BP'!F90 ->  | G86: ='F_Inputs BP'!G90 ->  | H86: ='F_Inputs BP'!H90 ->  | I86: ='F_Inputs BP'!I90 ->  | J86: ='F_Inputs BP'!J90 ->  | K86: ='F_Inputs BP'!K90 ->  | L86: ='F_Inputs BP'!L90 ->  | M86: 0
A87: ='F_Inputs BP'!A91 -> SEW | B87: ='F_Inputs BP'!B91 -> POSTREALL_CW3_149TOT_PR24 | C87: ='F_Inputs BP'!C91 -> Resilience interconnectors; enhancement water totex - Total - Post reallocation | D87: ='F_Inputs BP'!D91 -> £m | E87: ='F_Inputs BP'!E91 -> Price Review 2024 | F87: ='F_Inputs BP'!F91 ->  | G87: ='F_Inputs BP'!G91 ->  | H87: ='F_Inputs BP'!H91 -> 9.022901353 | I87: ='F_Inputs BP'!I91 -> 20.93262001 | J87: ='F_Inputs BP'!J91 -> 27.45545644 | K87: ='F_Inputs BP'!K91 -> 39.63527102 | L87: ='F_Inputs BP'!L91 -> 31.73075117 | M87: =SUM(F87:L87) -> 128.777
A88: ='F_Inputs BP'!A92 -> SSC | B88: ='F_Inputs BP'!B92 -> CW12_117TOT_PR24 | C88: ='F_Inputs BP'!C92 -> Water resilience and security - Resilience; enhancement water totex - Total | D88: ='F_Inputs BP'!D92 -> £m | E88: ='F_Inputs BP'!E92 -> Price Review 2024 | F88: ='F_Inputs BP'!F92 -> 0 | G88: ='F_Inputs BP'!G92 -> 0 | H88: ='F_Inputs BP'!H92 ->  | I88: ='F_Inputs BP'!I92 ->  | J88: ='F_Inputs BP'!J92 ->  | K88: ='F_Inputs BP'!K92 ->  | L88: ='F_Inputs BP'!L92 ->  | M88: 0
A89: ='F_Inputs BP'!A93 -> SSC | B89: ='F_Inputs BP'!B93 -> CW17_117TOT_PR24 | C89: ='F_Inputs BP'!C93 -> Water resilience and security - Resilience; enhancement water totex - Total | D89: ='F_Inputs BP'!D93 -> £m | E89: ='F_Inputs BP'!E93 -> Price Review 2024 | F89: ='F_Inputs BP'!F93 -> 0 | G89: ='F_Inputs BP'!G93 -> 0 | H89: ='F_Inputs BP'!H93 -> 0 | I89: ='F_Inputs BP'!I93 -> 0 | J89: ='F_Inputs BP'!J93 -> 0 | K89: ='F_Inputs BP'!K93 -> 0 | L89: ='F_Inputs BP'!L93 -> 0 | M89: 0
A90: ='F_Inputs BP'!A94 -> SSC | B90: ='F_Inputs BP'!B94 -> CW3_120TOT_PR24 | C90: ='F_Inputs BP'!C94 -> Water resilience and security - Resilience; enhancement water totex - Total | D90: ='F_Inputs BP'!D94 -> £m | E90: ='F_Inputs BP'!E94 -> Price Review 2024 | F90: ='F_Inputs BP'!F94 -> 0.68 | G90: ='F_Inputs BP'!G94 -> 0 | H90: ='F_Inputs BP'!H94 -> 2.06821335 | I90: ='F_Inputs BP'!I94 -> 2.878261422 | J90: ='F_Inputs BP'!J94 -> 4.531646636 | K90: ='F_Inputs BP'!K94 -> 4.262726591 | L90: ='F_Inputs BP'!L94 -> 1.382249998 | M90: 15.803098
A91: ='F_Inputs BP'!A95 -> SSC | B91: ='F_Inputs BP'!B95 -> POSTREALL_CW3_120TOT_PR24 | C91: ='F_Inputs BP'!C95 -> Water resilience and security - Resilience; enhancement water totex - Total - Post reallocation | D91: ='F_Inputs BP'!D95 -> £m | E91: ='F_Inputs BP'!E95 -> Price Review 2024 | F91: ='F_Inputs BP'!F95 ->  | G91: ='F_Inputs BP'!G95 ->  | H91: ='F_Inputs BP'!H95 -> 1.60021335 | I91: ='F_Inputs BP'!I95 -> 1.844261422 | J91: ='F_Inputs BP'!J95 -> 2.496646636 | K91: ='F_Inputs BP'!K95 -> 1.691726591 | L91: ='F_Inputs BP'!L95 -> 0.312249998 | M91: 7.945097997
A92: ='F_Inputs BP'!A96 -> SSC | B92: ='F_Inputs BP'!B96 -> CW3_149TOT_PR24 | C92: ='F_Inputs BP'!C96 -> Resilience interconnectors; enhancement water totex - Total | D92: ='F_Inputs BP'!D96 -> £m | E92: ='F_Inputs BP'!E96 -> Price Review 2024 | F92: ='F_Inputs BP'!F96 ->  | G92: ='F_Inputs BP'!G96 ->  | H92: ='F_Inputs BP'!H96 ->  | I92: ='F_Inputs BP'!I96 ->  | J92: ='F_Inputs BP'!J96 ->  | K92: ='F_Inputs BP'!K96 ->  | L92: ='F_Inputs BP'!L96 ->  | M92: 0
A93: ='F_Inputs BP'!A97 -> SSC | B93: ='F_Inputs BP'!B97 -> POSTREALL_CW3_149TOT_PR24 | C93: ='F_Inputs BP'!C97 -> Resilience interconnectors; enhancement water totex - Total - Post reallocation | D93: ='F_Inputs BP'!D97 -> £m | E93: ='F_Inputs BP'!E97 -> Price Review 2024 | F93: ='F_Inputs BP'!F97 ->  | G93: ='F_Inputs BP'!G97 ->  | H93: ='F_Inputs BP'!H97 -> 0.468 | I93: ='F_Inputs BP'!I97 -> 1.034 | J93: ='F_Inputs BP'!J97 -> 2.035 | K93: ='F_Inputs BP'!K97 -> 2.571 | L93: ='F_Inputs BP'!L97 -> 1.07 | M93: 7.178
A94: ='F_Inputs BP'!A98 -> SST | B94: ='F_Inputs BP'!B98 -> CW12_117TOT_PR24 | C94: ='F_Inputs BP'!C98 -> Water resilience and security - Resilience; enhancement water totex - Total | D94: ='F_Inputs BP'!D98 -> £m | E94: ='F_Inputs BP'!E98 -> Price Review 2024 | F94: ='F_Inputs BP'!F98 ->  | G94: ='F_Inputs BP'!G98 ->  | H94: ='F_Inputs BP'!H98 ->  | I94: ='F_Inputs BP'!I98 ->  | J94: ='F_Inputs BP'!J98 ->  | K94: ='F_Inputs BP'!K98 ->  | L94: ='F_Inputs BP'!L98 ->  | M94: 0
A95: ='F_Inputs BP'!A99 -> SST | B95: ='F_Inputs BP'!B99 -> CW17_117TOT_PR24 | C95: ='F_Inputs BP'!C99 -> Water resilience and security - Resilience; enhancement water totex - Total | D95: ='F_Inputs BP'!D99 -> £m | E95: ='F_Inputs BP'!E99 -> Price Review 2024 | F95: ='F_Inputs BP'!F99 ->  | G95: ='F_Inputs BP'!G99 ->  | H95: ='F_Inputs BP'!H99 ->  | I95: ='F_Inputs BP'!I99 ->  | J95: ='F_Inputs BP'!J99 ->  | K95: ='F_Inputs BP'!K99 ->  | L95: ='F_Inputs BP'!L99 ->  | M95: 0
A96: ='F_Inputs BP'!A100 -> SES | B96: ='F_Inputs BP'!B100 -> CW12_117TOT_PR24 | C96: ='F_Inputs BP'!C100 -> Water resilience and security - Resilience; enhancement water totex - Total | D96: ='F_Inputs BP'!D100 -> £m | E96: ='F_Inputs BP'!E100 -> Price Review 2024 | F96: ='F_Inputs BP'!F100 -> 0 | G96: ='F_Inputs BP'!G100 -> 0 | H96: ='F_Inputs BP'!H100 ->  | I96: ='F_Inputs BP'!I100 ->  | J96: ='F_Inputs BP'!J100 ->  | K96: ='F_Inputs BP'!K100 ->  | L96: ='F_Inputs BP'!L100 ->  | M96: =SUM(F96:L96) -> 0
A97: ='F_Inputs BP'!A101 -> SES | B97: ='F_Inputs BP'!B101 -> CW17_117TOT_PR24 | C97: ='F_Inputs BP'!C101 -> Water resilience and security - Resilience; enhancement water totex - Total | D97: ='F_Inputs BP'!D101 -> £m | E97: ='F_Inputs BP'!E101 -> Price Review 2024 | F97: ='F_Inputs BP'!F101 -> 0 | G97: ='F_Inputs BP'!G101 -> 0 | H97: ='F_Inputs BP'!H101 -> 0 | I97: ='F_Inputs BP'!I101 -> 0 | J97: ='F_Inputs BP'!J101 -> 0 | K97: ='F_Inputs BP'!K101 -> 0 | L97: ='F_Inputs BP'!L101 -> 0 | M97: 0
A98: ='F_Inputs BP'!A102 -> SES | B98: ='F_Inputs BP'!B102 -> CW3_120TOT_PR24 | C98: ='F_Inputs BP'!C102 -> Water resilience and security - Resilience; enhancement water totex - Total | D98: ='F_Inputs BP'!D102 -> £m | E98: ='F_Inputs BP'!E102 -> Price Review 2024 | F98: ='F_Inputs BP'!F102 -> 0 | G98: ='F_Inputs BP'!G102 -> 0 | H98: ='F_Inputs BP'!H102 -> 0.447 | I98: ='F_Inputs BP'!I102 -> 0.4323 | J98: ='F_Inputs BP'!J102 -> 0.6888 | K98: ='F_Inputs BP'!K102 -> 1.389 | L98: ='F_Inputs BP'!L102 -> 1.4004 | M98: 4.3575
A99: ='F_Inputs BP'!A103 -> SES | B99: ='F_Inputs BP'!B103 -> POSTREALL_CW3_120TOT_PR24 | C99: ='F_Inputs BP'!C103 -> Water resilience and security - Resilience; enhancement water totex - Total - Post reallocation | D99: ='F_Inputs BP'!D103 -> £m | E99: ='F_Inputs BP'!E103 -> Price Review 2024 | F99: ='F_Inputs BP'!F103 ->  | G99: ='F_Inputs BP'!G103 ->  | H99: ='F_Inputs BP'!H103 -> 0.372 | I99: ='F_Inputs BP'!I103 -> 0.3073 | J99: ='F_Inputs BP'!J103 -> 0.5538 | K99: ='F_Inputs BP'!K103 -> 1.289 | L99: ='F_Inputs BP'!L103 -> 1.3254 | M99: 3.8475
A100: ='F_Inputs BP'!A104 -> SES | B100: ='F_Inputs BP'!B104 -> CW3_149TOT_PR24 | C100: ='F_Inputs BP'!C104 -> Resilience interconnectors; enhancement water totex - Total | D100: ='F_Inputs BP'!D104 -> £m | E100: ='F_Inputs BP'!E104 -> Price Review 2024 | F100: ='F_Inputs BP'!F104 ->  | G100: ='F_Inputs BP'!G104 ->  | H100: ='F_Inputs BP'!H104 ->  | I100: ='F_Inputs BP'!I104 ->  | J100: ='F_Inputs BP'!J104 ->  | K100: ='F_Inputs BP'!K104 ->  | L100: ='F_Inputs BP'!L104 ->  | M100: 0
A101: ='F_Inputs BP'!A105 -> SES | B101: ='F_Inputs BP'!B105 -> POSTREALL_CW3_149TOT_PR24 | C101: ='F_Inputs BP'!C105 -> Resilience interconnectors; enhancement water totex - Total - Post reallocation | D101: ='F_Inputs BP'!D105 -> £m | E101: ='F_Inputs BP'!E105 -> Price Review 2024 | F101: ='F_Inputs BP'!F105 ->  | G101: ='F_Inputs BP'!G105 ->  | H101: ='F_Inputs BP'!H105 -> 0.075 | I101: ='F_Inputs BP'!I105 -> 0.125 | J101: ='F_Inputs BP'!J105 -> 0.135 | K101: ='F_Inputs BP'!K105 -> 0.1 | L101: ='F_Inputs BP'!L105 -> 0.075 | M101: 0.51

Sheet F_Input Override
A1: =RIGHT(CELL("filename", $A$1), LEN(CELL("filename", $A$1)) - SEARCH("]", CELL("filename", $A$1))) -> 
A3: Acronym | B3: BON code | C3: Item description | D3: Unit | E3: Model | F3: 2023-24 | G3: 2024-25 | H3: 2025-26 | I3: 2026-27 | J3: 2027-28 | K3: 2028-29 | L3: 2029-30 | M3: Reason for override
A4: ='F_Inputs BP'!A8 -> ANH | B4: ='F_Inputs BP'!B8 -> CW12_117TOT_PR24 | C4: ='F_Inputs BP'!C8 -> Water resilience and security - Resilience; enhancement water totex - Total | D4: ='F_Inputs BP'!D8 -> £m | E4: ='F_Inputs BP'!E8 -> Price Review 2024
A5: ='F_Inputs BP'!A9 -> ANH | B5: ='F_Inputs BP'!B9 -> CW17_117TOT_PR24 | C5: ='F_Inputs BP'!C9 -> Water resilience and security - Resilience; enhancement water totex - Total | D5: ='F_Inputs BP'!D9 -> £m | E5: ='F_Inputs BP'!E9 -> Price Review 2024
A6: ='F_Inputs BP'!A10 -> ANH | B6: ='F_Inputs BP'!B10 -> CW3_120TOT_PR24 | C6: ='F_Inputs BP'!C10 -> Water resilience and security - Resilience; enhancement water totex - Total | D6: ='F_Inputs BP'!D10 -> £m | E6: ='F_Inputs BP'!E10 -> Price Review 2024
A7: ='F_Inputs BP'!A11 -> ANH | B7: ='F_Inputs BP'!B11 -> POSTREALL_CW3_120TOT_PR24 | C7: ='F_Inputs BP'!C11 -> Water resilience and security - Resilience; enhancement water totex - Total - Post reallocation | D7: ='F_Inputs BP'!D11 -> £m | E7: ='F_Inputs BP'!E11 -> Price Review 2024
A8: ='F_Inputs BP'!A12 -> ANH | B8: ='F_Inputs BP'!B12 -> CW3_149TOT_PR24 | C8: ='F_Inputs BP'!C12 -> Resilience interconnectors; enhancement water totex - Total | D8: ='F_Inputs BP'!D12 -> £m | E8: ='F_Inputs BP'!E12 -> Price Review 2024
A9: ='F_Inputs BP'!A13 -> ANH | B9: ='F_Inputs BP'!B13 -> POSTREALL_CW3_149TOT_PR24 | C9: ='F_Inputs BP'!C13 -> Resilience interconnectors; enhancement water totex - Total - Post reallocation | D9: ='F_Inputs BP'!D13 -> £m | E9: ='F_Inputs BP'!E13 -> Price Review 2024
A10: ='F_Inputs BP'!A14 -> WSH | B10: ='F_Inputs BP'!B14 -> CW12_117TOT_PR24 | C10: ='F_Inputs BP'!C14 -> Water resilience and security - Resilience; enhancement water totex - Total | D10: ='F_Inputs BP'!D14 -> £m | E10: ='F_Inputs BP'!E14 -> Price Review 2024
A11: ='F_Inputs BP'!A15 -> WSH | B11: ='F_Inputs BP'!B15 -> CW17_117TOT_PR24 | C11: ='F_Inputs BP'!C15 -> Water resilience and security - Resilience; enhancement water totex - Total | D11: ='F_Inputs BP'!D15 -> £m | E11: ='F_Inputs BP'!E15 -> Price Review 2024
A12: ='F_Inputs BP'!A16 -> WSH | B12: ='F_Inputs BP'!B16 -> CW3_120TOT_PR24 | C12: ='F_Inputs BP'!C16 -> Water resilience and security - Resilience; enhancement water totex - Total | D12: ='F_Inputs BP'!D16 -> £m | E12: ='F_Inputs BP'!E16 -> Price Review 2024
A13: ='F_Inputs BP'!A17 -> WSH | B13: ='F_Inputs BP'!B17 -> POSTREALL_CW3_120TOT_PR24 | C13: ='F_Inputs BP'!C17 -> Water resilience and security - Resilience; enhancement water totex - Total - Post reallocation | D13: ='F_Inputs BP'!D17 -> £m | E13: ='F_Inputs BP'!E17 -> Price Review 2024
A14: ='F_Inputs BP'!A18 -> WSH | B14: ='F_Inputs BP'!B18 -> CW3_149TOT_PR24 | C14: ='F_Inputs BP'!C18 -> Resilience interconnectors; enhancement water totex - Total | D14: ='F_Inputs BP'!D18 -> £m | E14: ='F_Inputs BP'!E18 -> Price Review 2024 | L14: ='F_Inputs BP'!L18 -> 
A15: ='F_Inputs BP'!A19 -> WSH | B15: ='F_Inputs BP'!B19 -> POSTREALL_CW3_149TOT_PR24 | C15: ='F_Inputs BP'!C19 -> Resilience interconnectors; enhancement water totex - Total - Post reallocation | D15: ='F_Inputs BP'!D19 -> £m | E15: ='F_Inputs BP'!E19 -> Price Review 2024
A16: ='F_Inputs BP'!A20 -> HDD | B16: ='F_Inputs BP'!B20 -> CW12_117TOT_PR24 | C16: ='F_Inputs BP'!C20 -> Water resilience and security - Resilience; enhancement water totex - Total | D16: ='F_Inputs BP'!D20 -> £m | E16: ='F_Inputs BP'!E20 -> Price Review 2024
A17: ='F_Inputs BP'!A21 -> HDD | B17: ='F_Inputs BP'!B21 -> CW17_117TOT_PR24 | C17: ='F_Inputs BP'!C21 -> Water resilience and security - Resilience; enhancement water totex - Total | D17: ='F_Inputs BP'!D21 -> £m | E17: ='F_Inputs BP'!E21 -> Price Review 2024
A18: ='F_Inputs BP'!A22 -> HDD | B18: ='F_Inputs BP'!B22 -> CW3_120TOT_PR24 | C18: ='F_Inputs BP'!C22 -> Water resilience and security - Resilience; enhancement water totex - Total | D18: ='F_Inputs BP'!D22 -> £m | E18: ='F_Inputs BP'!E22 -> Price Review 2024
A19: ='F_Inputs BP'!A23 -> HDD | B19: ='F_Inputs BP'!B23 -> POSTREALL_CW3_120TOT_PR24 | C19: ='F_Inputs BP'!C23 -> Water resilience and security - Resilience; enhancement water totex - Total - Post reallocation | D19: ='F_Inputs BP'!D23 -> £m | E19: ='F_Inputs BP'!E23 -> Price Review 2024
A20: ='F_Inputs BP'!A24 -> HDD | B20: ='F_Inputs BP'!B24 -> CW3_149TOT_PR24 | C20: ='F_Inputs BP'!C24 -> Resilience interconnectors; enhancement water totex - Total | D20: ='F_Inputs BP'!D24 -> £m | E20: ='F_Inputs BP'!E24 -> Price Review 2024 | L20: ='F_Inputs BP'!L24 -> 
A21: ='F_Inputs BP'!A25 -> HDD | B21: ='F_Inputs BP'!B25 -> POSTREALL_CW3_149TOT_PR24 | C21: ='F_Inputs BP'!C25 -> Resilience interconnectors; enhancement water totex - Total - Post reallocation | D21: ='F_Inputs BP'!D25 -> £m | E21: ='F_Inputs BP'!E25 -> Price Review 2024
A22: ='F_Inputs BP'!A26 -> NES | B22: ='F_Inputs BP'!B26 -> CW12_117TOT_PR24 | C22: ='F_Inputs BP'!C26 -> Water resilience and security - Resilience; enhancement water totex - Total | D22: ='F_Inputs BP'!D26 -> £m | E22: ='F_Inputs BP'!E26 -> Price Review 2024
A23: ='F_Inputs BP'!A27 -> NES | B23: ='F_Inputs BP'!B27 -> CW17_117TOT_PR24 | C23: ='F_Inputs BP'!C27 -> Water resilience and security - Resilience; enhancement water totex - Total | D23: ='F_Inputs BP'!D27 -> £m | E23: ='F_Inputs BP'!E27 -> Price Review 2024
A24: ='F_Inputs BP'!A28 -> NES | B24: ='F_Inputs BP'!B28 -> CW3_120TOT_PR24 | C24: ='F_Inputs BP'!C28 -> Water resilience and security - Resilience; enhancement water totex - Total | D24: ='F_Inputs BP'!D28 -> £m | E24: ='F_Inputs BP'!E28 -> Price Review 2024
A25: ='F_Inputs BP'!A29 -> NES | B25: ='F_Inputs BP'!B29 -> POSTREALL_CW3_120TOT_PR24 | C25: ='F_Inputs BP'!C29 -> Water resilience and security - Resilience; enhancement water totex - Total - Post reallocation | D25: ='F_Inputs BP'!D29 -> £m | E25: ='F_Inputs BP'!E29 -> Price Review 2024
A26: ='F_Inputs BP'!A30 -> NES | B26: ='F_Inputs BP'!B30 -> CW3_149TOT_PR24 | C26: ='F_Inputs BP'!C30 -> Resilience interconnectors; enhancement water totex - Total | D26: ='F_Inputs BP'!D30 -> £m | E26: ='F_Inputs BP'!E30 -> Price Review 2024 | L26: ='F_Inputs BP'!L30 -> 
A27: ='F_Inputs BP'!A31 -> NES | B27: ='F_Inputs BP'!B31 -> POSTREALL_CW3_149TOT_PR24 | C27: ='F_Inputs BP'!C31 -> Resilience interconnectors; enhancement water totex - Total - Post reallocation | D27: ='F_Inputs BP'!D31 -> £m | E27: ='F_Inputs BP'!E31 -> Price Review 2024
A28: ='F_Inputs BP'!A32 -> SVE | B28: ='F_Inputs BP'!B32 -> CW12_117TOT_PR24 | C28: ='F_Inputs BP'!C32 -> Water resilience and security - Resilience; enhancement water totex - Total | D28: ='F_Inputs BP'!D32 -> £m | E28: ='F_Inputs BP'!E32 -> Price Review 2024 | F28: 0 | G28: 0 | M28: Override to remove transitional cost due to cost update as a result of a query ref. OFW-REP-SVE-031.
A29: ='F_Inputs BP'!A33 -> SVE | B29: ='F_Inputs BP'!B33 -> CW17_117TOT_PR24 | C29: ='F_Inputs BP'!C33 -> Water resilience and security - Resilience; enhancement water totex - Total | D29: ='F_Inputs BP'!D33 -> £m | E29: ='F_Inputs BP'!E33 -> Price Review 2024
A30: ='F_Inputs BP'!A34 -> SVE | B30: ='F_Inputs BP'!B34 -> CW3_120TOT_PR24 | C30: ='F_Inputs BP'!C34 -> Water resilience and security - Resilience; enhancement water totex - Total | D30: ='F_Inputs BP'!D34 -> £m | E30: ='F_Inputs BP'!E34 -> Price Review 2024
A31: ='F_Inputs BP'!A35 -> SVE | B31: ='F_Inputs BP'!B35 -> POSTREALL_CW3_120TOT_PR24 | C31: ='F_Inputs BP'!C35 -> Water resilience and security - Resilience; enhancement water totex - Total - Post reallocation | D31: ='F_Inputs BP'!D35 -> £m | E31: ='F_Inputs BP'!E35 -> Price Review 2024
A32: ='F_Inputs BP'!A36 -> SVE | B32: ='F_Inputs BP'!B36 -> CW3_149TOT_PR24 | C32: ='F_Inputs BP'!C36 -> Resilience interconnectors; enhancement water totex - Total | D32: ='F_Inputs BP'!D36 -> £m | E32: ='F_Inputs BP'!E36 -> Price Review 2024 | L32: ='F_Inputs BP'!L36 -> 
A33: ='F_Inputs BP'!A37 -> SVE | B33: ='F_Inputs BP'!B37 -> POSTREALL_CW3_149TOT_PR24 | C33: ='F_Inputs BP'!C37 -> Resilience interconnectors; enhancement water totex - Total - Post reallocation | D33: ='F_Inputs BP'!D37 -> £m | E33: ='F_Inputs BP'!E37 -> Price Review 2024 | F33: 0.877 | G33: 4.173 | M33: Cost update for 2023/24 and 2024/25 as a result of a query ref. OFW-REP-SVE-031.
A34: ='F_Inputs BP'!A38 -> SWB | B34: ='F_Inputs BP'!B38 -> CW12_117TOT_PR24 | C34: ='F_Inputs BP'!C38 -> Water resilience and security - Resilience; enhancement water totex - Total | D34: ='F_Inputs BP'!D38 -> £m | E34: ='F_Inputs BP'!E38 -> Price Review 2024
A35: ='F_Inputs BP'!A39 -> SWB | B35: ='F_Inputs BP'!B39 -> CW17_117TOT_PR24 | C35: ='F_Inputs BP'!C39 -> Water resilience and security - Resilience; enhancement water totex - Total | D35: ='F_Inputs BP'!D39 -> £m | E35: ='F_Inputs BP'!E39 -> Price Review 2024
A36: ='F_Inputs BP'!A40 -> SWB | B36: ='F_Inputs BP'!B40 -> CW3_120TOT_PR24 | C36: ='F_Inputs BP'!C40 -> Water resilience and security - Resilience; enhancement water totex - Total | D36: ='F_Inputs BP'!D40 -> £m | E36: ='F_Inputs BP'!E40 -> Price Review 2024
A37: ='F_Inputs BP'!A41 -> SWB | B37: ='F_Inputs BP'!B41 -> POSTREALL_CW3_120TOT_PR24 | C37: ='F_Inputs BP'!C41 -> Water resilience and security - Resilience; enhancement water totex - Total - Post reallocation | D37: ='F_Inputs BP'!D41 -> £m | E37: ='F_Inputs BP'!E41 -> Price Review 2024
A38: ='F_Inputs BP'!A42 -> SWB | B38: ='F_Inputs BP'!B42 -> CW3_149TOT_PR24 | C38: ='F_Inputs BP'!C42 -> Resilience interconnectors; enhancement water totex - Total | D38: ='F_Inputs BP'!D42 -> £m | E38: ='F_Inputs BP'!E42 -> Price Review 2024 | L38: ='F_Inputs BP'!L42 -> 
A39: ='F_Inputs BP'!A43 -> SWB | B39: ='F_Inputs BP'!B43 -> POSTREALL_CW3_149TOT_PR24 | C39: ='F_Inputs BP'!C43 -> Resilience interconnectors; enhancement water totex - Total - Post reallocation | D39: ='F_Inputs BP'!D43 -> £m | E39: ='F_Inputs BP'!E43 -> Price Review 2024
A40: ='F_Inputs BP'!A44 -> SRN | B40: ='F_Inputs BP'!B44 -> CW12_117TOT_PR24 | C40: ='F_Inputs BP'!C44 -> Water resilience and security - Resilience; enhancement water totex - Total | D40: ='F_Inputs BP'!D44 -> £m | E40: ='F_Inputs BP'!E44 -> Price Review 2024
A41: ='F_Inputs BP'!A45 -> SRN | B41: ='F_Inputs BP'!B45 -> CW17_117TOT_PR24 | C41: ='F_Inputs BP'!C45 -> Water resilience and security - Resilience; enhancement water totex - Total | D41: ='F_Inputs BP'!D45 -> £m | E41: ='F_Inputs BP'!E45 -> Price Review 2024
A42: ='F_Inputs BP'!A46 -> SRN | B42: ='F_Inputs BP'!B46 -> CW3_120TOT_PR24 | C42: ='F_Inputs BP'!C46 -> Water resilience and security - Resilience; enhancement water totex - Total | D42: ='F_Inputs BP'!D46 -> £m | E42: ='F_Inputs BP'!E46 -> Price Review 2024
A43: ='F_Inputs BP'!A47 -> SRN | B43: ='F_Inputs BP'!B47 -> POSTREALL_CW3_120TOT_PR24 | C43: ='F_Inputs BP'!C47 -> Water resilience and security - Resilience; enhancement water totex - Total - Post reallocation | D43: ='F_Inputs BP'!D47 -> £m | E43: ='F_Inputs BP'!E47 -> Price Review 2024
A44: ='F_Inputs BP'!A48 -> SRN | B44: ='F_Inputs BP'!B48 -> CW3_149TOT_PR24 | C44: ='F_Inputs BP'!C48 -> Resilience interconnectors; enhancement water totex - Total | D44: ='F_Inputs BP'!D48 -> £m | E44: ='F_Inputs BP'!E48 -> Price Review 2024 | L44: ='F_Inputs BP'!L48 -> 
A45: ='F_Inputs BP'!A49 -> SRN | B45: ='F_Inputs BP'!B49 -> POSTREALL_CW3_149TOT_PR24 | C45: ='F_Inputs BP'!C49 -> Resilience interconnectors; enhancement water totex - Total - Post reallocation | D45: ='F_Inputs BP'!D49 -> £m | E45: ='F_Inputs BP'!E49 -> Price Review 2024
A46: ='F_Inputs BP'!A50 -> TMS | B46: ='F_Inputs BP'!B50 -> CW12_117TOT_PR24 | C46: ='F_Inputs BP'!C50 -> Water resilience and security - Resilience; enhancement water totex - Total | D46: ='F_Inputs BP'!D50 -> £m | E46: ='F_Inputs BP'!E50 -> Price Review 2024
A47: ='F_Inputs BP'!A51 -> TMS | B47: ='F_Inputs BP'!B51 -> CW17_117TOT_PR24 | C47: ='F_Inputs BP'!C51 -> Water resilience and security - Resilience; enhancement water totex - Total | D47: ='F_Inputs BP'!D51 -> £m | E47: ='F_Inputs BP'!E51 -> Price Review 2024
A48: ='F_Inputs BP'!A52 -> TMS | B48: ='F_Inputs BP'!B52 -> CW3_120TOT_PR24 | C48: ='F_Inputs BP'!C52 -> Water resilience and security - Resilience; enhancement water totex - Total | D48: ='F_Inputs BP'!D52 -> £m | E48: ='F_Inputs BP'!E52 -> Price Review 2024
A49: ='F_Inputs BP'!A53 -> TMS | B49: ='F_Inputs BP'!B53 -> POSTREALL_CW3_120TOT_PR24 | C49: ='F_Inputs BP'!C53 -> Water resilience and security - Resilience; enhancement water totex - Total - Post reallocation | D49: ='F_Inputs BP'!D53 -> £m | E49: ='F_Inputs BP'!E53 -> Price Review 2024
A50: ='F_Inputs BP'!A54 -> TMS | B50: ='F_Inputs BP'!B54 -> CW3_149TOT_PR24 | C50: ='F_Inputs BP'!C54 -> Resilience interconnectors; enhancement water totex - Total | D50: ='F_Inputs BP'!D54 -> £m | E50: ='F_Inputs BP'!E54 -> Price Review 2024 | L50: ='F_Inputs BP'!L54 -> 
A51: ='F_Inputs BP'!A55 -> TMS | B51: ='F_Inputs BP'!B55 -> POSTREALL_CW3_149TOT_PR24 | C51: ='F_Inputs BP'!C55 -> Resilience interconnectors; enhancement water totex - Total - Post reallocation | D51: ='F_Inputs BP'!D55 -> £m | E51: ='F_Inputs BP'!E55 -> Price Review 2024
A52: ='F_Inputs BP'!A56 -> WSX | B52: ='F_Inputs BP'!B56 -> CW12_117TOT_PR24 | C52: ='F_Inputs BP'!C56 -> Water resilience and security - Resilience; enhancement water totex - Total | D52: ='F_Inputs BP'!D56 -> £m | E52: ='F_Inputs BP'!E56 -> Price Review 2024
A53: ='F_Inputs BP'!A57 -> WSX | B53: ='F_Inputs BP'!B57 -> CW17_117TOT_PR24 | C53: ='F_Inputs BP'!C57 -> Water resilience and security - Resilience; enhancement water totex - Total | D53: ='F_Inputs BP'!D57 -> £m | E53: ='F_Inputs BP'!E57 -> Price Review 2024
A54: ='F_Inputs BP'!A58 -> WSX | B54: ='F_Inputs BP'!B58 -> CW3_120TOT_PR24 | C54: ='F_Inputs BP'!C58 -> Water resilience and security - Resilience; enhancement water totex - Total | D54: ='F_Inputs BP'!D58 -> £m | E54: ='F_Inputs BP'!E58 -> Price Review 2024
A55: ='F_Inputs BP'!A59 -> WSX | B55: ='F_Inputs BP'!B59 -> POSTREALL_CW3_120TOT_PR24 | C55: ='F_Inputs BP'!C59 -> Water resilience and security - Resilience; enhancement water totex - Total - Post reallocation | D55: ='F_Inputs BP'!D59 -> £m | E55: ='F_Inputs BP'!E59 -> Price Review 2024
A56: ='F_Inputs BP'!A60 -> WSX | B56: ='F_Inputs BP'!B60 -> CW3_149TOT_PR24 | C56: ='F_Inputs BP'!C60 -> Resilience interconnectors; enhancement water totex - Total | D56: ='F_Inputs BP'!D60 -> £m | E56: ='F_Inputs BP'!E60 -> Price Review 2024 | L56: ='F_Inputs BP'!L60 -> 
A57: ='F_Inputs BP'!A61 -> WSX | B57: ='F_Inputs BP'!B61 -> POSTREALL_CW3_149TOT_PR24 | C57: ='F_Inputs BP'!C61 -> Resilience interconnectors; enhancement water totex - Total - Post reallocation | D57: ='F_Inputs BP'!D61 -> £m | E57: ='F_Inputs BP'!E61 -> Price Review 2024
A58: ='F_Inputs BP'!A62 -> YKY | B58: ='F_Inputs BP'!B62 -> CW12_117TOT_PR24 | C58: ='F_Inputs BP'!C62 -> Water resilience and security - Resilience; enhancement water totex - Total | D58: ='F_Inputs BP'!D62 -> £m | E58: ='F_Inputs BP'!E62 -> Price Review 2024
A59: ='F_Inputs BP'!A63 -> YKY | B59: ='F_Inputs BP'!B63 -> CW17_117TOT_PR24 | C59: ='F_Inputs BP'!C63 -> Water resilience and security - Resilience; enhancement water totex - Total | D59: ='F_Inputs BP'!D63 -> £m | E59: ='F_Inputs BP'!E63 -> Price Review 2024
A60: ='F_Inputs BP'!A64 -> YKY | B60: ='F_Inputs BP'!B64 -> CW3_120TOT_PR24 | C60: ='F_Inputs BP'!C64 -> Water resilience and security - Resilience; enhancement water totex - Total | D60: ='F_Inputs BP'!D64 -> £m | E60: ='F_Inputs BP'!E64 -> Price Review 2024
A61: ='F_Inputs BP'!A65 -> YKY | B61: ='F_Inputs BP'!B65 -> POSTREALL_CW3_120TOT_PR24 | C61: ='F_Inputs BP'!C65 -> Water resilience and security - Resilience; enhancement water totex - Total - Post reallocation | D61: ='F_Inputs BP'!D65 -> £m | E61: ='F_Inputs BP'!E65 -> Price Review 2024
A62: ='F_Inputs BP'!A66 -> YKY | B62: ='F_Inputs BP'!B66 -> CW3_149TOT_PR24 | C62: ='F_Inputs BP'!C66 -> Resilience interconnectors; enhancement water totex - Total | D62: ='F_Inputs BP'!D66 -> £m | E62: ='F_Inputs BP'!E66 -> Price Review 2024 | L62: ='F_Inputs BP'!L66 -> 
A63: ='F_Inputs BP'!A67 -> YKY | B63: ='F_Inputs BP'!B67 -> POSTREALL_CW3_149TOT_PR24 | C63: ='F_Inputs BP'!C67 -> Resilience interconnectors; enhancement water totex - Total - Post reallocation | D63: ='F_Inputs BP'!D67 -> £m | E63: ='F_Inputs BP'!E67 -> Price Review 2024
A64: ='F_Inputs BP'!A68 -> AFW | B64: ='F_Inputs BP'!B68 -> CW12_117TOT_PR24 | C64: ='F_Inputs BP'!C68 -> Water resilience and security - Resilience; enhancement water totex - Total | D64: ='F_Inputs BP'!D68 -> £m | E64: ='F_Inputs BP'!E68 -> Price Review 2024 | F64: 0 | G64: 0 | H64: 0 | I64: 0 | J64: 0 | K64: 0 | L64: 0 | M64: Override to consolidate 7-year profile
A65: ='F_Inputs BP'!A69 -> AFW | B65: ='F_Inputs BP'!B69 -> CW17_117TOT_PR24 | C65: ='F_Inputs BP'!C69 -> Water resilience and security - Resilience; enhancement water totex - Total | D65: ='F_Inputs BP'!D69 -> £m | E65: ='F_Inputs BP'!E69 -> Price Review 2024
A66: ='F_Inputs BP'!A70 -> AFW | B66: ='F_Inputs BP'!B70 -> CW3_120TOT_PR24 | C66: ='F_Inputs BP'!C70 -> Water resilience and security - Resilience; enhancement water totex - Total | D66: ='F_Inputs BP'!D70 -> £m | E66: ='F_Inputs BP'!E70 -> Price Review 2024
A67: ='F_Inputs BP'!A71 -> AFW | B67: ='F_Inputs BP'!B71 -> POSTREALL_CW3_120TOT_PR24 | C67: ='F_Inputs BP'!C71 -> Water resilience and security - Resilience; enhancement water totex - Total - Post reallocation | D67: ='F_Inputs BP'!D71 -> £m | E67: ='F_Inputs BP'!E71 -> Price Review 2024
A68: ='F_Inputs BP'!A72 -> AFW | B68: ='F_Inputs BP'!B72 -> CW3_149TOT_PR24 | C68: ='F_Inputs BP'!C72 -> Resilience interconnectors; enhancement water totex - Total | D68: ='F_Inputs BP'!D72 -> £m | E68: ='F_Inputs BP'!E72 -> Price Review 2024 | L68: ='F_Inputs BP'!L72 -> 
A69: ='F_Inputs BP'!A73 -> AFW | B69: ='F_Inputs BP'!B73 -> POSTREALL_CW3_149TOT_PR24 | C69: ='F_Inputs BP'!C73 -> Resilience interconnectors; enhancement water totex - Total - Post reallocation | D69: ='F_Inputs BP'!D73 -> £m | E69: ='F_Inputs BP'!E73 -> Price Review 2024 | F69: 0.066 | G69: 0.245 | H69: 1.052 | I69: 2.043 | J69: 3.406 | K69: 4.083 | L69: 2.72 | M69: Override to consolidate transitional cost from CW12_117TOT_PR24 to POSTREALL_CW3_149TOT_PR24
A70: ='F_Inputs BP'!A74 -> BRL | B70: ='F_Inputs BP'!B74 -> CW12_117TOT_PR24 | C70: ='F_Inputs BP'!C74 -> Water resilience and security - Resilience; enhancement water totex - Total | D70: ='F_Inputs BP'!D74 -> £m | E70: ='F_Inputs BP'!E74 -> Price Review 2024
A71: ='F_Inputs BP'!A75 -> BRL | B71: ='F_Inputs BP'!B75 -> CW17_117TOT_PR24 | C71: ='F_Inputs BP'!C75 -> Water resilience and security - Resilience; enhancement water totex - Total | D71: ='F_Inputs BP'!D75 -> £m | E71: ='F_Inputs BP'!E75 -> Price Review 2024
A72: ='F_Inputs BP'!A76 -> BRL | B72: ='F_Inputs BP'!B76 -> CW3_120TOT_PR24 | C72: ='F_Inputs BP'!C76 -> Water resilience and security - Resilience; enhancement water totex - Total | D72: ='F_Inputs BP'!D76 -> £m | E72: ='F_Inputs BP'!E76 -> Price Review 2024
A73: ='F_Inputs BP'!A77 -> BRL | B73: ='F_Inputs BP'!B77 -> POSTREALL_CW3_120TOT_PR24 | C73: ='F_Inputs BP'!C77 -> Water resilience and security - Resilience; enhancement water totex - Total - Post reallocation | D73: ='F_Inputs BP'!D77 -> £m | E73: ='F_Inputs BP'!E77 -> Price Review 2024
A74: ='F_Inputs BP'!A78 -> BRL | B74: ='F_Inputs BP'!B78 -> CW3_149TOT_PR24 | C74: ='F_Inputs BP'!C78 -> Resilience interconnectors; enhancement water totex - Total | D74: ='F_Inputs BP'!D78 -> £m | E74: ='F_Inputs BP'!E78 -> Price Review 2024 | L74: ='F_Inputs BP'!L78 -> 
A75: ='F_Inputs BP'!A79 -> BRL | B75: ='F_Inputs BP'!B79 -> POSTREALL_CW3_149TOT_PR24 | C75: ='F_Inputs BP'!C79 -> Resilience interconnectors; enhancement water totex - Total - Post reallocation | D75: ='F_Inputs BP'!D79 -> £m | E75: ='F_Inputs BP'!E79 -> Price Review 2024
A76: ='F_Inputs BP'!A80 -> PRT | B76: ='F_Inputs BP'!B80 -> CW12_117TOT_PR24 | C76: ='F_Inputs BP'!C80 -> Water resilience and security - Resilience; enhancement water totex - Total | D76: ='F_Inputs BP'!D80 -> £m | E76: ='F_Inputs BP'!E80 -> Price Review 2024
A77: ='F_Inputs BP'!A81 -> PRT | B77: ='F_Inputs BP'!B81 -> CW17_117TOT_PR24 | C77: ='F_Inputs BP'!C81 -> Water resilience and security - Resilience; enhancement water totex - Total | D77: ='F_Inputs BP'!D81 -> £m | E77: ='F_Inputs BP'!E81 -> Price Review 2024
A78: ='F_Inputs BP'!A82 -> PRT | B78: ='F_Inputs BP'!B82 -> CW3_120TOT_PR24 | C78: ='F_Inputs BP'!C82 -> Water resilience and security - Resilience; enhancement water totex - Total | D78: ='F_Inputs BP'!D82 -> £m | E78: ='F_Inputs BP'!E82 -> Price Review 2024
A79: ='F_Inputs BP'!A83 -> PRT | B79: ='F_Inputs BP'!B83 -> POSTREALL_CW3_120TOT_PR24 | C79: ='F_Inputs BP'!C83 -> Water resilience and security - Resilience; enhancement water totex - Total - Post reallocation | D79: ='F_Inputs BP'!D83 -> £m | E79: ='F_Inputs BP'!E83 -> Price Review 2024
A80: ='F_Inputs BP'!A84 -> PRT | B80: ='F_Inputs BP'!B84 -> CW3_149TOT_PR24 | C80: ='F_Inputs BP'!C84 -> Resilience interconnectors; enhancement water totex - Total | D80: ='F_Inputs BP'!D84 -> £m | E80: ='F_Inputs BP'!E84 -> Price Review 2024 | L80: ='F_Inputs BP'!L84 -> 
A81: ='F_Inputs BP'!A85 -> PRT | B81: ='F_Inputs BP'!B85 -> POSTREALL_CW3_149TOT_PR24 | C81: ='F_Inputs BP'!C85 -> Resilience interconnectors; enhancement water totex - Total - Post reallocation | D81: ='F_Inputs BP'!D85 -> £m | E81: ='F_Inputs BP'!E85 -> Price Review 2024
A82: ='F_Inputs BP'!A86 -> SEW | B82: ='F_Inputs BP'!B86 -> CW12_117TOT_PR24 | C82: ='F_Inputs BP'!C86 -> Water resilience and security - Resilience; enhancement water totex - Total | D82: ='F_Inputs BP'!D86 -> £m | E82: ='F_Inputs BP'!E86 -> Price Review 2024 | F82: 0 | M82: Override to consolidate 7-year profile
A83: ='F_Inputs BP'!A87 -> SEW | B83: ='F_Inputs BP'!B87 -> CW17_117TOT_PR24 | C83: ='F_Inputs BP'!C87 -> Water resilience and security - Resilience; enhancement water totex - Total | D83: ='F_Inputs BP'!D87 -> £m | E83: ='F_Inputs BP'!E87 -> Price Review 2024
A84: ='F_Inputs BP'!A88 -> SEW | B84: ='F_Inputs BP'!B88 -> CW3_120TOT_PR24 | C84: ='F_Inputs BP'!C88 -> Water resilience and security - Resilience; enhancement water totex - Total | D84: ='F_Inputs BP'!D88 -> £m | E84: ='F_Inputs BP'!E88 -> Price Review 2024
A85: ='F_Inputs BP'!A89 -> SEW | B85: ='F_Inputs BP'!B89 -> POSTREALL_CW3_120TOT_PR24 | C85: ='F_Inputs BP'!C89 -> Water resilience and security - Resilience; enhancement water totex - Total - Post reallocation | D85: ='F_Inputs BP'!D89 -> £m | E85: ='F_Inputs BP'!E89 -> Price Review 2024
A86: ='F_Inputs BP'!A90 -> SEW | B86: ='F_Inputs BP'!B90 -> CW3_149TOT_PR24 | C86: ='F_Inputs BP'!C90 -> Resilience interconnectors; enhancement water totex - Total | D86: ='F_Inputs BP'!D90 -> £m | E86: ='F_Inputs BP'!E90 -> Price Review 2024 | L86: ='F_Inputs BP'!L90 -> 
A87: ='F_Inputs BP'!A91 -> SEW | B87: ='F_Inputs BP'!B91 -> POSTREALL_CW3_149TOT_PR24 | C87: ='F_Inputs BP'!C91 -> Resilience interconnectors; enhancement water totex - Total - Post reallocation | D87: ='F_Inputs BP'!D91 -> £m | E87: ='F_Inputs BP'!E91 -> Price Review 2024 | F87: 0.015 | H87: 11.12 | I87: 21.494 | J87: 29.004 | K87: 40.063 | L87: 27.087 | M87: Override to update 7-year profile - See OFW-REP-SEW-059
A88: ='F_Inputs BP'!A92 -> SSC | B88: ='F_Inputs BP'!B92 -> CW12_117TOT_PR24 | C88: ='F_Inputs BP'!C92 -> Water resilience and security - Resilience; enhancement water totex - Total | D88: ='F_Inputs BP'!D92 -> £m | E88: ='F_Inputs BP'!E92 -> Price Review 2024
A89: ='F_Inputs BP'!A93 -> SSC | B89: ='F_Inputs BP'!B93 -> CW17_117TOT_PR24 | C89: ='F_Inputs BP'!C93 -> Water resilience and security - Resilience; enhancement water totex - Total | D89: ='F_Inputs BP'!D93 -> £m | E89: ='F_Inputs BP'!E93 -> Price Review 2024
A90: ='F_Inputs BP'!A94 -> SSC | B90: ='F_Inputs BP'!B94 -> CW3_120TOT_PR24 | C90: ='F_Inputs BP'!C94 -> Water resilience and security - Resilience; enhancement water totex - Total | D90: ='F_Inputs BP'!D94 -> £m | E90: ='F_Inputs BP'!E94 -> Price Review 2024
A91: ='F_Inputs BP'!A95 -> SSC | B91: ='F_Inputs BP'!B95 -> POSTREALL_CW3_120TOT_PR24 | C91: ='F_Inputs BP'!C95 -> Water resilience and security - Resilience; enhancement water totex - Total - Post reallocation | D91: ='F_Inputs BP'!D95 -> £m | E91: ='F_Inputs BP'!E95 -> Price Review 2024
A92: ='F_Inputs BP'!A96 -> SSC | B92: ='F_Inputs BP'!B96 -> CW3_149TOT_PR24 | C92: ='F_Inputs BP'!C96 -> Resilience interconnectors; enhancement water totex - Total | D92: ='F_Inputs BP'!D96 -> £m | E92: ='F_Inputs BP'!E96 -> Price Review 2024 | L92: ='F_Inputs BP'!L96 -> 
A93: ='F_Inputs BP'!A97 -> SSC | B93: ='F_Inputs BP'!B97 -> POSTREALL_CW3_149TOT_PR24 | C93: ='F_Inputs BP'!C97 -> Resilience interconnectors; enhancement water totex - Total - Post reallocation | D93: ='F_Inputs BP'!D97 -> £m | E93: ='F_Inputs BP'!E97 -> Price Review 2024
A94: ='F_Inputs BP'!A98 -> SST | B94: ='F_Inputs BP'!B98 -> CW12_117TOT_PR24 | C94: ='F_Inputs BP'!C98 -> Water resilience and security - Resilience; enhancement water totex - Total | D94: ='F_Inputs BP'!D98 -> £m | E94: ='F_Inputs BP'!E98 -> Price Review 2024
A95: ='F_Inputs BP'!A99 -> SST | B95: ='F_Inputs BP'!B99 -> CW17_117TOT_PR24 | C95: ='F_Inputs BP'!C99 -> Water resilience and security - Resilience; enhancement water totex - Total | D95: ='F_Inputs BP'!D99 -> £m | E95: ='F_Inputs BP'!E99 -> Price Review 2024
A96: ='F_Inputs BP'!A100 -> SES | B96: ='F_Inputs BP'!B100 -> CW12_117TOT_PR24 | C96: ='F_Inputs BP'!C100 -> Water resilience and security - Resilience; enhancement water totex - Total | D96: ='F_Inputs BP'!D100 -> £m | E96: ='F_Inputs BP'!E100 -> Price Review 2024
A97: ='F_Inputs BP'!A101 -> SES | B97: ='F_Inputs BP'!B101 -> CW17_117TOT_PR24 | C97: ='F_Inputs BP'!C101 -> Water resilience and security - Resilience; enhancement water totex - Total | D97: ='F_Inputs BP'!D101 -> £m | E97: ='F_Inputs BP'!E101 -> Price Review 2024
A98: ='F_Inputs BP'!A102 -> SES | B98: ='F_Inputs BP'!B102 -> CW3_120TOT_PR24 | C98: ='F_Inputs BP'!C102 -> Water resilience and security - Resilience; enhancement water totex - Total | D98: ='F_Inputs BP'!D102 -> £m | E98: ='F_Inputs BP'!E102 -> Price Review 2024
A99: ='F_Inputs BP'!A103 -> SES | B99: ='F_Inputs BP'!B103 -> POSTREALL_CW3_120TOT_PR24 | C99: ='F_Inputs BP'!C103 -> Water resilience and security - Resilience; enhancement water totex - Total - Post reallocation | D99: ='F_Inputs BP'!D103 -> £m | E99: ='F_Inputs BP'!E103 -> Price Review 2024
A100: ='F_Inputs BP'!A104 -> SES | B100: ='F_Inputs BP'!B104 -> CW3_149TOT_PR24 | C100: ='F_Inputs BP'!C104 -> Resilience interconnectors; enhancement water totex - Total | D100: ='F_Inputs BP'!D104 -> £m | E100: ='F_Inputs BP'!E104 -> Price Review 2024
A101: ='F_Inputs BP'!A105 -> SES | B101: ='F_Inputs BP'!B105 -> POSTREALL_CW3_149TOT_PR24 | C101: ='F_Inputs BP'!C105 -> Resilience interconnectors; enhancement water totex - Total - Post reallocation | D101: ='F_Inputs BP'!D105 -> £m | E101: ='F_Inputs BP'!E105 -> Price Review 2024 | I101: 0.0125 | M101: Override to update 2026/27 cost - See OFW-REP-SES-033

Sheet Final Input
A1: =RIGHT(CELL("filename", $A$1), LEN(CELL("filename", $A$1)) - SEARCH("]", CELL("filename", $A$1))) -> 
A3: Acronym | B3: BON code | C3: Item description | D3: Unit | E3: Model | F3: 2023-24 | G3: 2024-25 | H3: 2025-26 | I3: 2026-27 | J3: 2027-28 | K3: 2028-29 | L3: 2029-30 | M3: Total
A4: ='F_Input Override'!A4 -> ANH | B4: ='F_Input Override'!B4 -> CW12_117TOT_PR24 | C4: ='F_Input Override'!C4 -> Water resilience and security - Resilience; enhancement water totex - Total | D4: ='F_Input Override'!D4 -> £m | E4: ='F_Input Override'!E4 -> Price Review 2024 | F4: =IF('F_Input Override'!F4="",'Consolidated Input'!F4,('F_Input Override'!F4)) -> 0 | G4: =IF('F_Input Override'!G4="",'Consolidated Input'!G4,('F_Input Override'!G4)) -> 0 | H4: =IF('F_Input Override'!H4="",'Consolidated Input'!H4,('F_Input Override'!H4)) ->  | I4: =IF('F_Input Override'!I4="",'Consolidated Input'!I4,('F_Input Override'!I4)) ->  | J4: =IF('F_Input Override'!J4="",'Consolidated Input'!J4,('F_Input Override'!J4)) ->  | K4: =IF('F_Input Override'!K4="",'Consolidated Input'!K4,('F_Input Override'!K4)) ->  | L4: =IF('F_Input Override'!L4="",'Consolidated Input'!L4,('F_Input Override'!L4)) ->  | M4: =SUM(F4:L4) -> 0
A5: ='F_Input Override'!A5 -> ANH | B5: ='F_Input Override'!B5 -> CW17_117TOT_PR24 | C5: ='F_Input Override'!C5 -> Water resilience and security - Resilience; enhancement water totex - Total | D5: ='F_Input Override'!D5 -> £m | E5: ='F_Input Override'!E5 -> Price Review 2024 | F5: =IF('F_Input Override'!F5="",'Consolidated Input'!F5,('F_Input Override'!F5)) -> 0 | G5: =IF('F_Input Override'!G5="",'Consolidated Input'!G5,('F_Input Override'!G5)) -> 0 | H5: =IF('F_Input Override'!H5="",'Consolidated Input'!H5,('F_Input Override'!H5)) -> 0 | I5: =IF('F_Input Override'!I5="",'Consolidated Input'!I5,('F_Input Override'!I5)) -> 0 | J5: =IF('F_Input Override'!J5="",'Consolidated Input'!J5,('F_Input Override'!J5)) -> 0 | K5: =IF('F_Input Override'!K5="",'Consolidated Input'!K5,('F_Input Override'!K5)) -> 0 | L5: =IF('F_Input Override'!L5="",'Consolidated Input'!L5,('F_Input Override'!L5)) -> 0 | M5: =SUM(F5:L5) -> 0
A6: ='F_Input Override'!A6 -> ANH | B6: ='F_Input Override'!B6 -> CW3_120TOT_PR24 | C6: ='F_Input Override'!C6 -> Water resilience and security - Resilience; enhancement water totex - Total | D6: ='F_Input Override'!D6 -> £m | E6: ='F_Input Override'!E6 -> Price Review 2024 | F6: =IF('F_Input Override'!F6="",'Consolidated Input'!F6,('F_Input Override'!F6)) -> 0.9588940334 | G6: =IF('F_Input Override'!G6="",'Consolidated Input'!G6,('F_Input Override'!G6)) -> 1.549 | H6: =IF('F_Input Override'!H6="",'Consolidated Input'!H6,('F_Input Override'!H6)) -> 0.008 | I6: =IF('F_Input Override'!I6="",'Consolidated Input'!I6,('F_Input Override'!I6)) -> 5.11 | J6: =IF('F_Input Override'!J6="",'Consolidated Input'!J6,('F_Input Override'!J6)) -> 4.085 | K6: =IF('F_Input Override'!K6="",'Consolidated Input'!K6,('F_Input Override'!K6)) -> 2.968 | L6: =IF('F_Input Override'!L6="",'Consolidated Input'!L6,('F_Input Override'!L6)) -> 0.33 | M6: 15.00889403
A7: ='F_Input Override'!A7 -> ANH | B7: ='F_Input Override'!B7 -> POSTREALL_CW3_120TOT_PR24 | C7: ='F_Input Override'!C7 -> Water resilience and security - Resilience; enhancement water totex - Total - Post reallocation | D7: ='F_Input Override'!D7 -> £m | E7: ='F_Input Override'!E7 -> Price Review 2024 | F7: =IF('F_Input Override'!F7="",'Consolidated Input'!F7,('F_Input Override'!F7)) ->  | G7: =IF('F_Input Override'!G7="",'Consolidated Input'!G7,('F_Input Override'!G7)) ->  | H7: =IF('F_Input Override'!H7="",'Consolidated Input'!H7,('F_Input Override'!H7)) -> 0.008 | I7: =IF('F_Input Override'!I7="",'Consolidated Input'!I7,('F_Input Override'!I7)) -> 5.11 | J7: =IF('F_Input Override'!J7="",'Consolidated Input'!J7,('F_Input Override'!J7)) -> 4.085 | K7: =IF('F_Input Override'!K7="",'Consolidated Input'!K7,('F_Input Override'!K7)) -> 2.968 | L7: =IF('F_Input Override'!L7="",'Consolidated Input'!L7,('F_Input Override'!L7)) -> 0.33 | M7: 12.501
A8: ='F_Input Override'!A8 -> ANH | B8: ='F_Input Override'!B8 -> CW3_149TOT_PR24 | C8: ='F_Input Override'!C8 -> Resilience interconnectors; enhancement water totex - Total | D8: ='F_Input Override'!D8 -> £m | E8: ='F_Input Override'!E8 -> Price Review 2024 | F8: =IF('F_Input Override'!F8="",'Consolidated Input'!F8,('F_Input Override'!F8)) -> 0 | G8: =IF('F_Input Override'!G8="",'Consolidated Input'!G8,('F_Input Override'!G8)) -> 0 | H8: =IF('F_Input Override'!H8="",'Consolidated Input'!H8,('F_Input Override'!H8)) -> 0 | I8: =IF('F_Input Override'!I8="",'Consolidated Input'!I8,('F_Input Override'!I8)) -> 0 | J8: =IF('F_Input Override'!J8="",'Consolidated Input'!J8,('F_Input Override'!J8)) -> 0 | K8: =IF('F_Input Override'!K8="",'Consolidated Input'!K8,('F_Input Override'!K8)) -> 0 | L8: =IF('F_Input Override'!L8="",'Consolidated Input'!L8,('F_Input Override'!L8)) -> 0 | M8: 0
A9: ='F_Input Override'!A9 -> ANH | B9: ='F_Input Override'!B9 -> POSTREALL_CW3_149TOT_PR24 | C9: ='F_Input Override'!C9 -> Resilience interconnectors; enhancement water totex - Total - Post reallocation | D9: ='F_Input Override'!D9 -> £m | E9: ='F_Input Override'!E9 -> Price Review 2024 | F9: =IF('F_Input Override'!F9="",'Consolidated Input'!F9,('F_Input Override'!F9)) -> 0 | G9: =IF('F_Input Override'!G9="",'Consolidated Input'!G9,('F_Input Override'!G9)) -> 0 | H9: =IF('F_Input Override'!H9="",'Consolidated Input'!H9,('F_Input Override'!H9)) -> 0.778 | I9: =IF('F_Input Override'!I9="",'Consolidated Input'!I9,('F_Input Override'!I9)) -> 2.101 | J9: =IF('F_Input Override'!J9="",'Consolidated Input'!J9,('F_Input Override'!J9)) -> 3.125 | K9: =IF('F_Input Override'!K9="",'Consolidated Input'!K9,('F_Input Override'!K9)) -> 1.552 | L9: =IF('F_Input Override'!L9="",'Consolidated Input'!L9,('F_Input Override'!L9)) -> 0.001 | M9: =SUM(F9:L9) -> 7.557
A10: ='F_Input Override'!A10 -> WSH | B10: ='F_Input Override'!B10 -> CW12_117TOT_PR24 | C10: ='F_Input Override'!C10 -> Water resilience and security - Resilience; enhancement water totex - Total | D10: ='F_Input Override'!D10 -> £m | E10: ='F_Input Override'!E10 -> Price Review 2024 | F10: =IF('F_Input Override'!F10="",'Consolidated Input'!F10,('F_Input Override'!F10)) -> 0 | G10: =IF('F_Input Override'!G10="",'Consolidated Input'!G10,('F_Input Override'!G10)) -> 0 | H10: =IF('F_Input Override'!H10="",'Consolidated Input'!H10,('F_Input Override'!H10)) ->  | I10: =IF('F_Input Override'!I10="",'Consolidated Input'!I10,('F_Input Override'!I10)) ->  | J10: =IF('F_Input Override'!J10="",'Consolidated Input'!J10,('F_Input Override'!J10)) ->  | K10: =IF('F_Input Override'!K10="",'Consolidated Input'!K10,('F_Input Override'!K10)) ->  | L10: =IF('F_Input Override'!L10="",'Consolidated Input'!L10,('F_Input Override'!L10)) ->  | M10: 0
A11: ='F_Input Override'!A11 -> WSH | B11: ='F_Input Override'!B11 -> CW17_117TOT_PR24 | C11: ='F_Input Override'!C11 -> Water resilience and security - Resilience; enhancement water totex - Total | D11: ='F_Input Override'!D11 -> £m | E11: ='F_Input Override'!E11 -> Price Review 2024 | F11: =IF('F_Input Override'!F11="",'Consolidated Input'!F11,('F_Input Override'!F11)) -> 0 | G11: =IF('F_Input Override'!G11="",'Consolidated Input'!G11,('F_Input Override'!G11)) -> 0 | H11: =IF('F_Input Override'!H11="",'Consolidated Input'!H11,('F_Input Override'!H11)) -> 0 | I11: =IF('F_Input Override'!I11="",'Consolidated Input'!I11,('F_Input Override'!I11)) -> 0 | J11: =IF('F_Input Override'!J11="",'Consolidated Input'!J11,('F_Input Override'!J11)) -> 0 | K11: =IF('F_Input Override'!K11="",'Consolidated Input'!K11,('F_Input Override'!K11)) -> 0 | L11: =IF('F_Input Override'!L11="",'Consolidated Input'!L11,('F_Input Override'!L11)) -> 0 | M11: 0
A12: ='F_Input Override'!A12 -> WSH | B12: ='F_Input Override'!B12 -> CW3_120TOT_PR24 | C12: ='F_Input Override'!C12 -> Water resilience and security - Resilience; enhancement water totex - Total | D12: ='F_Input Override'!D12 -> £m | E12: ='F_Input Override'!E12 -> Price Review 2024 | F12: =IF('F_Input Override'!F12="",'Consolidated Input'!F12,('F_Input Override'!F12)) -> 2.459547417 | G12: =IF('F_Input Override'!G12="",'Consolidated Input'!G12,('F_Input Override'!G12)) -> 0.688 | H12: =IF('F_Input Override'!H12="",'Consolidated Input'!H12,('F_Input Override'!H12)) -> 25.938 | I12: =IF('F_Input Override'!I12="",'Consolidated Input'!I12,('F_Input Override'!I12)) -> 31.232 | J12: =IF('F_Input Override'!J12="",'Consolidated Input'!J12,('F_Input Override'!J12)) -> 38.207 | K12: =IF('F_Input Override'!K12="",'Consolidated Input'!K12,('F_Input Override'!K12)) -> 38.129 | L12: =IF('F_Input Override'!L12="",'Consolidated Input'!L12,('F_Input Override'!L12)) -> 29.675 | M12: 166.3285474
A13: ='F_Input Override'!A13 -> WSH | B13: ='F_Input Override'!B13 -> POSTREALL_CW3_120TOT_PR24 | C13: ='F_Input Override'!C13 -> Water resilience and security - Resilience; enhancement water totex - Total - Post reallocation | D13: ='F_Input Override'!D13 -> £m | E13: ='F_Input Override'!E13 -> Price Review 2024 | F13: =IF('F_Input Override'!F13="",'Consolidated Input'!F13,('F_Input Override'!F13)) ->  | G13: =IF('F_Input Override'!G13="",'Consolidated Input'!G13,('F_Input Override'!G13)) ->  | H13: =IF('F_Input Override'!H13="",'Consolidated Input'!H13,('F_Input Override'!H13)) -> 15.0422 | I13: =IF('F_Input Override'!I13="",'Consolidated Input'!I13,('F_Input Override'!I13)) -> 20.3362 | J13: =IF('F_Input Override'!J13="",'Consolidated Input'!J13,('F_Input Override'!J13)) -> 27.3112 | K13: =IF('F_Input Override'!K13="",'Consolidated Input'!K13,('F_Input Override'!K13)) -> 27.2332 | L13: =IF('F_Input Override'!L13="",'Consolidated Input'!L13,('F_Input Override'!L13)) -> 18.7792 | M13: 108.702
A14: ='F_Input Override'!A14 -> WSH | B14: ='F_Input Override'!B14 -> CW3_149TOT_PR24 | C14: ='F_Input Override'!C14 -> Resilience interconnectors; enhancement water totex - Total | D14: ='F_Input Override'!D14 -> £m | E14: ='F_Input Override'!E14 -> Price Review 2024 | F14: =IF('F_Input Override'!F14="",'Consolidated Input'!F14,('F_Input Override'!F14)) ->  | G14: =IF('F_Input Override'!G14="",'Consolidated Input'!G14,('F_Input Override'!G14)) ->  | H14: =IF('F_Input Override'!H14="",'Consolidated Input'!H14,('F_Input Override'!H14)) ->  | I14: =IF('F_Input Override'!I14="",'Consolidated Input'!I14,('F_Input Override'!I14)) ->  | J14: =IF('F_Input Override'!J14="",'Consolidated Input'!J14,('F_Input Override'!J14)) ->  | K14: =IF('F_Input Override'!K14="",'Consolidated Input'!K14,('F_Input Override'!K14)) ->  | L14: =IF('F_Input Override'!L14="",'Consolidated Input'!L14,('F_Input Override'!L14)) ->  | M14: 0
A15: ='F_Input Override'!A15 -> WSH | B15: ='F_Input Override'!B15 -> POSTREALL_CW3_149TOT_PR24 | C15: ='F_Input Override'!C15 -> Resilience interconnectors; enhancement water totex - Total - Post reallocation | D15: ='F_Input Override'!D15 -> £m | E15: ='F_Input Override'!E15 -> Price Review 2024 | F15: =IF('F_Input Override'!F15="",'Consolidated Input'!F15,('F_Input Override'!F15)) ->  | G15: =IF('F_Input Override'!G15="",'Consolidated Input'!G15,('F_Input Override'!G15)) ->  | H15: =IF('F_Input Override'!H15="",'Consolidated Input'!H15,('F_Input Override'!H15)) -> 10.8958 | I15: =IF('F_Input Override'!I15="",'Consolidated Input'!I15,('F_Input Override'!I15)) -> 10.8958 | J15: =IF('F_Input Override'!J15="",'Consolidated Input'!J15,('F_Input Override'!J15)) -> 10.8958 | K15: =IF('F_Input Override'!K15="",'Consolidated Input'!K15,('F_Input Override'!K15)) -> 10.8958 | L15: =IF('F_Input Override'!L15="",'Consolidated Input'!L15,('F_Input Override'!L15)) -> 10.8958 | M15: =SUM(F15:L15) -> 54.479
A16: ='F_Input Override'!A16 -> HDD | B16: ='F_Input Override'!B16 -> CW12_117TOT_PR24 | C16: ='F_Input Override'!C16 -> Water resilience and security - Resilience; enhancement water totex - Total | D16: ='F_Input Override'!D16 -> £m | E16: ='F_Input Override'!E16 -> Price Review 2024 | F16: =IF('F_Input Override'!F16="",'Consolidated Input'!F16,('F_Input Override'!F16)) -> 0 | G16: =IF('F_Input Override'!G16="",'Consolidated Input'!G16,('F_Input Override'!G16)) -> 0 | H16: =IF('F_Input Override'!H16="",'Consolidated Input'!H16,('F_Input Override'!H16)) ->  | I16: =IF('F_Input Override'!I16="",'Consolidated Input'!I16,('F_Input Override'!I16)) ->  | J16: =IF('F_Input Override'!J16="",'Consolidated Input'!J16,('F_Input Override'!J16)) ->  | K16: =IF('F_Input Override'!K16="",'Consolidated Input'!K16,('F_Input Override'!K16)) ->  | L16: =IF('F_Input Override'!L16="",'Consolidated Input'!L16,('F_Input Override'!L16)) ->  | M16: 0
A17: ='F_Input Override'!A17 -> HDD | B17: ='F_Input Override'!B17 -> CW17_117TOT_PR24 | C17: ='F_Input Override'!C17 -> Water resilience and security - Resilience; enhancement water totex - Total | D17: ='F_Input Override'!D17 -> £m | E17: ='F_Input Override'!E17 -> Price Review 2024 | F17: =IF('F_Input Override'!F17="",'Consolidated Input'!F17,('F_Input Override'!F17)) -> 0 | G17: =IF('F_Input Override'!G17="",'Consolidated Input'!G17,('F_Input Override'!G17)) -> 0 | H17: =IF('F_Input Override'!H17="",'Consolidated Input'!H17,('F_Input Override'!H17)) -> 0 | I17: =IF('F_Input Override'!I17="",'Consolidated Input'!I17,('F_Input Override'!I17)) -> 0 | J17: =IF('F_Input Override'!J17="",'Consolidated Input'!J17,('F_Input Override'!J17)) -> 0 | K17: =IF('F_Input Override'!K17="",'Consolidated Input'!K17,('F_Input Override'!K17)) -> 0 | L17: =IF('F_Input Override'!L17="",'Consolidated Input'!L17,('F_Input Override'!L17)) -> 0 | M17: 0
A18: ='F_Input Override'!A18 -> HDD | B18: ='F_Input Override'!B18 -> CW3_120TOT_PR24 | C18: ='F_Input Override'!C18 -> Water resilience and security - Resilience; enhancement water totex - Total | D18: ='F_Input Override'!D18 -> £m | E18: ='F_Input Override'!E18 -> Price Review 2024 | F18: =IF('F_Input Override'!F18="",'Consolidated Input'!F18,('F_Input Override'!F18)) -> 2.459570072 | G18: =IF('F_Input Override'!G18="",'Consolidated Input'!G18,('F_Input Override'!G18)) -> 0 | H18: =IF('F_Input Override'!H18="",'Consolidated Input'!H18,('F_Input Override'!H18)) -> 0.18 | I18: =IF('F_Input Override'!I18="",'Consolidated Input'!I18,('F_Input Override'!I18)) -> 0.18 | J18: =IF('F_Input Override'!J18="",'Consolidated Input'!J18,('F_Input Override'!J18)) -> 0.18 | K18: =IF('F_Input Override'!K18="",'Consolidated Input'!K18,('F_Input Override'!K18)) -> 0.18 | L18: =IF('F_Input Override'!L18="",'Consolidated Input'!L18,('F_Input Override'!L18)) -> 0.18 | M18: 3.359570072
A19: ='F_Input Override'!A19 -> HDD | B19: ='F_Input Override'!B19 -> POSTREALL_CW3_120TOT_PR24 | C19: ='F_Input Override'!C19 -> Water resilience and security - Resilience; enhancement water totex - Total - Post reallocation | D19: ='F_Input Override'!D19 -> £m | E19: ='F_Input Override'!E19 -> Price Review 2024 | F19: =IF('F_Input Override'!F19="",'Consolidated Input'!F19,('F_Input Override'!F19)) ->  | G19: =IF('F_Input Override'!G19="",'Consolidated Input'!G19,('F_Input Override'!G19)) ->  | H19: =IF('F_Input Override'!H19="",'Consolidated Input'!H19,('F_Input Override'!H19)) -> 0.18 | I19: =IF('F_Input Override'!I19="",'Consolidated Input'!I19,('F_Input Override'!I19)) -> 0.18 | J19: =IF('F_Input Override'!J19="",'Consolidated Input'!J19,('F_Input Override'!J19)) -> 0.18 | K19: =IF('F_Input Override'!K19="",'Consolidated Input'!K19,('F_Input Override'!K19)) -> 0.18 | L19: =IF('F_Input Override'!L19="",'Consolidated Input'!L19,('F_Input Override'!L19)) -> 0.18 | M19: 0.9
A20: ='F_Input Override'!A20 -> HDD | B20: ='F_Input Override'!B20 -> CW3_149TOT_PR24 | C20: ='F_Input Override'!C20 -> Resilience interconnectors; enhancement water totex - Total | D20: ='F_Input Override'!D20 -> £m | E20: ='F_Input Override'!E20 -> Price Review 2024 | F20: =IF('F_Input Override'!F20="",'Consolidated Input'!F20,('F_Input Override'!F20)) ->  | G20: =IF('F_Input Override'!G20="",'Consolidated Input'!G20,('F_Input Override'!G20)) ->  | H20: =IF('F_Input Override'!H20="",'Consolidated Input'!H20,('F_Input Override'!H20)) ->  | I20: =IF('F_Input Override'!I20="",'Consolidated Input'!I20,('F_Input Override'!I20)) ->  | J20: =IF('F_Input Override'!J20="",'Consolidated Input'!J20,('F_Input Override'!J20)) ->  | K20: =IF('F_Input Override'!K20="",'Consolidated Input'!K20,('F_Input Override'!K20)) ->  | L20: =IF('F_Input Override'!L20="",'Consolidated Input'!L20,('F_Input Override'!L20)) ->  | M20: 0
A21: ='F_Input Override'!A21 -> HDD | B21: ='F_Input Override'!B21 -> POSTREALL_CW3_149TOT_PR24 | C21: ='F_Input Override'!C21 -> Resilience interconnectors; enhancement water totex - Total - Post reallocation | D21: ='F_Input Override'!D21 -> £m | E21: ='F_Input Override'!E21 -> Price Review 2024 | F21: =IF('F_Input Override'!F21="",'Consolidated Input'!F21,('F_Input Override'!F21)) ->  | G21: =IF('F_Input Override'!G21="",'Consolidated Input'!G21,('F_Input Override'!G21)) ->  | H21: =IF('F_Input Override'!H21="",'Consolidated Input'!H21,('F_Input Override'!H21)) -> 0 | I21: =IF('F_Input Override'!I21="",'Consolidated Input'!I21,('F_Input Override'!I21)) -> 0 | J21: =IF('F_Input Override'!J21="",'Consolidated Input'!J21,('F_Input Override'!J21)) -> 0 | K21: =IF('F_Input Override'!K21="",'Consolidated Input'!K21,('F_Input Override'!K21)) -> 0 | L21: =IF('F_Input Override'!L21="",'Consolidated Input'!L21,('F_Input Override'!L21)) -> 0 | M21: =SUM(F21:L21) -> 0
A22: ='F_Input Override'!A22 -> NES | B22: ='F_Input Override'!B22 -> CW12_117TOT_PR24 | C22: ='F_Input Override'!C22 -> Water resilience and security - Resilience; enhancement water totex - Total | D22: ='F_Input Override'!D22 -> £m | E22: ='F_Input Override'!E22 -> Price Review 2024 | F22: =IF('F_Input Override'!F22="",'Consolidated Input'!F22,('F_Input Override'!F22)) -> 1 | G22: =IF('F_Input Override'!G22="",'Consolidated Input'!G22,('F_Input Override'!G22)) -> 7 | H22: =IF('F_Input Override'!H22="",'Consolidated Input'!H22,('F_Input Override'!H22)) ->  | I22: =IF('F_Input Override'!I22="",'Consolidated Input'!I22,('F_Input Override'!I22)) ->  | J22: =IF('F_Input Override'!J22="",'Consolidated Input'!J22,('F_Input Override'!J22)) ->  | K22: =IF('F_Input Override'!K22="",'Consolidated Input'!K22,('F_Input Override'!K22)) ->  | L22: =IF('F_Input Override'!L22="",'Consolidated Input'!L22,('F_Input Override'!L22)) ->  | M22: 8
A23: ='F_Input Override'!A23 -> NES | B23: ='F_Input Override'!B23 -> CW17_117TOT_PR24 | C23: ='F_Input Override'!C23 -> Water resilience and security - Resilience; enhancement water totex - Total | D23: ='F_Input Override'!D23 -> £m | E23: ='F_Input Override'!E23 -> Price Review 2024 | F23: =IF('F_Input Override'!F23="",'Consolidated Input'!F23,('F_Input Override'!F23)) -> 0 | G23: =IF('F_Input Override'!G23="",'Consolidated Input'!G23,('F_Input Override'!G23)) -> 0 | H23: =IF('F_Input Override'!H23="",'Consolidated Input'!H23,('F_Input Override'!H23)) -> 0 | I23: =IF('F_Input Override'!I23="",'Consolidated Input'!I23,('F_Input Override'!I23)) -> 0 | J23: =IF('F_Input Override'!J23="",'Consolidated Input'!J23,('F_Input Override'!J23)) -> 0 | K23: =IF('F_Input Override'!K23="",'Consolidated Input'!K23,('F_Input Override'!K23)) -> 0 | L23: =IF('F_Input Override'!L23="",'Consolidated Input'!L23,('F_Input Override'!L23)) -> 0 | M23: 0
A24: ='F_Input Override'!A24 -> NES | B24: ='F_Input Override'!B24 -> CW3_120TOT_PR24 | C24: ='F_Input Override'!C24 -> Water resilience and security - Resilience; enhancement water totex - Total | D24: ='F_Input Override'!D24 -> £m | E24: ='F_Input Override'!E24 -> Price Review 2024 | F24: =IF('F_Input Override'!F24="",'Consolidated Input'!F24,('F_Input Override'!F24)) -> 47.616 | G24: =IF('F_Input Override'!G24="",'Consolidated Input'!G24,('F_Input Override'!G24)) -> 69.28 | H24: =IF('F_Input Override'!H24="",'Consolidated Input'!H24,('F_Input Override'!H24)) -> 17.338 | I24: =IF('F_Input Override'!I24="",'Consolidated Input'!I24,('F_Input Override'!I24)) -> 14.872 | J24: =IF('F_Input Override'!J24="",'Consolidated Input'!J24,('F_Input Override'!J24)) -> 22.249 | K24: =IF('F_Input Override'!K24="",'Consolidated Input'!K24,('F_Input Override'!K24)) -> 19.729 | L24: =IF('F_Input Override'!L24="",'Consolidated Input'!L24,('F_Input Override'!L24)) -> 10.73 | M24: 201.814
A25: ='F_Input Override'!A25 -> NES | B25: ='F_Input Override'!B25 -> POSTREALL_CW3_120TOT_PR24 | C25: ='F_Input Override'!C25 -> Water resilience and security - Resilience; enhancement water totex - Total - Post reallocation | D25: ='F_Input Override'!D25 -> £m | E25: ='F_Input Override'!E25 -> Price Review 2024 | F25: =IF('F_Input Override'!F25="",'Consolidated Input'!F25,('F_Input Override'!F25)) ->  | G25: =IF('F_Input Override'!G25="",'Consolidated Input'!G25,('F_Input Override'!G25)) ->  | H25: =IF('F_Input Override'!H25="",'Consolidated Input'!H25,('F_Input Override'!H25)) -> 14.772 | I25: =IF('F_Input Override'!I25="",'Consolidated Input'!I25,('F_Input Override'!I25)) -> 12.306 | J25: =IF('F_Input Override'!J25="",'Consolidated Input'!J25,('F_Input Override'!J25)) -> 19.683 | K25: =IF('F_Input Override'!K25="",'Consolidated Input'!K25,('F_Input Override'!K25)) -> 17.163 | L25: =IF('F_Input Override'!L25="",'Consolidated Input'!L25,('F_Input Override'!L25)) -> 8.164 | M25: 72.088
A26: ='F_Input Override'!A26 -> NES | B26: ='F_Input Override'!B26 -> CW3_149TOT_PR24 | C26: ='F_Input Override'!C26 -> Resilience interconnectors; enhancement water totex - Total | D26: ='F_Input Override'!D26 -> £m | E26: ='F_Input Override'!E26 -> Price Review 2024 | F26: =IF('F_Input Override'!F26="",'Consolidated Input'!F26,('F_Input Override'!F26)) ->  | G26: =IF('F_Input Override'!G26="",'Consolidated Input'!G26,('F_Input Override'!G26)) ->  | H26: =IF('F_Input Override'!H26="",'Consolidated Input'!H26,('F_Input Override'!H26)) ->  | I26: =IF('F_Input Override'!I26="",'Consolidated Input'!I26,('F_Input Override'!I26)) ->  | J26: =IF('F_Input Override'!J26="",'Consolidated Input'!J26,('F_Input Override'!J26)) ->  | K26: =IF('F_Input Override'!K26="",'Consolidated Input'!K26,('F_Input Override'!K26)) ->  | L26: =IF('F_Input Override'!L26="",'Consolidated Input'!L26,('F_Input Override'!L26)) ->  | M26: 0
A27: ='F_Input Override'!A27 -> NES | B27: ='F_Input Override'!B27 -> POSTREALL_CW3_149TOT_PR24 | C27: ='F_Input Override'!C27 -> Resilience interconnectors; enhancement water totex - Total - Post reallocation | D27: ='F_Input Override'!D27 -> £m | E27: ='F_Input Override'!E27 -> Price Review 2024 | F27: =IF('F_Input Override'!F27="",'Consolidated Input'!F27,('F_Input Override'!F27)) ->  | G27: =IF('F_Input Override'!G27="",'Consolidated Input'!G27,('F_Input Override'!G27)) ->  | H27: =IF('F_Input Override'!H27="",'Consolidated Input'!H27,('F_Input Override'!H27)) -> 0 | I27: =IF('F_Input Override'!I27="",'Consolidated Input'!I27,('F_Input Override'!I27)) -> 0 | J27: =IF('F_Input Override'!J27="",'Consolidated Input'!J27,('F_Input Override'!J27)) -> 0 | K27: =IF('F_Input Override'!K27="",'Consolidated Input'!K27,('F_Input Override'!K27)) -> 0 | L27: =IF('F_Input Override'!L27="",'Consolidated Input'!L27,('F_Input Override'!L27)) -> 0 | M27: =SUM(F27:L27) -> 0
A28: ='F_Input Override'!A28 -> SVE | B28: ='F_Input Override'!B28 -> CW12_117TOT_PR24 | C28: ='F_Input Override'!C28 -> Water resilience and security - Resilience; enhancement water totex - Total | D28: ='F_Input Override'!D28 -> £m | E28: ='F_Input Override'!E28 -> Price Review 2024 | F28: =IF('F_Input Override'!F28="",'Consolidated Input'!F28,('F_Input Override'!F28)) -> 0 | G28: =IF('F_Input Override'!G28="",'Consolidated Input'!G28,('F_Input Override'!G28)) -> 0 | H28: =IF('F_Input Override'!H28="",'Consolidated Input'!H28,('F_Input Override'!H28)) ->  | I28: =IF('F_Input Override'!I28="",'Consolidated Input'!I28,('F_Input Override'!I28)) ->  | J28: =IF('F_Input Override'!J28="",'Consolidated Input'!J28,('F_Input Override'!J28)) ->  | K28: =IF('F_Input Override'!K28="",'Consolidated Input'!K28,('F_Input Override'!K28)) ->  | L28: =IF('F_Input Override'!L28="",'Consolidated Input'!L28,('F_Input Override'!L28)) ->  | M28: 0
A29: ='F_Input Override'!A29 -> SVE | B29: ='F_Input Override'!B29 -> CW17_117TOT_PR24 | C29: ='F_Input Override'!C29 -> Water resilience and security - Resilience; enhancement water totex - Total | D29: ='F_Input Override'!D29 -> £m | E29: ='F_Input Override'!E29 -> Price Review 2024 | F29: =IF('F_Input Override'!F29="",'Consolidated Input'!F29,('F_Input Override'!F29)) -> 0 | G29: =IF('F_Input Override'!G29="",'Consolidated Input'!G29,('F_Input Override'!G29)) -> 0 | H29: =IF('F_Input Override'!H29="",'Consolidated Input'!H29,('F_Input Override'!H29)) -> 0 | I29: =IF('F_Input Override'!I29="",'Consolidated Input'!I29,('F_Input Override'!I29)) -> 0 | J29: =IF('F_Input Override'!J29="",'Consolidated Input'!J29,('F_Input Override'!J29)) -> 0 | K29: =IF('F_Input Override'!K29="",'Consolidated Input'!K29,('F_Input Override'!K29)) -> 0 | L29: =IF('F_Input Override'!L29="",'Consolidated Input'!L29,('F_Input Override'!L29)) -> 0 | M29: 0
A30: ='F_Input Override'!A30 -> SVE | B30: ='F_Input Override'!B30 -> CW3_120TOT_PR24 | C30: ='F_Input Override'!C30 -> Water resilience and security - Resilience; enhancement water totex - Total | D30: ='F_Input Override'!D30 -> £m | E30: ='F_Input Override'!E30 -> Price Review 2024 | F30: =IF('F_Input Override'!F30="",'Consolidated Input'!F30,('F_Input Override'!F30)) -> 36.769 | G30: =IF('F_Input Override'!G30="",'Consolidated Input'!G30,('F_Input Override'!G30)) -> 54.5212177 | H30: =IF('F_Input Override'!H30="",'Consolidated Input'!H30,('F_Input Override'!H30)) -> 39.22310771 | I30: =IF('F_Input Override'!I30="",'Consolidated Input'!I30,('F_Input Override'!I30)) -> 46.58306981 | J30: =IF('F_Input Override'!J30="",'Consolidated Input'!J30,('F_Input Override'!J30)) -> 50.08517786 | K30: =IF('F_Input Override'!K30="",'Consolidated Input'!K30,('F_Input Override'!K30)) -> 6.463988561 | L30: =IF('F_Input Override'!L30="",'Consolidated Input'!L30,('F_Input Override'!L30)) -> 12.30840946 | M30: 245.9539711
A31: ='F_Input Override'!A31 -> SVE | B31: ='F_Input Override'!B31 -> POSTREALL_CW3_120TOT_PR24 | C31: ='F_Input Override'!C31 -> Water resilience and security - Resilience; enhancement water totex - Total - Post reallocation | D31: ='F_Input Override'!D31 -> £m | E31: ='F_Input Override'!E31 -> Price Review 2024 | F31: =IF('F_Input Override'!F31="",'Consolidated Input'!F31,('F_Input Override'!F31)) ->  | G31: =IF('F_Input Override'!G31="",'Consolidated Input'!G31,('F_Input Override'!G31)) ->  | H31: =IF('F_Input Override'!H31="",'Consolidated Input'!H31,('F_Input Override'!H31)) -> 6.591107711 | I31: =IF('F_Input Override'!I31="",'Consolidated Input'!I31,('F_Input Override'!I31)) -> 7.155069813 | J31: =IF('F_Input Override'!J31="",'Consolidated Input'!J31,('F_Input Override'!J31)) -> 7.507177861 | K31: =IF('F_Input Override'!K31="",'Consolidated Input'!K31,('F_Input Override'!K31)) -> 3.210988561 | L31: =IF('F_Input Override'!L31="",'Consolidated Input'!L31,('F_Input Override'!L31)) -> 3.794409465 | M31: 28.25875341
A32: ='F_Input Override'!A32 -> SVE | B32: ='F_Input Override'!B32 -> CW3_149TOT_PR24 | C32: ='F_Input Override'!C32 -> Resilience interconnectors; enhancement water totex - Total | D32: ='F_Input Override'!D32 -> £m | E32: ='F_Input Override'!E32 -> Price Review 2024 | F32: =IF('F_Input Override'!F32="",'Consolidated Input'!F32,('F_Input Override'!F32)) ->  | G32: =IF('F_Input Override'!G32="",'Consolidated Input'!G32,('F_Input Override'!G32)) ->  | H32: =IF('F_Input Override'!H32="",'Consolidated Input'!H32,('F_Input Override'!H32)) ->  | I32: =IF('F_Input Override'!I32="",'Consolidated Input'!I32,('F_Input Override'!I32)) ->  | J32: =IF('F_Input Override'!J32="",'Consolidated Input'!J32,('F_Input Override'!J32)) ->  | K32: =IF('F_Input Override'!K32="",'Consolidated Input'!K32,('F_Input Override'!K32)) ->  | L32: =IF('F_Input Override'!L32="",'Consolidated Input'!L32,('F_Input Override'!L32)) ->  | M32: 0
A33: ='F_Input Override'!A33 -> SVE | B33: ='F_Input Override'!B33 -> POSTREALL_CW3_149TOT_PR24 | C33: ='F_Input Override'!C33 -> Resilience interconnectors; enhancement water totex - Total - Post reallocation | D33: ='F_Input Override'!D33 -> £m | E33: ='F_Input Override'!E33 -> Price Review 2024 | F33: =IF('F_Input Override'!F33="",'Consolidated Input'!F33,('F_Input Override'!F33)) -> 0.877 | G33: =IF('F_Input Override'!G33="",'Consolidated Input'!G33,('F_Input Override'!G33)) -> 4.173 | H33: =IF('F_Input Override'!H33="",'Consolidated Input'!H33,('F_Input Override'!H33)) -> 32.632 | I33: =IF('F_Input Override'!I33="",'Consolidated Input'!I33,('F_Input Override'!I33)) -> 39.428 | J33: =IF('F_Input Override'!J33="",'Consolidated Input'!J33,('F_Input Override'!J33)) -> 42.578 | K33: =IF('F_Input Override'!K33="",'Consolidated Input'!K33,('F_Input Override'!K33)) -> 3.253 | L33: =IF('F_Input Override'!L33="",'Consolidated Input'!L33,('F_Input Override'!L33)) -> 8.514 | M33: =SUM(F33:L33) -> 131.455
A34: ='F_Input Override'!A34 -> SWB | B34: ='F_Input Override'!B34 -> CW12_117TOT_PR24 | C34: ='F_Input Override'!C34 -> Water resilience and security - Resilience; enhancement water totex - Total | D34: ='F_Input Override'!D34 -> £m | E34: ='F_Input Override'!E34 -> Price Review 2024 | F34: =IF('F_Input Override'!F34="",'Consolidated Input'!F34,('F_Input Override'!F34)) -> 0 | G34: =IF('F_Input Override'!G34="",'Consolidated Input'!G34,('F_Input Override'!G34)) -> 0 | H34: =IF('F_Input Override'!H34="",'Consolidated Input'!H34,('F_Input Override'!H34)) ->  | I34: =IF('F_Input Override'!I34="",'Consolidated Input'!I34,('F_Input Override'!I34)) ->  | J34: =IF('F_Input Override'!J34="",'Consolidated Input'!J34,('F_Input Override'!J34)) ->  | K34: =IF('F_Input Override'!K34="",'Consolidated Input'!K34,('F_Input Override'!K34)) ->  | L34: =IF('F_Input Override'!L34="",'Consolidated Input'!L34,('F_Input Override'!L34)) ->  | M34: 0
A35: ='F_Input Override'!A35 -> SWB | B35: ='F_Input Override'!B35 -> CW17_117TOT_PR24 | C35: ='F_Input Override'!C35 -> Water resilience and security - Resilience; enhancement water totex - Total | D35: ='F_Input Override'!D35 -> £m | E35: ='F_Input Override'!E35 -> Price Review 2024 | F35: =IF('F_Input Override'!F35="",'Consolidated Input'!F35,('F_Input Override'!F35)) -> 0 | G35: =IF('F_Input Override'!G35="",'Consolidated Input'!G35,('F_Input Override'!G35)) -> 0 | H35: =IF('F_Input Override'!H35="",'Consolidated Input'!H35,('F_Input Override'!H35)) -> 0 | I35: =IF('F_Input Override'!I35="",'Consolidated Input'!I35,('F_Input Override'!I35)) -> 0 | J35: =IF('F_Input Override'!J35="",'Consolidated Input'!J35,('F_Input Override'!J35)) -> 0 | K35: =IF('F_Input Override'!K35="",'Consolidated Input'!K35,('F_Input Override'!K35)) -> 0 | L35: =IF('F_Input Override'!L35="",'Consolidated Input'!L35,('F_Input Override'!L35)) -> 0 | M35: 0
A36: ='F_Input Override'!A36 -> SWB | B36: ='F_Input Override'!B36 -> CW3_120TOT_PR24 | C36: ='F_Input Override'!C36 -> Water resilience and security - Resilience; enhancement water totex - Total | D36: ='F_Input Override'!D36 -> £m | E36: ='F_Input Override'!E36 -> Price Review 2024 | F36: =IF('F_Input Override'!F36="",'Consolidated Input'!F36,('F_Input Override'!F36)) -> 70.752 | G36: =IF('F_Input Override'!G36="",'Consolidated Input'!G36,('F_Input Override'!G36)) -> 29.168 | H36: =IF('F_Input Override'!H36="",'Consolidated Input'!H36,('F_Input Override'!H36)) -> 9.932151 | I36: =IF('F_Input Override'!I36="",'Consolidated Input'!I36,('F_Input Override'!I36)) -> 7.573608 | J36: =IF('F_Input Override'!J36="",'Consolidated Input'!J36,('F_Input Override'!J36)) -> 17.147513 | K36: =IF('F_Input Override'!K36="",'Consolidated Input'!K36,('F_Input Override'!K36)) -> 21.101945 | L36: =IF('F_Input Override'!L36="",'Consolidated Input'!L36,('F_Input Override'!L36)) -> 20.506814 | M36: 176.182031
A37: ='F_Input Override'!A37 -> SWB | B37: ='F_Input Override'!B37 -> POSTREALL_CW3_120TOT_PR24 | C37: ='F_Input Override'!C37 -> Water resilience and security - Resilience; enhancement water totex - Total - Post reallocation | D37: ='F_Input Override'!D37 -> £m | E37: ='F_Input Override'!E37 -> Price Review 2024 | F37: =IF('F_Input Override'!F37="",'Consolidated Input'!F37,('F_Input Override'!F37)) ->  | G37: =IF('F_Input Override'!G37="",'Consolidated Input'!G37,('F_Input Override'!G37)) ->  | H37: =IF('F_Input Override'!H37="",'Consolidated Input'!H37,('F_Input Override'!H37)) -> 0.6886981857 | I37: =IF('F_Input Override'!I37="",'Consolidated Input'!I37,('F_Input Override'!I37)) -> 0.5251561408 | J37: =IF('F_Input Override'!J37="",'Consolidated Input'!J37,('F_Input Override'!J37)) -> 1.189013447 | K37: =IF('F_Input Override'!K37="",'Consolidated Input'!K37,('F_Input Override'!K37)) -> 1.46321489 | L37: =IF('F_Input Override'!L37="",'Consolidated Input'!L37,('F_Input Override'!L37)) -> 1.421948337 | M37: 5.288031
A38: ='F_Input Override'!A38 -> SWB | B38: ='F_Input Override'!B38 -> CW3_149TOT_PR24 | C38: ='F_Input Override'!C38 -> Resilience interconnectors; enhancement water totex - Total | D38: ='F_Input Override'!D38 -> £m | E38: ='F_Input Override'!E38 -> Price Review 2024 | F38: =IF('F_Input Override'!F38="",'Consolidated Input'!F38,('F_Input Override'!F38)) ->  | G38: =IF('F_Input Override'!G38="",'Consolidated Input'!G38,('F_Input Override'!G38)) ->  | H38: =IF('F_Input Override'!H38="",'Consolidated Input'!H38,('F_Input Override'!H38)) ->  | I38: =IF('F_Input Override'!I38="",'Consolidated Input'!I38,('F_Input Override'!I38)) ->  | J38: =IF('F_Input Override'!J38="",'Consolidated Input'!J38,('F_Input Override'!J38)) ->  | K38: =IF('F_Input Override'!K38="",'Consolidated Input'!K38,('F_Input Override'!K38)) ->  | L38: =IF('F_Input Override'!L38="",'Consolidated Input'!L38,('F_Input Override'!L38)) ->  | M38: 0
A39: ='F_Input Override'!A39 -> SWB | B39: ='F_Input Override'!B39 -> POSTREALL_CW3_149TOT_PR24 | C39: ='F_Input Override'!C39 -> Resilience interconnectors; enhancement water totex - Total - Post reallocation | D39: ='F_Input Override'!D39 -> £m | E39: ='F_Input Override'!E39 -> Price Review 2024 | F39: =IF('F_Input Override'!F39="",'Consolidated Input'!F39,('F_Input Override'!F39)) ->  | G39: =IF('F_Input Override'!G39="",'Consolidated Input'!G39,('F_Input Override'!G39)) ->  | H39: =IF('F_Input Override'!H39="",'Consolidated Input'!H39,('F_Input Override'!H39)) -> 9.243452814 | I39: =IF('F_Input Override'!I39="",'Consolidated Input'!I39,('F_Input Override'!I39)) -> 7.048451859 | J39: =IF('F_Input Override'!J39="",'Consolidated Input'!J39,('F_Input Override'!J39)) -> 15.95849955 | K39: =IF('F_Input Override'!K39="",'Consolidated Input'!K39,('F_Input Override'!K39)) -> 19.63873011 | L39: =IF('F_Input Override'!L39="",'Consolidated Input'!L39,('F_Input Override'!L39)) -> 19.08486566 | M39: =SUM(F39:L39) -> 70.974
A40: ='F_Input Override'!A40 -> SRN | B40: ='F_Input Override'!B40 -> CW12_117TOT_PR24 | C40: ='F_Input Override'!C40 -> Water resilience and security - Resilience; enhancement water totex - Total | D40: ='F_Input Override'!D40 -> £m | E40: ='F_Input Override'!E40 -> Price Review 2024 | F40: =IF('F_Input Override'!F40="",'Consolidated Input'!F40,('F_Input Override'!F40)) -> 2.831 | G40: =IF('F_Input Override'!G40="",'Consolidated Input'!G40,('F_Input Override'!G40)) -> 86.911 | H40: =IF('F_Input Override'!H40="",'Consolidated Input'!H40,('F_Input Override'!H40)) ->  | I40: =IF('F_Input Override'!I40="",'Consolidated Input'!I40,('F_Input Override'!I40)) ->  | J40: =IF('F_Input Override'!J40="",'Consolidated Input'!J40,('F_Input Override'!J40)) ->  | K40: =IF('F_Input Override'!K40="",'Consolidated Input'!K40,('F_Input Override'!K40)) ->  | L40: =IF('F_Input Override'!L40="",'Consolidated Input'!L40,('F_Input Override'!L40)) ->  | M40: 89.742
A41: ='F_Input Override'!A41 -> SRN | B41: ='F_Input Override'!B41 -> CW17_117TOT_PR24 | C41: ='F_Input Override'!C41 -> Water resilience and security - Resilience; enhancement water totex - Total | D41: ='F_Input Override'!D41 -> £m | E41: ='F_Input Override'!E41 -> Price Review 2024 | F41: =IF('F_Input Override'!F41="",'Consolidated Input'!F41,('F_Input Override'!F41)) -> 0 | G41: =IF('F_Input Override'!G41="",'Consolidated Input'!G41,('F_Input Override'!G41)) -> 0 | H41: =IF('F_Input Override'!H41="",'Consolidated Input'!H41,('F_Input Override'!H41)) -> 0 | I41: =IF('F_Input Override'!I41="",'Consolidated Input'!I41,('F_Input Override'!I41)) -> 0 | J41: =IF('F_Input Override'!J41="",'Consolidated Input'!J41,('F_Input Override'!J41)) -> 0 | K41: =IF('F_Input Override'!K41="",'Consolidated Input'!K41,('F_Input Override'!K41)) -> 0 | L41: =IF('F_Input Override'!L41="",'Consolidated Input'!L41,('F_Input Override'!L41)) -> 0 | M41: 0
A42: ='F_Input Override'!A42 -> SRN | B42: ='F_Input Override'!B42 -> CW3_120TOT_PR24 | C42: ='F_Input Override'!C42 -> Water resilience and security - Resilience; enhancement water totex - Total | D42: ='F_Input Override'!D42 -> £m | E42: ='F_Input Override'!E42 -> Price Review 2024 | F42: =IF('F_Input Override'!F42="",'Consolidated Input'!F42,('F_Input Override'!F42)) -> 2.831 | G42: =IF('F_Input Override'!G42="",'Consolidated Input'!G42,('F_Input Override'!G42)) -> 86.911 | H42: =IF('F_Input Override'!H42="",'Consolidated Input'!H42,('F_Input Override'!H42)) -> 48.58778583 | I42: =IF('F_Input Override'!I42="",'Consolidated Input'!I42,('F_Input Override'!I42)) -> 79.09189694 | J42: =IF('F_Input Override'!J42="",'Consolidated Input'!J42,('F_Input Override'!J42)) -> 74.00946711 | K42: =IF('F_Input Override'!K42="",'Consolidated Input'!K42,('F_Input Override'!K42)) -> 75.06950358 | L42: =IF('F_Input Override'!L42="",'Consolidated Input'!L42,('F_Input Override'!L42)) -> 32.57279216 | M42: 399.0734456
A43: ='F_Input Override'!A43 -> SRN | B43: ='F_Input Override'!B43 -> POSTREALL_CW3_120TOT_PR24 | C43: ='F_Input Override'!C43 -> Water resilience and security - Resilience; enhancement water totex - Total - Post reallocation | D43: ='F_Input Override'!D43 -> £m | E43: ='F_Input Override'!E43 -> Price Review 2024 | F43: =IF('F_Input Override'!F43="",'Consolidated Input'!F43,('F_Input Override'!F43)) ->  | G43: =IF('F_Input Override'!G43="",'Consolidated Input'!G43,('F_Input Override'!G43)) ->  | H43: =IF('F_Input Override'!H43="",'Consolidated Input'!H43,('F_Input Override'!H43)) -> 48.58778583 | I43: =IF('F_Input Override'!I43="",'Consolidated Input'!I43,('F_Input Override'!I43)) -> 79.09189694 | J43: =IF('F_Input Override'!J43="",'Consolidated Input'!J43,('F_Input Override'!J43)) -> 74.00946711 | K43: =IF('F_Input Override'!K43="",'Consolidated Input'!K43,('F_Input Override'!K43)) -> 75.06950358 | L43: =IF('F_Input Override'!L43="",'Consolidated Input'!L43,('F_Input Override'!L43)) -> 32.57279216 | M43: 309.3314456
A44: ='F_Input Override'!A44 -> SRN | B44: ='F_Input Override'!B44 -> CW3_149TOT_PR24 | C44: ='F_Input Override'!C44 -> Resilience interconnectors; enhancement water totex - Total | D44: ='F_Input Override'!D44 -> £m | E44: ='F_Input Override'!E44 -> Price Review 2024 | F44: =IF('F_Input Override'!F44="",'Consolidated Input'!F44,('F_Input Override'!F44)) ->  | G44: =IF('F_Input Override'!G44="",'Consolidated Input'!G44,('F_Input Override'!G44)) ->  | H44: =IF('F_Input Override'!H44="",'Consolidated Input'!H44,('F_Input Override'!H44)) ->  | I44: =IF('F_Input Override'!I44="",'Consolidated Input'!I44,('F_Input Override'!I44)) ->  | J44: =IF('F_Input Override'!J44="",'Consolidated Input'!J44,('F_Input Override'!J44)) ->  | K44: =IF('F_Input Override'!K44="",'Consolidated Input'!K44,('F_Input Override'!K44)) ->  | L44: =IF('F_Input Override'!L44="",'Consolidated Input'!L44,('F_Input Override'!L44)) ->  | M44: 0
A45: ='F_Input Override'!A45 -> SRN | B45: ='F_Input Override'!B45 -> POSTREALL_CW3_149TOT_PR24 | C45: ='F_Input Override'!C45 -> Resilience interconnectors; enhancement water totex - Total - Post reallocation | D45: ='F_Input Override'!D45 -> £m | E45: ='F_Input Override'!E45 -> Price Review 2024 | F45: =IF('F_Input Override'!F45="",'Consolidated Input'!F45,('F_Input Override'!F45)) ->  | G45: =IF('F_Input Override'!G45="",'Consolidated Input'!G45,('F_Input Override'!G45)) ->  | H45: =IF('F_Input Override'!H45="",'Consolidated Input'!H45,('F_Input Override'!H45)) -> 0 | I45: =IF('F_Input Override'!I45="",'Consolidated Input'!I45,('F_Input Override'!I45)) -> 0 | J45: =IF('F_Input Override'!J45="",'Consolidated Input'!J45,('F_Input Override'!J45)) -> 0 | K45: =IF('F_Input Override'!K45="",'Consolidated Input'!K45,('F_Input Override'!K45)) -> 0 | L45: =IF('F_Input Override'!L45="",'Consolidated Input'!L45,('F_Input Override'!L45)) -> 0 | M45: =SUM(F45:L45) -> 0
A46: ='F_Input Override'!A46 -> TMS | B46: ='F_Input Override'!B46 -> CW12_117TOT_PR24 | C46: ='F_Input Override'!C46 -> Water resilience and security - Resilience; enhancement water totex - Total | D46: ='F_Input Override'!D46 -> £m | E46: ='F_Input Override'!E46 -> Price Review 2024 | F46: =IF('F_Input Override'!F46="",'Consolidated Input'!F46,('F_Input Override'!F46)) -> 0 | G46: =IF('F_Input Override'!G46="",'Consolidated Input'!G46,('F_Input Override'!G46)) -> 0 | H46: =IF('F_Input Override'!H46="",'Consolidated Input'!H46,('F_Input Override'!H46)) ->  | I46: =IF('F_Input Override'!I46="",'Consolidated Input'!I46,('F_Input Override'!I46)) ->  | J46: =IF('F_Input Override'!J46="",'Consolidated Input'!J46,('F_Input Override'!J46)) ->  | K46: =IF('F_Input Override'!K46="",'Consolidated Input'!K46,('F_Input Override'!K46)) ->  | L46: =IF('F_Input Override'!L46="",'Consolidated Input'!L46,('F_Input Override'!L46)) ->  | M46: 0
A47: ='F_Input Override'!A47 -> TMS | B47: ='F_Input Override'!B47 -> CW17_117TOT_PR24 | C47: ='F_Input Override'!C47 -> Water resilience and security - Resilience; enhancement water totex - Total | D47: ='F_Input Override'!D47 -> £m | E47: ='F_Input Override'!E47 -> Price Review 2024 | F47: =IF('F_Input Override'!F47="",'Consolidated Input'!F47,('F_Input Override'!F47)) -> 0 | G47: =IF('F_Input Override'!G47="",'Consolidated Input'!G47,('F_Input Override'!G47)) -> 0 | H47: =IF('F_Input Override'!H47="",'Consolidated Input'!H47,('F_Input Override'!H47)) -> 0 | I47: =IF('F_Input Override'!I47="",'Consolidated Input'!I47,('F_Input Override'!I47)) -> 0 | J47: =IF('F_Input Override'!J47="",'Consolidated Input'!J47,('F_Input Override'!J47)) -> 0 | K47: =IF('F_Input Override'!K47="",'Consolidated Input'!K47,('F_Input Override'!K47)) -> 0 | L47: =IF('F_Input Override'!L47="",'Consolidated Input'!L47,('F_Input Override'!L47)) -> 0 | M47: 0
A48: ='F_Input Override'!A48 -> TMS | B48: ='F_Input Override'!B48 -> CW3_120TOT_PR24 | C48: ='F_Input Override'!C48 -> Water resilience and security - Resilience; enhancement water totex - Total | D48: ='F_Input Override'!D48 -> £m | E48: ='F_Input Override'!E48 -> Price Review 2024 | F48: =IF('F_Input Override'!F48="",'Consolidated Input'!F48,('F_Input Override'!F48)) -> 8.577 | G48: =IF('F_Input Override'!G48="",'Consolidated Input'!G48,('F_Input Override'!G48)) -> 23.38 | H48: =IF('F_Input Override'!H48="",'Consolidated Input'!H48,('F_Input Override'!H48)) -> 58.455 | I48: =IF('F_Input Override'!I48="",'Consolidated Input'!I48,('F_Input Override'!I48)) -> 107.338 | J48: =IF('F_Input Override'!J48="",'Consolidated Input'!J48,('F_Input Override'!J48)) -> 105.968 | K48: =IF('F_Input Override'!K48="",'Consolidated Input'!K48,('F_Input Override'!K48)) -> 110.421 | L48: =IF('F_Input Override'!L48="",'Consolidated Input'!L48,('F_Input Override'!L48)) -> 102.01 | M48: 516.149
A49: ='F_Input Override'!A49 -> TMS | B49: ='F_Input Override'!B49 -> POSTREALL_CW3_120TOT_PR24 | C49: ='F_Input Override'!C49 -> Water resilience and security - Resilience; enhancement water totex - Total - Post reallocation | D49: ='F_Input Override'!D49 -> £m | E49: ='F_Input Override'!E49 -> Price Review 2024 | F49: =IF('F_Input Override'!F49="",'Consolidated Input'!F49,('F_Input Override'!F49)) ->  | G49: =IF('F_Input Override'!G49="",'Consolidated Input'!G49,('F_Input Override'!G49)) ->  | H49: =IF('F_Input Override'!H49="",'Consolidated Input'!H49,('F_Input Override'!H49)) -> 58.455 | I49: =IF('F_Input Override'!I49="",'Consolidated Input'!I49,('F_Input Override'!I49)) -> 107.338 | J49: =IF('F_Input Override'!J49="",'Consolidated Input'!J49,('F_Input Override'!J49)) -> 105.968 | K49: =IF('F_Input Override'!K49="",'Consolidated Input'!K49,('F_Input Override'!K49)) -> 110.421 | L49: =IF('F_Input Override'!L49="",'Consolidated Input'!L49,('F_Input Override'!L49)) -> 102.01 | M49: 484.192
A50: ='F_Input Override'!A50 -> TMS | B50: ='F_Input Override'!B50 -> CW3_149TOT_PR24 | C50: ='F_Input Override'!C50 -> Resilience interconnectors; enhancement water totex - Total | D50: ='F_Input Override'!D50 -> £m | E50: ='F_Input Override'!E50 -> Price Review 2024 | F50: =IF('F_Input Override'!F50="",'Consolidated Input'!F50,('F_Input Override'!F50)) ->  | G50: =IF('F_Input Override'!G50="",'Consolidated Input'!G50,('F_Input Override'!G50)) ->  | H50: =IF('F_Input Override'!H50="",'Consolidated Input'!H50,('F_Input Override'!H50)) ->  | I50: =IF('F_Input Override'!I50="",'Consolidated Input'!I50,('F_Input Override'!I50)) ->  | J50: =IF('F_Input Override'!J50="",'Consolidated Input'!J50,('F_Input Override'!J50)) ->  | K50: =IF('F_Input Override'!K50="",'Consolidated Input'!K50,('F_Input Override'!K50)) ->  | L50: =IF('F_Input Override'!L50="",'Consolidated Input'!L50,('F_Input Override'!L50)) ->  | M50: 0
A51: ='F_Input Override'!A51 -> TMS | B51: ='F_Input Override'!B51 -> POSTREALL_CW3_149TOT_PR24 | C51: ='F_Input Override'!C51 -> Resilience interconnectors; enhancement water totex - Total - Post reallocation | D51: ='F_Input Override'!D51 -> £m | E51: ='F_Input Override'!E51 -> Price Review 2024 | F51: =IF('F_Input Override'!F51="",'Consolidated Input'!F51,('F_Input Override'!F51)) ->  | G51: =IF('F_Input Override'!G51="",'Consolidated Input'!G51,('F_Input Override'!G51)) ->  | H51: =IF('F_Input Override'!H51="",'Consolidated Input'!H51,('F_Input Override'!H51)) -> 0 | I51: =IF('F_Input Override'!I51="",'Consolidated Input'!I51,('F_Input Override'!I51)) -> 0 | J51: =IF('F_Input Override'!J51="",'Consolidated Input'!J51,('F_Input Override'!J51)) -> 0 | K51: =IF('F_Input Override'!K51="",'Consolidated Input'!K51,('F_Input Override'!K51)) -> 0 | L51: =IF('F_Input Override'!L51="",'Consolidated Input'!L51,('F_Input Override'!L51)) -> 0 | M51: =SUM(F51:L51) -> 0
A52: ='F_Input Override'!A52 -> WSX | B52: ='F_Input Override'!B52 -> CW12_117TOT_PR24 | C52: ='F_Input Override'!C52 -> Water resilience and security - Resilience; enhancement water totex - Total | D52: ='F_Input Override'!D52 -> £m | E52: ='F_Input Override'!E52 -> Price Review 2024 | F52: =IF('F_Input Override'!F52="",'Consolidated Input'!F52,('F_Input Override'!F52)) -> 0 | G52: =IF('F_Input Override'!G52="",'Consolidated Input'!G52,('F_Input Override'!G52)) -> 0.163983 | H52: =IF('F_Input Override'!H52="",'Consolidated Input'!H52,('F_Input Override'!H52)) ->  | I52: =IF('F_Input Override'!I52="",'Consolidated Input'!I52,('F_Input Override'!I52)) ->  | J52: =IF('F_Input Override'!J52="",'Consolidated Input'!J52,('F_Input Override'!J52)) ->  | K52: =IF('F_Input Override'!K52="",'Consolidated Input'!K52,('F_Input Override'!K52)) ->  | L52: =IF('F_Input Override'!L52="",'Consolidated Input'!L52,('F_Input Override'!L52)) ->  | M52: 0.163983
A53: ='F_Input Override'!A53 -> WSX | B53: ='F_Input Override'!B53 -> CW17_117TOT_PR24 | C53: ='F_Input Override'!C53 -> Water resilience and security - Resilience; enhancement water totex - Total | D53: ='F_Input Override'!D53 -> £m | E53: ='F_Input Override'!E53 -> Price Review 2024 | F53: =IF('F_Input Override'!F53="",'Consolidated Input'!F53,('F_Input Override'!F53)) -> 0 | G53: =IF('F_Input Override'!G53="",'Consolidated Input'!G53,('F_Input Override'!G53)) -> 0 | H53: =IF('F_Input Override'!H53="",'Consolidated Input'!H53,('F_Input Override'!H53)) -> 0 | I53: =IF('F_Input Override'!I53="",'Consolidated Input'!I53,('F_Input Override'!I53)) -> 0 | J53: =IF('F_Input Override'!J53="",'Consolidated Input'!J53,('F_Input Override'!J53)) -> 0 | K53: =IF('F_Input Override'!K53="",'Consolidated Input'!K53,('F_Input Override'!K53)) -> 0 | L53: =IF('F_Input Override'!L53="",'Consolidated Input'!L53,('F_Input Override'!L53)) -> 0 | M53: 0
A54: ='F_Input Override'!A54 -> WSX | B54: ='F_Input Override'!B54 -> CW3_120TOT_PR24 | C54: ='F_Input Override'!C54 -> Water resilience and security - Resilience; enhancement water totex - Total | D54: ='F_Input Override'!D54 -> £m | E54: ='F_Input Override'!E54 -> Price Review 2024 | F54: =IF('F_Input Override'!F54="",'Consolidated Input'!F54,('F_Input Override'!F54)) -> 0 | G54: =IF('F_Input Override'!G54="",'Consolidated Input'!G54,('F_Input Override'!G54)) -> 0.163983 | H54: =IF('F_Input Override'!H54="",'Consolidated Input'!H54,('F_Input Override'!H54)) -> 0.637745 | I54: =IF('F_Input Override'!I54="",'Consolidated Input'!I54,('F_Input Override'!I54)) -> 0.640934 | J54: =IF('F_Input Override'!J54="",'Consolidated Input'!J54,('F_Input Override'!J54)) -> 0.02656 | K54: =IF('F_Input Override'!K54="",'Consolidated Input'!K54,('F_Input Override'!K54)) -> 0.026692 | L54: =IF('F_Input Override'!L54="",'Consolidated Input'!L54,('F_Input Override'!L54)) -> 0.160952 | M54: 1.656866
A55: ='F_Input Override'!A55 -> WSX | B55: ='F_Input Override'!B55 -> POSTREALL_CW3_120TOT_PR24 | C55: ='F_Input Override'!C55 -> Water resilience and security - Resilience; enhancement water totex - Total - Post reallocation | D55: ='F_Input Override'!D55 -> £m | E55: ='F_Input Override'!E55 -> Price Review 2024 | F55: =IF('F_Input Override'!F55="",'Consolidated Input'!F55,('F_Input Override'!F55)) ->  | G55: =IF('F_Input Override'!G55="",'Consolidated Input'!G55,('F_Input Override'!G55)) ->  | H55: =IF('F_Input Override'!H55="",'Consolidated Input'!H55,('F_Input Override'!H55)) -> 0.637745 | I55: =IF('F_Input Override'!I55="",'Consolidated Input'!I55,('F_Input Override'!I55)) -> 0.640934 | J55: =IF('F_Input Override'!J55="",'Consolidated Input'!J55,('F_Input Override'!J55)) -> 0.02656 | K55: =IF('F_Input Override'!K55="",'Consolidated Input'!K55,('F_Input Override'!K55)) -> 0.026692 | L55: =IF('F_Input Override'!L55="",'Consolidated Input'!L55,('F_Input Override'!L55)) -> 0.160952 | M55: 1.492883
A56: ='F_Input Override'!A56 -> WSX | B56: ='F_Input Override'!B56 -> CW3_149TOT_PR24 | C56: ='F_Input Override'!C56 -> Resilience interconnectors; enhancement water totex - Total | D56: ='F_Input Override'!D56 -> £m | E56: ='F_Input Override'!E56 -> Price Review 2024 | F56: =IF('F_Input Override'!F56="",'Consolidated Input'!F56,('F_Input Override'!F56)) ->  | G56: =IF('F_Input Override'!G56="",'Consolidated Input'!G56,('F_Input Override'!G56)) ->  | H56: =IF('F_Input Override'!H56="",'Consolidated Input'!H56,('F_Input Override'!H56)) ->  | I56: =IF('F_Input Override'!I56="",'Consolidated Input'!I56,('F_Input Override'!I56)) ->  | J56: =IF('F_Input Override'!J56="",'Consolidated Input'!J56,('F_Input Override'!J56)) ->  | K56: =IF('F_Input Override'!K56="",'Consolidated Input'!K56,('F_Input Override'!K56)) ->  | L56: =IF('F_Input Override'!L56="",'Consolidated Input'!L56,('F_Input Override'!L56)) ->  | M56: 0
A57: ='F_Input Override'!A57 -> WSX | B57: ='F_Input Override'!B57 -> POSTREALL_CW3_149TOT_PR24 | C57: ='F_Input Override'!C57 -> Resilience interconnectors; enhancement water totex - Total - Post reallocation | D57: ='F_Input Override'!D57 -> £m | E57: ='F_Input Override'!E57 -> Price Review 2024 | F57: =IF('F_Input Override'!F57="",'Consolidated Input'!F57,('F_Input Override'!F57)) ->  | G57: =IF('F_Input Override'!G57="",'Consolidated Input'!G57,('F_Input Override'!G57)) ->  | H57: =IF('F_Input Override'!H57="",'Consolidated Input'!H57,('F_Input Override'!H57)) -> 0 | I57: =IF('F_Input Override'!I57="",'Consolidated Input'!I57,('F_Input Override'!I57)) -> 0 | J57: =IF('F_Input Override'!J57="",'Consolidated Input'!J57,('F_Input Override'!J57)) -> 0 | K57: =IF('F_Input Override'!K57="",'Consolidated Input'!K57,('F_Input Override'!K57)) -> 0 | L57: =IF('F_Input Override'!L57="",'Consolidated Input'!L57,('F_Input Override'!L57)) -> 0 | M57: =SUM(F57:L57) -> 0
A58: ='F_Input Override'!A58 -> YKY | B58: ='F_Input Override'!B58 -> CW12_117TOT_PR24 | C58: ='F_Input Override'!C58 -> Water resilience and security - Resilience; enhancement water totex - Total | D58: ='F_Input Override'!D58 -> £m | E58: ='F_Input Override'!E58 -> Price Review 2024 | F58: =IF('F_Input Override'!F58="",'Consolidated Input'!F58,('F_Input Override'!F58)) -> 0 | G58: =IF('F_Input Override'!G58="",'Consolidated Input'!G58,('F_Input Override'!G58)) -> 0 | H58: =IF('F_Input Override'!H58="",'Consolidated Input'!H58,('F_Input Override'!H58)) ->  | I58: =IF('F_Input Override'!I58="",'Consolidated Input'!I58,('F_Input Override'!I58)) ->  | J58: =IF('F_Input Override'!J58="",'Consolidated Input'!J58,('F_Input Override'!J58)) ->  | K58: =IF('F_Input Override'!K58="",'Consolidated Input'!K58,('F_Input Override'!K58)) ->  | L58: =IF('F_Input Override'!L58="",'Consolidated Input'!L58,('F_Input Override'!L58)) ->  | M58: 0
A59: ='F_Input Override'!A59 -> YKY | B59: ='F_Input Override'!B59 -> CW17_117TOT_PR24 | C59: ='F_Input Override'!C59 -> Water resilience and security - Resilience; enhancement water totex - Total | D59: ='F_Input Override'!D59 -> £m | E59: ='F_Input Override'!E59 -> Price Review 2024 | F59: =IF('F_Input Override'!F59="",'Consolidated Input'!F59,('F_Input Override'!F59)) -> 0 | G59: =IF('F_Input Override'!G59="",'Consolidated Input'!G59,('F_Input Override'!G59)) -> 0 | H59: =IF('F_Input Override'!H59="",'Consolidated Input'!H59,('F_Input Override'!H59)) -> 0 | I59: =IF('F_Input Override'!I59="",'Consolidated Input'!I59,('F_Input Override'!I59)) -> 0 | J59: =IF('F_Input Override'!J59="",'Consolidated Input'!J59,('F_Input Override'!J59)) -> 0 | K59: =IF('F_Input Override'!K59="",'Consolidated Input'!K59,('F_Input Override'!K59)) -> 0 | L59: =IF('F_Input Override'!L59="",'Consolidated Input'!L59,('F_Input Override'!L59)) -> 0 | M59: 0
A60: ='F_Input Override'!A60 -> YKY | B60: ='F_Input Override'!B60 -> CW3_120TOT_PR24 | C60: ='F_Input Override'!C60 -> Water resilience and security - Resilience; enhancement water totex - Total | D60: ='F_Input Override'!D60 -> £m | E60: ='F_Input Override'!E60 -> Price Review 2024 | F60: =IF('F_Input Override'!F60="",'Consolidated Input'!F60,('F_Input Override'!F60)) -> 0 | G60: =IF('F_Input Override'!G60="",'Consolidated Input'!G60,('F_Input Override'!G60)) -> 0 | H60: =IF('F_Input Override'!H60="",'Consolidated Input'!H60,('F_Input Override'!H60)) -> 3.7903936 | I60: =IF('F_Input Override'!I60="",'Consolidated Input'!I60,('F_Input Override'!I60)) -> 5.3613568 | J60: =IF('F_Input Override'!J60="",'Consolidated Input'!J60,('F_Input Override'!J60)) -> 12.406272 | K60: =IF('F_Input Override'!K60="",'Consolidated Input'!K60,('F_Input Override'!K60)) -> 7.0942464 | L60: =IF('F_Input Override'!L60="",'Consolidated Input'!L60,('F_Input Override'!L60)) -> 7.4122752 | M60: 36.064544
A61: ='F_Input Override'!A61 -> YKY | B61: ='F_Input Override'!B61 -> POSTREALL_CW3_120TOT_PR24 | C61: ='F_Input Override'!C61 -> Water resilience and security - Resilience; enhancement water totex - Total - Post reallocation | D61: ='F_Input Override'!D61 -> £m | E61: ='F_Input Override'!E61 -> Price Review 2024 | F61: =IF('F_Input Override'!F61="",'Consolidated Input'!F61,('F_Input Override'!F61)) ->  | G61: =IF('F_Input Override'!G61="",'Consolidated Input'!G61,('F_Input Override'!G61)) ->  | H61: =IF('F_Input Override'!H61="",'Consolidated Input'!H61,('F_Input Override'!H61)) -> 3.7903936 | I61: =IF('F_Input Override'!I61="",'Consolidated Input'!I61,('F_Input Override'!I61)) -> 5.3613568 | J61: =IF('F_Input Override'!J61="",'Consolidated Input'!J61,('F_Input Override'!J61)) -> 12.406272 | K61: =IF('F_Input Override'!K61="",'Consolidated Input'!K61,('F_Input Override'!K61)) -> 7.0942464 | L61: =IF('F_Input Override'!L61="",'Consolidated Input'!L61,('F_Input Override'!L61)) -> 7.4122752 | M61: 36.064544
A62: ='F_Input Override'!A62 -> YKY | B62: ='F_Input Override'!B62 -> CW3_149TOT_PR24 | C62: ='F_Input Override'!C62 -> Resilience interconnectors; enhancement water totex - Total | D62: ='F_Input Override'!D62 -> £m | E62: ='F_Input Override'!E62 -> Price Review 2024 | F62: =IF('F_Input Override'!F62="",'Consolidated Input'!F62,('F_Input Override'!F62)) ->  | G62: =IF('F_Input Override'!G62="",'Consolidated Input'!G62,('F_Input Override'!G62)) ->  | H62: =IF('F_Input Override'!H62="",'Consolidated Input'!H62,('F_Input Override'!H62)) ->  | I62: =IF('F_Input Override'!I62="",'Consolidated Input'!I62,('F_Input Override'!I62)) ->  | J62: =IF('F_Input Override'!J62="",'Consolidated Input'!J62,('F_Input Override'!J62)) ->  | K62: =IF('F_Input Override'!K62="",'Consolidated Input'!K62,('F_Input Override'!K62)) ->  | L62: =IF('F_Input Override'!L62="",'Consolidated Input'!L62,('F_Input Override'!L62)) ->  | M62: 0
A63: ='F_Input Override'!A63 -> YKY | B63: ='F_Input Override'!B63 -> POSTREALL_CW3_149TOT_PR24 | C63: ='F_Input Override'!C63 -> Resilience interconnectors; enhancement water totex - Total - Post reallocation | D63: ='F_Input Override'!D63 -> £m | E63: ='F_Input Override'!E63 -> Price Review 2024 | F63: =IF('F_Input Override'!F63="",'Consolidated Input'!F63,('F_Input Override'!F63)) ->  | G63: =IF('F_Input Override'!G63="",'Consolidated Input'!G63,('F_Input Override'!G63)) ->  | H63: =IF('F_Input Override'!H63="",'Consolidated Input'!H63,('F_Input Override'!H63)) -> 0 | I63: =IF('F_Input Override'!I63="",'Consolidated Input'!I63,('F_Input Override'!I63)) -> 0 | J63: =IF('F_Input Override'!J63="",'Consolidated Input'!J63,('F_Input Override'!J63)) -> 0 | K63: =IF('F_Input Override'!K63="",'Consolidated Input'!K63,('F_Input Override'!K63)) -> 0 | L63: =IF('F_Input Override'!L63="",'Consolidated Input'!L63,('F_Input Override'!L63)) -> 0 | M63: =SUM(F63:L63) -> 0
A64: ='F_Input Override'!A64 -> AFW | B64: ='F_Input Override'!B64 -> CW12_117TOT_PR24 | C64: ='F_Input Override'!C64 -> Water resilience and security - Resilience; enhancement water totex - Total | D64: ='F_Input Override'!D64 -> £m | E64: ='F_Input Override'!E64 -> Price Review 2024 | F64: =IF('F_Input Override'!F64="",'Consolidated Input'!F64,('F_Input Override'!F64)) -> 0 | G64: =IF('F_Input Override'!G64="",'Consolidated Input'!G64,('F_Input Override'!G64)) -> 0 | H64: =IF('F_Input Override'!H64="",'Consolidated Input'!H64,('F_Input Override'!H64)) -> 0 | I64: =IF('F_Input Override'!I64="",'Consolidated Input'!I64,('F_Input Override'!I64)) -> 0 | J64: =IF('F_Input Override'!J64="",'Consolidated Input'!J64,('F_Input Override'!J64)) -> 0 | K64: =IF('F_Input Override'!K64="",'Consolidated Input'!K64,('F_Input Override'!K64)) -> 0 | L64: =IF('F_Input Override'!L64="",'Consolidated Input'!L64,('F_Input Override'!L64)) -> 0 | M64: 0
A65: ='F_Input Override'!A65 -> AFW | B65: ='F_Input Override'!B65 -> CW17_117TOT_PR24 | C65: ='F_Input Override'!C65 -> Water resilience and security - Resilience; enhancement water totex - Total | D65: ='F_Input Override'!D65 -> £m | E65: ='F_Input Override'!E65 -> Price Review 2024 | F65: =IF('F_Input Override'!F65="",'Consolidated Input'!F65,('F_Input Override'!F65)) -> 0 | G65: =IF('F_Input Override'!G65="",'Consolidated Input'!G65,('F_Input Override'!G65)) -> 0 | H65: =IF('F_Input Override'!H65="",'Consolidated Input'!H65,('F_Input Override'!H65)) -> 0 | I65: =IF('F_Input Override'!I65="",'Consolidated Input'!I65,('F_Input Override'!I65)) -> 0 | J65: =IF('F_Input Override'!J65="",'Consolidated Input'!J65,('F_Input Override'!J65)) -> 0 | K65: =IF('F_Input Override'!K65="",'Consolidated Input'!K65,('F_Input Override'!K65)) -> 0 | L65: =IF('F_Input Override'!L65="",'Consolidated Input'!L65,('F_Input Override'!L65)) -> 0 | M65: 0
A66: ='F_Input Override'!A66 -> AFW | B66: ='F_Input Override'!B66 -> CW3_120TOT_PR24 | C66: ='F_Input Override'!C66 -> Water resilience and security - Resilience; enhancement water totex - Total | D66: ='F_Input Override'!D66 -> £m | E66: ='F_Input Override'!E66 -> Price Review 2024 | F66: =IF('F_Input Override'!F66="",'Consolidated Input'!F66,('F_Input Override'!F66)) -> 7.651 | G66: =IF('F_Input Override'!G66="",'Consolidated Input'!G66,('F_Input Override'!G66)) -> 11.466 | H66: =IF('F_Input Override'!H66="",'Consolidated Input'!H66,('F_Input Override'!H66)) -> 2.732 | I66: =IF('F_Input Override'!I66="",'Consolidated Input'!I66,('F_Input Override'!I66)) -> 3.723 | J66: =IF('F_Input Override'!J66="",'Consolidated Input'!J66,('F_Input Override'!J66)) -> 5.086 | K66: =IF('F_Input Override'!K66="",'Consolidated Input'!K66,('F_Input Override'!K66)) -> 5.763 | L66: =IF('F_Input Override'!L66="",'Consolidated Input'!L66,('F_Input Override'!L66)) -> 4.4 | M66: 40.821
A67: ='F_Input Override'!A67 -> AFW | B67: ='F_Input Override'!B67 -> POSTREALL_CW3_120TOT_PR24 | C67: ='F_Input Override'!C67 -> Water resilience and security - Resilience; enhancement water totex - Total - Post reallocation | D67: ='F_Input Override'!D67 -> £m | E67: ='F_Input Override'!E67 -> Price Review 2024 | F67: =IF('F_Input Override'!F67="",'Consolidated Input'!F67,('F_Input Override'!F67)) ->  | G67: =IF('F_Input Override'!G67="",'Consolidated Input'!G67,('F_Input Override'!G67)) ->  | H67: =IF('F_Input Override'!H67="",'Consolidated Input'!H67,('F_Input Override'!H67)) -> 0.5820687259 | I67: =IF('F_Input Override'!I67="",'Consolidated Input'!I67,('F_Input Override'!I67)) -> 1.473134363 | J67: =IF('F_Input Override'!J67="",'Consolidated Input'!J67,('F_Input Override'!J67)) -> 2.012452691 | K67: =IF('F_Input Override'!K67="",'Consolidated Input'!K67,('F_Input Override'!K67)) -> 2.280331274 | L67: =IF('F_Input Override'!L67="",'Consolidated Input'!L67,('F_Input Override'!L67)) -> 1.741012946 | M67: 8.089
A68: ='F_Input Override'!A68 -> AFW | B68: ='F_Input Override'!B68 -> CW3_149TOT_PR24 | C68: ='F_Input Override'!C68 -> Resilience interconnectors; enhancement water totex - Total | D68: ='F_Input Override'!D68 -> £m | E68: ='F_Input Override'!E68 -> Price Review 2024 | F68: =IF('F_Input Override'!F68="",'Consolidated Input'!F68,('F_Input Override'!F68)) ->  | G68: =IF('F_Input Override'!G68="",'Consolidated Input'!G68,('F_Input Override'!G68)) ->  | H68: =IF('F_Input Override'!H68="",'Consolidated Input'!H68,('F_Input Override'!H68)) ->  | I68: =IF('F_Input Override'!I68="",'Consolidated Input'!I68,('F_Input Override'!I68)) ->  | J68: =IF('F_Input Override'!J68="",'Consolidated Input'!J68,('F_Input Override'!J68)) ->  | K68: =IF('F_Input Override'!K68="",'Consolidated Input'!K68,('F_Input Override'!K68)) ->  | L68: =IF('F_Input Override'!L68="",'Consolidated Input'!L68,('F_Input Override'!L68)) ->  | M68: 0
A69: ='F_Input Override'!A69 -> AFW | B69: ='F_Input Override'!B69 -> POSTREALL_CW3_149TOT_PR24 | C69: ='F_Input Override'!C69 -> Resilience interconnectors; enhancement water totex - Total - Post reallocation | D69: ='F_Input Override'!D69 -> £m | E69: ='F_Input Override'!E69 -> Price Review 2024 | F69: =IF('F_Input Override'!F69="",'Consolidated Input'!F69,('F_Input Override'!F69)) -> 0.066 | G69: =IF('F_Input Override'!G69="",'Consolidated Input'!G69,('F_Input Override'!G69)) -> 0.245 | H69: =IF('F_Input Override'!H69="",'Consolidated Input'!H69,('F_Input Override'!H69)) -> 1.052 | I69: =IF('F_Input Override'!I69="",'Consolidated Input'!I69,('F_Input Override'!I69)) -> 2.043 | J69: =IF('F_Input Override'!J69="",'Consolidated Input'!J69,('F_Input Override'!J69)) -> 3.406 | K69: =IF('F_Input Override'!K69="",'Consolidated Input'!K69,('F_Input Override'!K69)) -> 4.083 | L69: =IF('F_Input Override'!L69="",'Consolidated Input'!L69,('F_Input Override'!L69)) -> 2.72 | M69: =SUM(F69:L69) -> 13.615
A70: ='F_Input Override'!A70 -> BRL | B70: ='F_Input Override'!B70 -> CW12_117TOT_PR24 | C70: ='F_Input Override'!C70 -> Water resilience and security - Resilience; enhancement water totex - Total | D70: ='F_Input Override'!D70 -> £m | E70: ='F_Input Override'!E70 -> Price Review 2024 | F70: =IF('F_Input Override'!F70="",'Consolidated Input'!F70,('F_Input Override'!F70)) -> 0 | G70: =IF('F_Input Override'!G70="",'Consolidated Input'!G70,('F_Input Override'!G70)) -> 0 | H70: =IF('F_Input Override'!H70="",'Consolidated Input'!H70,('F_Input Override'!H70)) ->  | I70: =IF('F_Input Override'!I70="",'Consolidated Input'!I70,('F_Input Override'!I70)) ->  | J70: =IF('F_Input Override'!J70="",'Consolidated Input'!J70,('F_Input Override'!J70)) ->  | K70: =IF('F_Input Override'!K70="",'Consolidated Input'!K70,('F_Input Override'!K70)) ->  | L70: =IF('F_Input Override'!L70="",'Consolidated Input'!L70,('F_Input Override'!L70)) ->  | M70: =SUM(F70:L70) -> 0
A71: ='F_Input Override'!A71 -> BRL | B71: ='F_Input Override'!B71 -> CW17_117TOT_PR24 | C71: ='F_Input Override'!C71 -> Water resilience and security - Resilience; enhancement water totex - Total | D71: ='F_Input Override'!D71 -> £m | E71: ='F_Input Override'!E71 -> Price Review 2024 | F71: =IF('F_Input Override'!F71="",'Consolidated Input'!F71,('F_Input Override'!F71)) -> 0 | G71: =IF('F_Input Override'!G71="",'Consolidated Input'!G71,('F_Input Override'!G71)) -> 0 | H71: =IF('F_Input Override'!H71="",'Consolidated Input'!H71,('F_Input Override'!H71)) -> 0 | I71: =IF('F_Input Override'!I71="",'Consolidated Input'!I71,('F_Input Override'!I71)) -> 0 | J71: =IF('F_Input Override'!J71="",'Consolidated Input'!J71,('F_Input Override'!J71)) -> 0 | K71: =IF('F_Input Override'!K71="",'Consolidated Input'!K71,('F_Input Override'!K71)) -> 0 | L71: =IF('F_Input Override'!L71="",'Consolidated Input'!L71,('F_Input Override'!L71)) -> 0 | M71: 0
A72: ='F_Input Override'!A72 -> BRL | B72: ='F_Input Override'!B72 -> CW3_120TOT_PR24 | C72: ='F_Input Override'!C72 -> Water resilience and security - Resilience; enhancement water totex - Total | D72: ='F_Input Override'!D72 -> £m | E72: ='F_Input Override'!E72 -> Price Review 2024 | F72: =IF('F_Input Override'!F72="",'Consolidated Input'!F72,('F_Input Override'!F72)) -> 0.125 | G72: =IF('F_Input Override'!G72="",'Consolidated Input'!G72,('F_Input Override'!G72)) -> 0.06610047272 | H72: =IF('F_Input Override'!H72="",'Consolidated Input'!H72,('F_Input Override'!H72)) -> 0 | I72: =IF('F_Input Override'!I72="",'Consolidated Input'!I72,('F_Input Override'!I72)) -> 0 | J72: =IF('F_Input Override'!J72="",'Consolidated Input'!J72,('F_Input Override'!J72)) -> 0 | K72: =IF('F_Input Override'!K72="",'Consolidated Input'!K72,('F_Input Override'!K72)) -> 0 | L72: =IF('F_Input Override'!L72="",'Consolidated Input'!L72,('F_Input Override'!L72)) -> 0 | M72: 0.1911004727
A73: ='F_Input Override'!A73 -> BRL | B73: ='F_Input Override'!B73 -> POSTREALL_CW3_120TOT_PR24 | C73: ='F_Input Override'!C73 -> Water resilience and security - Resilience; enhancement water totex - Total - Post reallocation | D73: ='F_Input Override'!D73 -> £m | E73: ='F_Input Override'!E73 -> Price Review 2024 | F73: =IF('F_Input Override'!F73="",'Consolidated Input'!F73,('F_Input Override'!F73)) ->  | G73: =IF('F_Input Override'!G73="",'Consolidated Input'!G73,('F_Input Override'!G73)) ->  | H73: =IF('F_Input Override'!H73="",'Consolidated Input'!H73,('F_Input Override'!H73)) -> 0 | I73: =IF('F_Input Override'!I73="",'Consolidated Input'!I73,('F_Input Override'!I73)) -> 0 | J73: =IF('F_Input Override'!J73="",'Consolidated Input'!J73,('F_Input Override'!J73)) -> 0 | K73: =IF('F_Input Override'!K73="",'Consolidated Input'!K73,('F_Input Override'!K73)) -> 0 | L73: =IF('F_Input Override'!L73="",'Consolidated Input'!L73,('F_Input Override'!L73)) -> 0 | M73: 0
A74: ='F_Input Override'!A74 -> BRL | B74: ='F_Input Override'!B74 -> CW3_149TOT_PR24 | C74: ='F_Input Override'!C74 -> Resilience interconnectors; enhancement water totex - Total | D74: ='F_Input Override'!D74 -> £m | E74: ='F_Input Override'!E74 -> Price Review 2024 | F74: =IF('F_Input Override'!F74="",'Consolidated Input'!F74,('F_Input Override'!F74)) ->  | G74: =IF('F_Input Override'!G74="",'Consolidated Input'!G74,('F_Input Override'!G74)) ->  | H74: =IF('F_Input Override'!H74="",'Consolidated Input'!H74,('F_Input Override'!H74)) ->  | I74: =IF('F_Input Override'!I74="",'Consolidated Input'!I74,('F_Input Override'!I74)) ->  | J74: =IF('F_Input Override'!J74="",'Consolidated Input'!J74,('F_Input Override'!J74)) ->  | K74: =IF('F_Input Override'!K74="",'Consolidated Input'!K74,('F_Input Override'!K74)) ->  | L74: =IF('F_Input Override'!L74="",'Consolidated Input'!L74,('F_Input Override'!L74)) ->  | M74: 0
A75: ='F_Input Override'!A75 -> BRL | B75: ='F_Input Override'!B75 -> POSTREALL_CW3_149TOT_PR24 | C75: ='F_Input Override'!C75 -> Resilience interconnectors; enhancement water totex - Total - Post reallocation | D75: ='F_Input Override'!D75 -> £m | E75: ='F_Input Override'!E75 -> Price Review 2024 | F75: =IF('F_Input Override'!F75="",'Consolidated Input'!F75,('F_Input Override'!F75)) ->  | G75: =IF('F_Input Override'!G75="",'Consolidated Input'!G75,('F_Input Override'!G75)) ->  | H75: =IF('F_Input Override'!H75="",'Consolidated Input'!H75,('F_Input Override'!H75)) -> 0 | I75: =IF('F_Input Override'!I75="",'Consolidated Input'!I75,('F_Input Override'!I75)) -> 0 | J75: =IF('F_Input Override'!J75="",'Consolidated Input'!J75,('F_Input Override'!J75)) -> 0 | K75: =IF('F_Input Override'!K75="",'Consolidated Input'!K75,('F_Input Override'!K75)) -> 0 | L75: =IF('F_Input Override'!L75="",'Consolidated Input'!L75,('F_Input Override'!L75)) -> 0 | M75: =SUM(F75:L75) -> 0
A76: ='F_Input Override'!A76 -> PRT | B76: ='F_Input Override'!B76 -> CW12_117TOT_PR24 | C76: ='F_Input Override'!C76 -> Water resilience and security - Resilience; enhancement water totex - Total | D76: ='F_Input Override'!D76 -> £m | E76: ='F_Input Override'!E76 -> Price Review 2024 | F76: =IF('F_Input Override'!F76="",'Consolidated Input'!F76,('F_Input Override'!F76)) -> 0 | G76: =IF('F_Input Override'!G76="",'Consolidated Input'!G76,('F_Input Override'!G76)) -> 0 | H76: =IF('F_Input Override'!H76="",'Consolidated Input'!H76,('F_Input Override'!H76)) ->  | I76: =IF('F_Input Override'!I76="",'Consolidated Input'!I76,('F_Input Override'!I76)) ->  | J76: =IF('F_Input Override'!J76="",'Consolidated Input'!J76,('F_Input Override'!J76)) ->  | K76: =IF('F_Input Override'!K76="",'Consolidated Input'!K76,('F_Input Override'!K76)) ->  | L76: =IF('F_Input Override'!L76="",'Consolidated Input'!L76,('F_Input Override'!L76)) ->  | M76: 0
A77: ='F_Input Override'!A77 -> PRT | B77: ='F_Input Override'!B77 -> CW17_117TOT_PR24 | C77: ='F_Input Override'!C77 -> Water resilience and security - Resilience; enhancement water totex - Total | D77: ='F_Input Override'!D77 -> £m | E77: ='F_Input Override'!E77 -> Price Review 2024 | F77: =IF('F_Input Override'!F77="",'Consolidated Input'!F77,('F_Input Override'!F77)) -> 0 | G77: =IF('F_Input Override'!G77="",'Consolidated Input'!G77,('F_Input Override'!G77)) -> 0 | H77: =IF('F_Input Override'!H77="",'Consolidated Input'!H77,('F_Input Override'!H77)) -> 0 | I77: =IF('F_Input Override'!I77="",'Consolidated Input'!I77,('F_Input Override'!I77)) -> 0 | J77: =IF('F_Input Override'!J77="",'Consolidated Input'!J77,('F_Input Override'!J77)) -> 0 | K77: =IF('F_Input Override'!K77="",'Consolidated Input'!K77,('F_Input Override'!K77)) -> 0 | L77: =IF('F_Input Override'!L77="",'Consolidated Input'!L77,('F_Input Override'!L77)) -> 0 | M77: 0
A78: ='F_Input Override'!A78 -> PRT | B78: ='F_Input Override'!B78 -> CW3_120TOT_PR24 | C78: ='F_Input Override'!C78 -> Water resilience and security - Resilience; enhancement water totex - Total | D78: ='F_Input Override'!D78 -> £m | E78: ='F_Input Override'!E78 -> Price Review 2024 | F78: =IF('F_Input Override'!F78="",'Consolidated Input'!F78,('F_Input Override'!F78)) -> 0.001894892197 | G78: =IF('F_Input Override'!G78="",'Consolidated Input'!G78,('F_Input Override'!G78)) -> 0 | H78: =IF('F_Input Override'!H78="",'Consolidated Input'!H78,('F_Input Override'!H78)) -> 0.977 | I78: =IF('F_Input Override'!I78="",'Consolidated Input'!I78,('F_Input Override'!I78)) -> 0.977 | J78: =IF('F_Input Override'!J78="",'Consolidated Input'!J78,('F_Input Override'!J78)) -> 0.977 | K78: =IF('F_Input Override'!K78="",'Consolidated Input'!K78,('F_Input Override'!K78)) -> 0.977 | L78: =IF('F_Input Override'!L78="",'Consolidated Input'!L78,('F_Input Override'!L78)) -> 0.977 | M78: 4.886894892
A79: ='F_Input Override'!A79 -> PRT | B79: ='F_Input Override'!B79 -> POSTREALL_CW3_120TOT_PR24 | C79: ='F_Input Override'!C79 -> Water resilience and security - Resilience; enhancement water totex - Total - Post reallocation | D79: ='F_Input Override'!D79 -> £m | E79: ='F_Input Override'!E79 -> Price Review 2024 | F79: =IF('F_Input Override'!F79="",'Consolidated Input'!F79,('F_Input Override'!F79)) ->  | G79: =IF('F_Input Override'!G79="",'Consolidated Input'!G79,('F_Input Override'!G79)) ->  | H79: =IF('F_Input Override'!H79="",'Consolidated Input'!H79,('F_Input Override'!H79)) -> 0.977 | I79: =IF('F_Input Override'!I79="",'Consolidated Input'!I79,('F_Input Override'!I79)) -> 0.977 | J79: =IF('F_Input Override'!J79="",'Consolidated Input'!J79,('F_Input Override'!J79)) -> 0.977 | K79: =IF('F_Input Override'!K79="",'Consolidated Input'!K79,('F_Input Override'!K79)) -> 0.977 | L79: =IF('F_Input Override'!L79="",'Consolidated Input'!L79,('F_Input Override'!L79)) -> 0.977 | M79: 4.885
A80: ='F_Input Override'!A80 -> PRT | B80: ='F_Input Override'!B80 -> CW3_149TOT_PR24 | C80: ='F_Input Override'!C80 -> Resilience interconnectors; enhancement water totex - Total | D80: ='F_Input Override'!D80 -> £m | E80: ='F_Input Override'!E80 -> Price Review 2024 | F80: =IF('F_Input Override'!F80="",'Consolidated Input'!F80,('F_Input Override'!F80)) ->  | G80: =IF('F_Input Override'!G80="",'Consolidated Input'!G80,('F_Input Override'!G80)) ->  | H80: =IF('F_Input Override'!H80="",'Consolidated Input'!H80,('F_Input Override'!H80)) ->  | I80: =IF('F_Input Override'!I80="",'Consolidated Input'!I80,('F_Input Override'!I80)) ->  | J80: =IF('F_Input Override'!J80="",'Consolidated Input'!J80,('F_Input Override'!J80)) ->  | K80: =IF('F_Input Override'!K80="",'Consolidated Input'!K80,('F_Input Override'!K80)) ->  | L80: =IF('F_Input Override'!L80="",'Consolidated Input'!L80,('F_Input Override'!L80)) ->  | M80: 0
A81: ='F_Input Override'!A81 -> PRT | B81: ='F_Input Override'!B81 -> POSTREALL_CW3_149TOT_PR24 | C81: ='F_Input Override'!C81 -> Resilience interconnectors; enhancement water totex - Total - Post reallocation | D81: ='F_Input Override'!D81 -> £m | E81: ='F_Input Override'!E81 -> Price Review 2024 | F81: =IF('F_Input Override'!F81="",'Consolidated Input'!F81,('F_Input Override'!F81)) ->  | G81: =IF('F_Input Override'!G81="",'Consolidated Input'!G81,('F_Input Override'!G81)) ->  | H81: =IF('F_Input Override'!H81="",'Consolidated Input'!H81,('F_Input Override'!H81)) -> 0 | I81: =IF('F_Input Override'!I81="",'Consolidated Input'!I81,('F_Input Override'!I81)) -> 0 | J81: =IF('F_Input Override'!J81="",'Consolidated Input'!J81,('F_Input Override'!J81)) -> 0 | K81: =IF('F_Input Override'!K81="",'Consolidated Input'!K81,('F_Input Override'!K81)) -> 0 | L81: =IF('F_Input Override'!L81="",'Consolidated Input'!L81,('F_Input Override'!L81)) -> 0 | M81: =SUM(F81:L81) -> 0
A82: ='F_Input Override'!A82 -> SEW | B82: ='F_Input Override'!B82 -> CW12_117TOT_PR24 | C82: ='F_Input Override'!C82 -> Water resilience and security - Resilience; enhancement water totex - Total | D82: ='F_Input Override'!D82 -> £m | E82: ='F_Input Override'!E82 -> Price Review 2024 | F82: =IF('F_Input Override'!F82="",'Consolidated Input'!F82,('F_Input Override'!F82)) -> 0 | G82: =IF('F_Input Override'!G82="",'Consolidated Input'!G82,('F_Input Override'!G82)) -> 0 | H82: =IF('F_Input Override'!H82="",'Consolidated Input'!H82,('F_Input Override'!H82)) ->  | I82: =IF('F_Input Override'!I82="",'Consolidated Input'!I82,('F_Input Override'!I82)) ->  | J82: =IF('F_Input Override'!J82="",'Consolidated Input'!J82,('F_Input Override'!J82)) ->  | K82: =IF('F_Input Override'!K82="",'Consolidated Input'!K82,('F_Input Override'!K82)) ->  | L82: =IF('F_Input Override'!L82="",'Consolidated Input'!L82,('F_Input Override'!L82)) ->  | M82: 0
A83: ='F_Input Override'!A83 -> SEW | B83: ='F_Input Override'!B83 -> CW17_117TOT_PR24 | C83: ='F_Input Override'!C83 -> Water resilience and security - Resilience; enhancement water totex - Total | D83: ='F_Input Override'!D83 -> £m | E83: ='F_Input Override'!E83 -> Price Review 2024 | F83: =IF('F_Input Override'!F83="",'Consolidated Input'!F83,('F_Input Override'!F83)) -> 0 | G83: =IF('F_Input Override'!G83="",'Consolidated Input'!G83,('F_Input Override'!G83)) -> 0 | H83: =IF('F_Input Override'!H83="",'Consolidated Input'!H83,('F_Input Override'!H83)) -> 0 | I83: =IF('F_Input Override'!I83="",'Consolidated Input'!I83,('F_Input Override'!I83)) -> 0 | J83: =IF('F_Input Override'!J83="",'Consolidated Input'!J83,('F_Input Override'!J83)) -> 0 | K83: =IF('F_Input Override'!K83="",'Consolidated Input'!K83,('F_Input Override'!K83)) -> 0 | L83: =IF('F_Input Override'!L83="",'Consolidated Input'!L83,('F_Input Override'!L83)) -> 0 | M83: 0
A84: ='F_Input Override'!A84 -> SEW | B84: ='F_Input Override'!B84 -> CW3_120TOT_PR24 | C84: ='F_Input Override'!C84 -> Water resilience and security - Resilience; enhancement water totex - Total | D84: ='F_Input Override'!D84 -> £m | E84: ='F_Input Override'!E84 -> Price Review 2024 | F84: =IF('F_Input Override'!F84="",'Consolidated Input'!F84,('F_Input Override'!F84)) -> 8.291949046 | G84: =IF('F_Input Override'!G84="",'Consolidated Input'!G84,('F_Input Override'!G84)) -> 1.225413092 | H84: =IF('F_Input Override'!H84="",'Consolidated Input'!H84,('F_Input Override'!H84)) -> 16.25171072 | I84: =IF('F_Input Override'!I84="",'Consolidated Input'!I84,('F_Input Override'!I84)) -> 38.17596345 | J84: =IF('F_Input Override'!J84="",'Consolidated Input'!J84,('F_Input Override'!J84)) -> 46.52084265 | K84: =IF('F_Input Override'!K84="",'Consolidated Input'!K84,('F_Input Override'!K84)) -> 61.61853722 | L84: =IF('F_Input Override'!L84="",'Consolidated Input'!L84,('F_Input Override'!L84)) -> 57.51865902 | M84: 229.6030752
A85: ='F_Input Override'!A85 -> SEW | B85: ='F_Input Override'!B85 -> POSTREALL_CW3_120TOT_PR24 | C85: ='F_Input Override'!C85 -> Water resilience and security - Resilience; enhancement water totex - Total - Post reallocation | D85: ='F_Input Override'!D85 -> £m | E85: ='F_Input Override'!E85 -> Price Review 2024 | F85: =IF('F_Input Override'!F85="",'Consolidated Input'!F85,('F_Input Override'!F85)) ->  | G85: =IF('F_Input Override'!G85="",'Consolidated Input'!G85,('F_Input Override'!G85)) ->  | H85: =IF('F_Input Override'!H85="",'Consolidated Input'!H85,('F_Input Override'!H85)) -> 10.56980937 | I85: =IF('F_Input Override'!I85="",'Consolidated Input'!I85,('F_Input Override'!I85)) -> 28.57234344 | J85: =IF('F_Input Override'!J85="",'Consolidated Input'!J85,('F_Input Override'!J85)) -> 35.41338621 | K85: =IF('F_Input Override'!K85="",'Consolidated Input'!K85,('F_Input Override'!K85)) -> 48.2062662 | L85: =IF('F_Input Override'!L85="",'Consolidated Input'!L85,('F_Input Override'!L85)) -> 44.85390785 | M85: 167.6157131
A86: ='F_Input Override'!A86 -> SEW | B86: ='F_Input Override'!B86 -> CW3_149TOT_PR24 | C86: ='F_Input Override'!C86 -> Resilience interconnectors; enhancement water totex - Total | D86: ='F_Input Override'!D86 -> £m | E86: ='F_Input Override'!E86 -> Price Review 2024 | F86: =IF('F_Input Override'!F86="",'Consolidated Input'!F86,('F_Input Override'!F86)) ->  | G86: =IF('F_Input Override'!G86="",'Consolidated Input'!G86,('F_Input Override'!G86)) ->  | H86: =IF('F_Input Override'!H86="",'Consolidated Input'!H86,('F_Input Override'!H86)) ->  | I86: =IF('F_Input Override'!I86="",'Consolidated Input'!I86,('F_Input Override'!I86)) ->  | J86: =IF('F_Input Override'!J86="",'Consolidated Input'!J86,('F_Input Override'!J86)) ->  | K86: =IF('F_Input Override'!K86="",'Consolidated Input'!K86,('F_Input Override'!K86)) ->  | L86: =IF('F_Input Override'!L86="",'Consolidated Input'!L86,('F_Input Override'!L86)) ->  | M86: 0
A87: ='F_Input Override'!A87 -> SEW | B87: ='F_Input Override'!B87 -> POSTREALL_CW3_149TOT_PR24 | C87: ='F_Input Override'!C87 -> Resilience interconnectors; enhancement water totex - Total - Post reallocation | D87: ='F_Input Override'!D87 -> £m | E87: ='F_Input Override'!E87 -> Price Review 2024 | F87: =IF('F_Input Override'!F87="",'Consolidated Input'!F87,('F_Input Override'!F87)) -> 0.015 | G87: =IF('F_Input Override'!G87="",'Consolidated Input'!G87,('F_Input Override'!G87)) ->  | H87: =IF('F_Input Override'!H87="",'Consolidated Input'!H87,('F_Input Override'!H87)) -> 11.12 | I87: =IF('F_Input Override'!I87="",'Consolidated Input'!I87,('F_Input Override'!I87)) -> 21.494 | J87: =IF('F_Input Override'!J87="",'Consolidated Input'!J87,('F_Input Override'!J87)) -> 29.004 | K87: =IF('F_Input Override'!K87="",'Consolidated Input'!K87,('F_Input Override'!K87)) -> 40.063 | L87: =IF('F_Input Override'!L87="",'Consolidated Input'!L87,('F_Input Override'!L87)) -> 27.087 | M87: =SUM(F87:L87) -> 128.783
A88: ='F_Input Override'!A88 -> SSC | B88: ='F_Input Override'!B88 -> CW12_117TOT_PR24 | C88: ='F_Input Override'!C88 -> Water resilience and security - Resilience; enhancement water totex - Total | D88: ='F_Input Override'!D88 -> £m | E88: ='F_Input Override'!E88 -> Price Review 2024 | F88: =IF('F_Input Override'!F88="",'Consolidated Input'!F88,('F_Input Override'!F88)) -> 0 | G88: =IF('F_Input Override'!G88="",'Consolidated Input'!G88,('F_Input Override'!G88)) -> 0 | H88: =IF('F_Input Override'!H88="",'Consolidated Input'!H88,('F_Input Override'!H88)) ->  | I88: =IF('F_Input Override'!I88="",'Consolidated Input'!I88,('F_Input Override'!I88)) ->  | J88: =IF('F_Input Override'!J88="",'Consolidated Input'!J88,('F_Input Override'!J88)) ->  | K88: =IF('F_Input Override'!K88="",'Consolidated Input'!K88,('F_Input Override'!K88)) ->  | L88: =IF('F_Input Override'!L88="",'Consolidated Input'!L88,('F_Input Override'!L88)) ->  | M88: 0
A89: ='F_Input Override'!A89 -> SSC | B89: ='F_Input Override'!B89 -> CW17_117TOT_PR24 | C89: ='F_Input Override'!C89 -> Water resilience and security - Resilience; enhancement water totex - Total | D89: ='F_Input Override'!D89 -> £m | E89: ='F_Input Override'!E89 -> Price Review 2024 | F89: =IF('F_Input Override'!F89="",'Consolidated Input'!F89,('F_Input Override'!F89)) -> 0 | G89: =IF('F_Input Override'!G89="",'Consolidated Input'!G89,('F_Input Override'!G89)) -> 0 | H89: =IF('F_Input Override'!H89="",'Consolidated Input'!H89,('F_Input Override'!H89)) -> 0 | I89: =IF('F_Input Override'!I89="",'Consolidated Input'!I89,('F_Input Override'!I89)) -> 0 | J89: =IF('F_Input Override'!J89="",'Consolidated Input'!J89,('F_Input Override'!J89)) -> 0 | K89: =IF('F_Input Override'!K89="",'Consolidated Input'!K89,('F_Input Override'!K89)) -> 0 | L89: =IF('F_Input Override'!L89="",'Consolidated Input'!L89,('F_Input Override'!L89)) -> 0 | M89: 0
A90: ='F_Input Override'!A90 -> SSC | B90: ='F_Input Override'!B90 -> CW3_120TOT_PR24 | C90: ='F_Input Override'!C90 -> Water resilience and security - Resilience; enhancement water totex - Total | D90: ='F_Input Override'!D90 -> £m | E90: ='F_Input Override'!E90 -> Price Review 2024 | F90: =IF('F_Input Override'!F90="",'Consolidated Input'!F90,('F_Input Override'!F90)) -> 0.68 | G90: =IF('F_Input Override'!G90="",'Consolidated Input'!G90,('F_Input Override'!G90)) -> 0 | H90: =IF('F_Input Override'!H90="",'Consolidated Input'!H90,('F_Input Override'!H90)) -> 2.06821335 | I90: =IF('F_Input Override'!I90="",'Consolidated Input'!I90,('F_Input Override'!I90)) -> 2.878261422 | J90: =IF('F_Input Override'!J90="",'Consolidated Input'!J90,('F_Input Override'!J90)) -> 4.531646636 | K90: =IF('F_Input Override'!K90="",'Consolidated Input'!K90,('F_Input Override'!K90)) -> 4.262726591 | L90: =IF('F_Input Override'!L90="",'Consolidated Input'!L90,('F_Input Override'!L90)) -> 1.382249998 | M90: 15.803098
A91: ='F_Input Override'!A91 -> SSC | B91: ='F_Input Override'!B91 -> POSTREALL_CW3_120TOT_PR24 | C91: ='F_Input Override'!C91 -> Water resilience and security - Resilience; enhancement water totex - Total - Post reallocation | D91: ='F_Input Override'!D91 -> £m | E91: ='F_Input Override'!E91 -> Price Review 2024 | F91: =IF('F_Input Override'!F91="",'Consolidated Input'!F91,('F_Input Override'!F91)) ->  | G91: =IF('F_Input Override'!G91="",'Consolidated Input'!G91,('F_Input Override'!G91)) ->  | H91: =IF('F_Input Override'!H91="",'Consolidated Input'!H91,('F_Input Override'!H91)) -> 1.60021335 | I91: =IF('F_Input Override'!I91="",'Consolidated Input'!I91,('F_Input Override'!I91)) -> 1.844261422 | J91: =IF('F_Input Override'!J91="",'Consolidated Input'!J91,('F_Input Override'!J91)) -> 2.496646636 | K91: =IF('F_Input Override'!K91="",'Consolidated Input'!K91,('F_Input Override'!K91)) -> 1.691726591 | L91: =IF('F_Input Override'!L91="",'Consolidated Input'!L91,('F_Input Override'!L91)) -> 0.312249998 | M91: 7.945097997
A92: ='F_Input Override'!A92 -> SSC | B92: ='F_Input Override'!B92 -> CW3_149TOT_PR24 | C92: ='F_Input Override'!C92 -> Resilience interconnectors; enhancement water totex - Total | D92: ='F_Input Override'!D92 -> £m | E92: ='F_Input Override'!E92 -> Price Review 2024 | F92: =IF('F_Input Override'!F92="",'Consolidated Input'!F92,('F_Input Override'!F92)) ->  | G92: =IF('F_Input Override'!G92="",'Consolidated Input'!G92,('F_Input Override'!G92)) ->  | H92: =IF('F_Input Override'!H92="",'Consolidated Input'!H92,('F_Input Override'!H92)) ->  | I92: =IF('F_Input Override'!I92="",'Consolidated Input'!I92,('F_Input Override'!I92)) ->  | J92: =IF('F_Input Override'!J92="",'Consolidated Input'!J92,('F_Input Override'!J92)) ->  | K92: =IF('F_Input Override'!K92="",'Consolidated Input'!K92,('F_Input Override'!K92)) ->  | L92: =IF('F_Input Override'!L92="",'Consolidated Input'!L92,('F_Input Override'!L92)) ->  | M92: 0
A93: ='F_Input Override'!A93 -> SSC | B93: ='F_Input Override'!B93 -> POSTREALL_CW3_149TOT_PR24 | C93: ='F_Input Override'!C93 -> Resilience interconnectors; enhancement water totex - Total - Post reallocation | D93: ='F_Input Override'!D93 -> £m | E93: ='F_Input Override'!E93 -> Price Review 2024 | F93: =IF('F_Input Override'!F93="",'Consolidated Input'!F93,('F_Input Override'!F93)) ->  | G93: =IF('F_Input Override'!G93="",'Consolidated Input'!G93,('F_Input Override'!G93)) ->  | H93: =IF('F_Input Override'!H93="",'Consolidated Input'!H93,('F_Input Override'!H93)) -> 0.468 | I93: =IF('F_Input Override'!I93="",'Consolidated Input'!I93,('F_Input Override'!I93)) -> 1.034 | J93: =IF('F_Input Override'!J93="",'Consolidated Input'!J93,('F_Input Override'!J93)) -> 2.035 | K93: =IF('F_Input Override'!K93="",'Consolidated Input'!K93,('F_Input Override'!K93)) -> 2.571 | L93: =IF('F_Input Override'!L93="",'Consolidated Input'!L93,('F_Input Override'!L93)) -> 1.07 | M93: =SUM(F93:L93) -> 7.178
A94: ='F_Input Override'!A94 -> SST | B94: ='F_Input Override'!B94 -> CW12_117TOT_PR24 | C94: ='F_Input Override'!C94 -> Water resilience and security - Resilience; enhancement water totex - Total | D94: ='F_Input Override'!D94 -> £m | E94: ='F_Input Override'!E94 -> Price Review 2024 | F94: =IF('F_Input Override'!F94="",'Consolidated Input'!F94,('F_Input Override'!F94)) ->  | G94: =IF('F_Input Override'!G94="",'Consolidated Input'!G94,('F_Input Override'!G94)) ->  | H94: =IF('F_Input Override'!H94="",'Consolidated Input'!H94,('F_Input Override'!H94)) ->  | I94: =IF('F_Input Override'!I94="",'Consolidated Input'!I94,('F_Input Override'!I94)) ->  | J94: =IF('F_Input Override'!J94="",'Consolidated Input'!J94,('F_Input Override'!J94)) ->  | K94: =IF('F_Input Override'!K94="",'Consolidated Input'!K94,('F_Input Override'!K94)) ->  | L94: =IF('F_Input Override'!L94="",'Consolidated Input'!L94,('F_Input Override'!L94)) ->  | M94: 0
A95: ='F_Input Override'!A95 -> SST | B95: ='F_Input Override'!B95 -> CW17_117TOT_PR24 | C95: ='F_Input Override'!C95 -> Water resilience and security - Resilience; enhancement water totex - Total | D95: ='F_Input Override'!D95 -> £m | E95: ='F_Input Override'!E95 -> Price Review 2024 | F95: =IF('F_Input Override'!F95="",'Consolidated Input'!F95,('F_Input Override'!F95)) ->  | G95: =IF('F_Input Override'!G95="",'Consolidated Input'!G95,('F_Input Override'!G95)) ->  | H95: =IF('F_Input Override'!H95="",'Consolidated Input'!H95,('F_Input Override'!H95)) ->  | I95: =IF('F_Input Override'!I95="",'Consolidated Input'!I95,('F_Input Override'!I95)) ->  | J95: =IF('F_Input Override'!J95="",'Consolidated Input'!J95,('F_Input Override'!J95)) ->  | K95: =IF('F_Input Override'!K95="",'Consolidated Input'!K95,('F_Input Override'!K95)) ->  | L95: =IF('F_Input Override'!L95="",'Consolidated Input'!L95,('F_Input Override'!L95)) ->  | M95: 0
A96: ='F_Input Override'!A96 -> SES | B96: ='F_Input Override'!B96 -> CW12_117TOT_PR24 | C96: ='F_Input Override'!C96 -> Water resilience and security - Resilience; enhancement water totex - Total | D96: ='F_Input Override'!D96 -> £m | E96: ='F_Input Override'!E96 -> Price Review 2024 | F96: =IF('F_Input Override'!F96="",'Consolidated Input'!F96,('F_Input Override'!F96)) -> 0 | G96: =IF('F_Input Override'!G96="",'Consolidated Input'!G96,('F_Input Override'!G96)) -> 0 | H96: =IF('F_Input Override'!H96="",'Consolidated Input'!H96,('F_Input Override'!H96)) ->  | I96: =IF('F_Input Override'!I96="",'Consolidated Input'!I96,('F_Input Override'!I96)) ->  | J96: =IF('F_Input Override'!J96="",'Consolidated Input'!J96,('F_Input Override'!J96)) ->  | K96: =IF('F_Input Override'!K96="",'Consolidated Input'!K96,('F_Input Override'!K96)) ->  | L96: =IF('F_Input Override'!L96="",'Consolidated Input'!L96,('F_Input Override'!L96)) ->  | M96: 0
A97: ='F_Input Override'!A97 -> SES | B97: ='F_Input Override'!B97 -> CW17_117TOT_PR24 | C97: ='F_Input Override'!C97 -> Water resilience and security - Resilience; enhancement water totex - Total | D97: ='F_Input Override'!D97 -> £m | E97: ='F_Input Override'!E97 -> Price Review 2024 | F97: =IF('F_Input Override'!F97="",'Consolidated Input'!F97,('F_Input Override'!F97)) -> 0 | G97: =IF('F_Input Override'!G97="",'Consolidated Input'!G97,('F_Input Override'!G97)) -> 0 | H97: =IF('F_Input Override'!H97="",'Consolidated Input'!H97,('F_Input Override'!H97)) -> 0 | I97: =IF('F_Input Override'!I97="",'Consolidated Input'!I97,('F_Input Override'!I97)) -> 0 | J97: =IF('F_Input Override'!J97="",'Consolidated Input'!J97,('F_Input Override'!J97)) -> 0 | K97: =IF('F_Input Override'!K97="",'Consolidated Input'!K97,('F_Input Override'!K97)) -> 0 | L97: =IF('F_Input Override'!L97="",'Consolidated Input'!L97,('F_Input Override'!L97)) -> 0 | M97: 0
A98: ='F_Input Override'!A98 -> SES | B98: ='F_Input Override'!B98 -> CW3_120TOT_PR24 | C98: ='F_Input Override'!C98 -> Water resilience and security - Resilience; enhancement water totex - Total | D98: ='F_Input Override'!D98 -> £m | E98: ='F_Input Override'!E98 -> Price Review 2024 | F98: =IF('F_Input Override'!F98="",'Consolidated Input'!F98,('F_Input Override'!F98)) -> 0 | G98: =IF('F_Input Override'!G98="",'Consolidated Input'!G98,('F_Input Override'!G98)) -> 0 | H98: =IF('F_Input Override'!H98="",'Consolidated Input'!H98,('F_Input Override'!H98)) -> 0.447 | I98: =IF('F_Input Override'!I98="",'Consolidated Input'!I98,('F_Input Override'!I98)) -> 0.4323 | J98: =IF('F_Input Override'!J98="",'Consolidated Input'!J98,('F_Input Override'!J98)) -> 0.6888 | K98: =IF('F_Input Override'!K98="",'Consolidated Input'!K98,('F_Input Override'!K98)) -> 1.389 | L98: =IF('F_Input Override'!L98="",'Consolidated Input'!L98,('F_Input Override'!L98)) -> 1.4004 | M98: 4.3575
A99: ='F_Input Override'!A99 -> SES | B99: ='F_Input Override'!B99 -> POSTREALL_CW3_120TOT_PR24 | C99: ='F_Input Override'!C99 -> Water resilience and security - Resilience; enhancement water totex - Total - Post reallocation | D99: ='F_Input Override'!D99 -> £m | E99: ='F_Input Override'!E99 -> Price Review 2024 | F99: =IF('F_Input Override'!F99="",'Consolidated Input'!F99,('F_Input Override'!F99)) ->  | G99: =IF('F_Input Override'!G99="",'Consolidated Input'!G99,('F_Input Override'!G99)) ->  | H99: =IF('F_Input Override'!H99="",'Consolidated Input'!H99,('F_Input Override'!H99)) -> 0.372 | I99: =IF('F_Input Override'!I99="",'Consolidated Input'!I99,('F_Input Override'!I99)) -> 0.3073 | J99: =IF('F_Input Override'!J99="",'Consolidated Input'!J99,('F_Input Override'!J99)) -> 0.5538 | K99: =IF('F_Input Override'!K99="",'Consolidated Input'!K99,('F_Input Override'!K99)) -> 1.289 | L99: =IF('F_Input Override'!L99="",'Consolidated Input'!L99,('F_Input Override'!L99)) -> 1.3254 | M99: 3.8475
A100: ='F_Input Override'!A100 -> SES | B100: ='F_Input Override'!B100 -> CW3_149TOT_PR24 | C100: ='F_Input Override'!C100 -> Resilience interconnectors; enhancement water totex - Total | D100: ='F_Input Override'!D100 -> £m | E100: ='F_Input Override'!E100 -> Price Review 2024 | F100: =IF('F_Input Override'!F100="",'Consolidated Input'!F100,('F_Input Override'!F100)) ->  | G100: =IF('F_Input Override'!G100="",'Consolidated Input'!G100,('F_Input Override'!G100)) ->  | H100: =IF('F_Input Override'!H100="",'Consolidated Input'!H100,('F_Input Override'!H100)) ->  | I100: =IF('F_Input Override'!I100="",'Consolidated Input'!I100,('F_Input Override'!I100)) ->  | J100: =IF('F_Input Override'!J100="",'Consolidated Input'!J100,('F_Input Override'!J100)) ->  | K100: =IF('F_Input Override'!K100="",'Consolidated Input'!K100,('F_Input Override'!K100)) ->  | L100: =IF('F_Input Override'!L100="",'Consolidated Input'!L100,('F_Input Override'!L100)) ->  | M100: 0
A101: ='F_Input Override'!A101 -> SES | B101: ='F_Input Override'!B101 -> POSTREALL_CW3_149TOT_PR24 | C101: ='F_Input Override'!C101 -> Resilience interconnectors; enhancement water totex - Total - Post reallocation | D101: ='F_Input Override'!D101 -> £m | E101: ='F_Input Override'!E101 -> Price Review 2024 | F101: =IF('F_Input Override'!F101="",'Consolidated Input'!F101,('F_Input Override'!F101)) ->  | G101: =IF('F_Input Override'!G101="",'Consolidated Input'!G101,('F_Input Override'!G101)) ->  | H101: =IF('F_Input Override'!H101="",'Consolidated Input'!H101,('F_Input Override'!H101)) -> 0.075 | I101: =IF('F_Input Override'!I101="",'Consolidated Input'!I101,('F_Input Override'!I101)) -> 0.0125 | J101: =IF('F_Input Override'!J101="",'Consolidated Input'!J101,('F_Input Override'!J101)) -> 0.135 | K101: =IF('F_Input Override'!K101="",'Consolidated Input'!K101,('F_Input Override'!K101)) -> 0.1 | L101: =IF('F_Input Override'!L101="",'Consolidated Input'!L101,('F_Input Override'!L101)) -> 0.075 | M101: =SUM(F101:L101) -> 0.3975

Sheet WACC
A1: =RIGHT(CELL("filename", $A$1), LEN(CELL("filename", $A$1)) - SEARCH("]", CELL("filename", $A$1))) -> 
A3: WHOLESALE | B3: Weighted average cost of capital (WACC)
A4: ANH | B4: 0.0397
A5: WSH | B5: 0.0397
A6: HDD | B6: 0.0397
A7: NES | B7: 0.0397
A8: SVE | B8: 0.0397
A9: SBB | B9: 0.0397
A10: SRN | B10: 0.0397
A11: TMS | B11: 0.0397
A12: UUW | B12: 0.0397
A13: WSX | B13: 0.0397
A14: YKY | B14: 0.0397
A15: AFW | B15: 0.0397
A16: PRT (non-HT) | B16: 0.0416
A17: PRT (HT) | B17: 0.0436
A18: SEW | B18: 0.0397
A19: SSC | B19: 0.0416
A20: SES | B20: 0.0397

Sheet Analysis >>

Sheet Final data format
A1: =RIGHT(CELL("filename", $A$1), LEN(CELL("filename", $A$1)) - SEARCH("]", CELL("filename", $A$1))) -> 
A3: As submitted and post reallocation: Resilience Interconnector
A5: Acronym | B5: Total Totex for Price control for water (£m) | C5: 2023-24 | D5: 2024-25 | E5: 2025-26 | F5: 2026-27 | G5: 2027-28 | H5: 2028-29 | I5: 2029-30 | J5: Totex requested in business plan (£m) - as submitted
A6: ANH | B6: =INDEX(F_Input_Water_totex!$F$8:$F$24,MATCH($A6,F_Input_Water_totex!$A$8:$A$24,0)) -> 4187.353839 | C6: =SUMIFS('Final Input'!$F:$F,'Final Input'!$A:$A,'Final data format'!$A6,'Final Input'!$B:$B,"POSTREALL_CW3_149TOT_PR24") -> 0 | D6: =SUMIFS('Final Input'!$G:$G,'Final Input'!$A:$A,'Final data format'!$A6,'Final Input'!$B:$B,"POSTREALL_CW3_149TOT_PR24") -> 0 | E6: =SUMIFS('Final Input'!$H:$H,'Final Input'!$A:$A,'Final data format'!$A6,'Final Input'!$B:$B,"POSTREALL_CW3_149TOT_PR24") -> 0.778 | F6: =SUMIFS('Final Input'!$I:$I,'Final Input'!$A:$A,'Final data format'!$A6,'Final Input'!$B:$B,"POSTREALL_CW3_149TOT_PR24") -> 2.101 | G6: =SUMIFS('Final Input'!$J:$J,'Final Input'!$A:$A,'Final data format'!$A6,'Final Input'!$B:$B,"POSTREALL_CW3_149TOT_PR24") -> 3.125 | H6: =SUMIFS('Final Input'!$K:$K,'Final Input'!$A:$A,'Final data format'!$A6,'Final Input'!$B:$B,"POSTREALL_CW3_149TOT_PR24") -> 1.552 | I6: =SUMIFS('Final Input'!$L:$L,'Final Input'!$A:$A,'Final data format'!$A6,'Final Input'!$B:$B,"POSTREALL_CW3_149TOT_PR24") -> 0.001 | J6: =SUM(C6:I6) -> 7.557
A7: WSH | B7: =INDEX(F_Input_Water_totex!$F$8:$F$24,MATCH($A7,F_Input_Water_totex!$A$8:$A$24,0)) -> 2365.636 | C7: =SUMIFS('Final Input'!$F:$F,'Final Input'!$A:$A,'Final data format'!$A7,'Final Input'!$B:$B,"POSTREALL_CW3_149TOT_PR24") -> 0 | D7: =SUMIFS('Final Input'!$G:$G,'Final Input'!$A:$A,'Final data format'!$A7,'Final Input'!$B:$B,"POSTREALL_CW3_149TOT_PR24") -> 0 | E7: =SUMIFS('Final Input'!$H:$H,'Final Input'!$A:$A,'Final data format'!$A7,'Final Input'!$B:$B,"POSTREALL_CW3_149TOT_PR24") -> 10.8958 | F7: =SUMIFS('Final Input'!$I:$I,'Final Input'!$A:$A,'Final data format'!$A7,'Final Input'!$B:$B,"POSTREALL_CW3_149TOT_PR24") -> 10.8958 | G7: =SUMIFS('Final Input'!$J:$J,'Final Input'!$A:$A,'Final data format'!$A7,'Final Input'!$B:$B,"POSTREALL_CW3_149TOT_PR24") -> 10.8958 | H7: =SUMIFS('Final Input'!$K:$K,'Final Input'!$A:$A,'Final data format'!$A7,'Final Input'!$B:$B,"POSTREALL_CW3_149TOT_PR24") -> 10.8958 | I7: =SUMIFS('Final Input'!$L:$L,'Final Input'!$A:$A,'Final data format'!$A7,'Final Input'!$B:$B,"POSTREALL_CW3_149TOT_PR24") -> 10.8958 | J7: =SUM(C7:I7) -> 54.479
A8: HDD | B8: =INDEX(F_Input_Water_totex!$F$8:$F$24,MATCH($A8,F_Input_Water_totex!$A$8:$A$24,0)) -> 202.9929059 | C8: =SUMIFS('Final Input'!$F:$F,'Final Input'!$A:$A,'Final data format'!$A8,'Final Input'!$B:$B,"POSTREALL_CW3_149TOT_PR24") -> 0 | D8: =SUMIFS('Final Input'!$G:$G,'Final Input'!$A:$A,'Final data format'!$A8,'Final Input'!$B:$B,"POSTREALL_CW3_149TOT_PR24") -> 0 | E8: =SUMIFS('Final Input'!$H:$H,'Final Input'!$A:$A,'Final data format'!$A8,'Final Input'!$B:$B,"POSTREALL_CW3_149TOT_PR24") -> 0 | F8: =SUMIFS('Final Input'!$I:$I,'Final Input'!$A:$A,'Final data format'!$A8,'Final Input'!$B:$B,"POSTREALL_CW3_149TOT_PR24") -> 0 | G8: =SUMIFS('Final Input'!$J:$J,'Final Input'!$A:$A,'Final data format'!$A8,'Final Input'!$B:$B,"POSTREALL_CW3_149TOT_PR24") -> 0 | H8: =SUMIFS('Final Input'!$K:$K,'Final Input'!$A:$A,'Final data format'!$A8,'Final Input'!$B:$B,"POSTREALL_CW3_149TOT_PR24") -> 0 | I8: =SUMIFS('Final Input'!$L:$L,'Final Input'!$A:$A,'Final data format'!$A8,'Final Input'!$B:$B,"POSTREALL_CW3_149TOT_PR24") -> 0 | J8: 0
A9: NES | B9: =INDEX(F_Input_Water_totex!$F$8:$F$24,MATCH($A9,F_Input_Water_totex!$A$8:$A$24,0)) -> 3081.858466 | C9: =SUMIFS('Final Input'!$F:$F,'Final Input'!$A:$A,'Final data format'!$A9,'Final Input'!$B:$B,"POSTREALL_CW3_149TOT_PR24") -> 0 | D9: =SUMIFS('Final Input'!$G:$G,'Final Input'!$A:$A,'Final data format'!$A9,'Final Input'!$B:$B,"POSTREALL_CW3_149TOT_PR24") -> 0 | E9: =SUMIFS('Final Input'!$H:$H,'Final Input'!$A:$A,'Final data format'!$A9,'Final Input'!$B:$B,"POSTREALL_CW3_149TOT_PR24") -> 0 | F9: =SUMIFS('Final Input'!$I:$I,'Final Input'!$A:$A,'Final data format'!$A9,'Final Input'!$B:$B,"POSTREALL_CW3_149TOT_PR24") -> 0 | G9: =SUMIFS('Final Input'!$J:$J,'Final Input'!$A:$A,'Final data format'!$A9,'Final Input'!$B:$B,"POSTREALL_CW3_149TOT_PR24") -> 0 | H9: =SUMIFS('Final Input'!$K:$K,'Final Input'!$A:$A,'Final data format'!$A9,'Final Input'!$B:$B,"POSTREALL_CW3_149TOT_PR24") -> 0 | I9: =SUMIFS('Final Input'!$L:$L,'Final Input'!$A:$A,'Final data format'!$A9,'Final Input'!$B:$B,"POSTREALL_CW3_149TOT_PR24") -> 0 | J9: 0
A10: SVE | B10: =INDEX(F_Input_Water_totex!$F$8:$F$24,MATCH($A10,F_Input_Water_totex!$A$8:$A$24,0)) -> 5623.042444 | C10: =SUMIFS('Final Input'!$F:$F,'Final Input'!$A:$A,'Final data format'!$A10,'Final Input'!$B:$B,"POSTREALL_CW3_149TOT_PR24") -> 0.877 | D10: =SUMIFS('Final Input'!$G:$G,'Final Input'!$A:$A,'Final data format'!$A10,'Final Input'!$B:$B,"POSTREALL_CW3_149TOT_PR24") -> 4.173 | E10: =SUMIFS('Final Input'!$H:$H,'Final Input'!$A:$A,'Final data format'!$A10,'Final Input'!$B:$B,"POSTREALL_CW3_149TOT_PR24") -> 32.632 | F10: =SUMIFS('Final Input'!$I:$I,'Final Input'!$A:$A,'Final data format'!$A10,'Final Input'!$B:$B,"POSTREALL_CW3_149TOT_PR24") -> 39.428 | G10: =SUMIFS('Final Input'!$J:$J,'Final Input'!$A:$A,'Final data format'!$A10,'Final Input'!$B:$B,"POSTREALL_CW3_149TOT_PR24") -> 42.578 | H10: =SUMIFS('Final Input'!$K:$K,'Final Input'!$A:$A,'Final data format'!$A10,'Final Input'!$B:$B,"POSTREALL_CW3_149TOT_PR24") -> 3.253 | I10: =SUMIFS('Final Input'!$L:$L,'Final Input'!$A:$A,'Final data format'!$A10,'Final Input'!$B:$B,"POSTREALL_CW3_149TOT_PR24") -> 8.514 | J10: 131.455
A11: SWB | B11: =INDEX(F_Input_Water_totex!$F$8:$F$24,MATCH($A11,F_Input_Water_totex!$A$8:$A$24,0)) -> 1570.211528 | C11: =SUMIFS('Final Input'!$F:$F,'Final Input'!$A:$A,'Final data format'!$A11,'Final Input'!$B:$B,"POSTREALL_CW3_149TOT_PR24") -> 0 | D11: =SUMIFS('Final Input'!$G:$G,'Final Input'!$A:$A,'Final data format'!$A11,'Final Input'!$B:$B,"POSTREALL_CW3_149TOT_PR24") -> 0 | E11: =SUMIFS('Final Input'!$H:$H,'Final Input'!$A:$A,'Final data format'!$A11,'Final Input'!$B:$B,"POSTREALL_CW3_149TOT_PR24") -> 9.243452814 | F11: =SUMIFS('Final Input'!$I:$I,'Final Input'!$A:$A,'Final data format'!$A11,'Final Input'!$B:$B,"POSTREALL_CW3_149TOT_PR24") -> 7.048451859 | G11: =SUMIFS('Final Input'!$J:$J,'Final Input'!$A:$A,'Final data format'!$A11,'Final Input'!$B:$B,"POSTREALL_CW3_149TOT_PR24") -> 15.95849955 | H11: =SUMIFS('Final Input'!$K:$K,'Final Input'!$A:$A,'Final data format'!$A11,'Final Input'!$B:$B,"POSTREALL_CW3_149TOT_PR24") -> 19.63873011 | I11: =SUMIFS('Final Input'!$L:$L,'Final Input'!$A:$A,'Final data format'!$A11,'Final Input'!$B:$B,"POSTREALL_CW3_149TOT_PR24") -> 19.08486566 | J11: 70.974
A12: SRN | B12: =INDEX(F_Input_Water_totex!$F$8:$F$24,MATCH($A12,F_Input_Water_totex!$A$8:$A$24,0)) -> 3614.763 | C12: =SUMIFS('Final Input'!$F:$F,'Final Input'!$A:$A,'Final data format'!$A12,'Final Input'!$B:$B,"POSTREALL_CW3_149TOT_PR24") -> 0 | D12: =SUMIFS('Final Input'!$G:$G,'Final Input'!$A:$A,'Final data format'!$A12,'Final Input'!$B:$B,"POSTREALL_CW3_149TOT_PR24") -> 0 | E12: =SUMIFS('Final Input'!$H:$H,'Final Input'!$A:$A,'Final data format'!$A12,'Final Input'!$B:$B,"POSTREALL_CW3_149TOT_PR24") -> 0 | F12: =SUMIFS('Final Input'!$I:$I,'Final Input'!$A:$A,'Final data format'!$A12,'Final Input'!$B:$B,"POSTREALL_CW3_149TOT_PR24") -> 0 | G12: =SUMIFS('Final Input'!$J:$J,'Final Input'!$A:$A,'Final data format'!$A12,'Final Input'!$B:$B,"POSTREALL_CW3_149TOT_PR24") -> 0 | H12: =SUMIFS('Final Input'!$K:$K,'Final Input'!$A:$A,'Final data format'!$A12,'Final Input'!$B:$B,"POSTREALL_CW3_149TOT_PR24") -> 0 | I12: =SUMIFS('Final Input'!$L:$L,'Final Input'!$A:$A,'Final data format'!$A12,'Final Input'!$B:$B,"POSTREALL_CW3_149TOT_PR24") -> 0 | J12: 0
A13: TMS | B13: =INDEX(F_Input_Water_totex!$F$8:$F$24,MATCH($A13,F_Input_Water_totex!$A$8:$A$24,0)) -> 10162.16273 | C13: =SUMIFS('Final Input'!$F:$F,'Final Input'!$A:$A,'Final data format'!$A13,'Final Input'!$B:$B,"POSTREALL_CW3_149TOT_PR24") -> 0 | D13: =SUMIFS('Final Input'!$G:$G,'Final Input'!$A:$A,'Final data format'!$A13,'Final Input'!$B:$B,"POSTREALL_CW3_149TOT_PR24") -> 0 | E13: =SUMIFS('Final Input'!$H:$H,'Final Input'!$A:$A,'Final data format'!$A13,'Final Input'!$B:$B,"POSTREALL_CW3_149TOT_PR24") -> 0 | F13: =SUMIFS('Final Input'!$I:$I,'Final Input'!$A:$A,'Final data format'!$A13,'Final Input'!$B:$B,"POSTREALL_CW3_149TOT_PR24") -> 0 | G13: =SUMIFS('Final Input'!$J:$J,'Final Input'!$A:$A,'Final data format'!$A13,'Final Input'!$B:$B,"POSTREALL_CW3_149TOT_PR24") -> 0 | H13: =SUMIFS('Final Input'!$K:$K,'Final Input'!$A:$A,'Final data format'!$A13,'Final Input'!$B:$B,"POSTREALL_CW3_149TOT_PR24") -> 0 | I13: =SUMIFS('Final Input'!$L:$L,'Final Input'!$A:$A,'Final data format'!$A13,'Final Input'!$B:$B,"POSTREALL_CW3_149TOT_PR24") -> 0 | J13: 0
A14: NWT | B14: =INDEX(F_Input_Water_totex!$F$8:$F$24,MATCH($A14,F_Input_Water_totex!$A$8:$A$24,0)) -> 4204.144554 | C14: =SUMIFS('Final Input'!$F:$F,'Final Input'!$A:$A,'Final data format'!$A14,'Final Input'!$B:$B,"POSTREALL_CW3_149TOT_PR24") -> 0 | D14: =SUMIFS('Final Input'!$G:$G,'Final Input'!$A:$A,'Final data format'!$A14,'Final Input'!$B:$B,"POSTREALL_CW3_149TOT_PR24") -> 0 | E14: =SUMIFS('Final Input'!$H:$H,'Final Input'!$A:$A,'Final data format'!$A14,'Final Input'!$B:$B,"POSTREALL_CW3_149TOT_PR24") -> 0 | F14: =SUMIFS('Final Input'!$I:$I,'Final Input'!$A:$A,'Final data format'!$A14,'Final Input'!$B:$B,"POSTREALL_CW3_149TOT_PR24") -> 0 | G14: =SUMIFS('Final Input'!$J:$J,'Final Input'!$A:$A,'Final data format'!$A14,'Final Input'!$B:$B,"POSTREALL_CW3_149TOT_PR24") -> 0 | H14: =SUMIFS('Final Input'!$K:$K,'Final Input'!$A:$A,'Final data format'!$A14,'Final Input'!$B:$B,"POSTREALL_CW3_149TOT_PR24") -> 0 | I14: =SUMIFS('Final Input'!$L:$L,'Final Input'!$A:$A,'Final data format'!$A14,'Final Input'!$B:$B,"POSTREALL_CW3_149TOT_PR24") -> 0 | J14: 0
A15: WSX | B15: =INDEX(F_Input_Water_totex!$F$8:$F$24,MATCH($A15,F_Input_Water_totex!$A$8:$A$24,0)) -> 1136.356395 | C15: =SUMIFS('Final Input'!$F:$F,'Final Input'!$A:$A,'Final data format'!$A15,'Final Input'!$B:$B,"POSTREALL_CW3_149TOT_PR24") -> 0 | D15: =SUMIFS('Final Input'!$G:$G,'Final Input'!$A:$A,'Final data format'!$A15,'Final Input'!$B:$B,"POSTREALL_CW3_149TOT_PR24") -> 0 | E15: =SUMIFS('Final Input'!$H:$H,'Final Input'!$A:$A,'Final data format'!$A15,'Final Input'!$B:$B,"POSTREALL_CW3_149TOT_PR24") -> 0 | F15: =SUMIFS('Final Input'!$I:$I,'Final Input'!$A:$A,'Final data format'!$A15,'Final Input'!$B:$B,"POSTREALL_CW3_149TOT_PR24") -> 0 | G15: =SUMIFS('Final Input'!$J:$J,'Final Input'!$A:$A,'Final data format'!$A15,'Final Input'!$B:$B,"POSTREALL_CW3_149TOT_PR24") -> 0 | H15: =SUMIFS('Final Input'!$K:$K,'Final Input'!$A:$A,'Final data format'!$A15,'Final Input'!$B:$B,"POSTREALL_CW3_149TOT_PR24") -> 0 | I15: =SUMIFS('Final Input'!$L:$L,'Final Input'!$A:$A,'Final data format'!$A15,'Final Input'!$B:$B,"POSTREALL_CW3_149TOT_PR24") -> 0 | J15: 0
A16: YKY | B16: =INDEX(F_Input_Water_totex!$F$8:$F$24,MATCH($A16,F_Input_Water_totex!$A$8:$A$24,0)) -> 3120.05052 | C16: =SUMIFS('Final Input'!$F:$F,'Final Input'!$A:$A,'Final data format'!$A16,'Final Input'!$B:$B,"POSTREALL_CW3_149TOT_PR24") -> 0 | D16: =SUMIFS('Final Input'!$G:$G,'Final Input'!$A:$A,'Final data format'!$A16,'Final Input'!$B:$B,"POSTREALL_CW3_149TOT_PR24") -> 0 | E16: =SUMIFS('Final Input'!$H:$H,'Final Input'!$A:$A,'Final data format'!$A16,'Final Input'!$B:$B,"POSTREALL_CW3_149TOT_PR24") -> 0 | F16: =SUMIFS('Final Input'!$I:$I,'Final Input'!$A:$A,'Final data format'!$A16,'Final Input'!$B:$B,"POSTREALL_CW3_149TOT_PR24") -> 0 | G16: =SUMIFS('Final Input'!$J:$J,'Final Input'!$A:$A,'Final data format'!$A16,'Final Input'!$B:$B,"POSTREALL_CW3_149TOT_PR24") -> 0 | H16: =SUMIFS('Final Input'!$K:$K,'Final Input'!$A:$A,'Final data format'!$A16,'Final Input'!$B:$B,"POSTREALL_CW3_149TOT_PR24") -> 0 | I16: =SUMIFS('Final Input'!$L:$L,'Final Input'!$A:$A,'Final data format'!$A16,'Final Input'!$B:$B,"POSTREALL_CW3_149TOT_PR24") -> 0 | J16: 0
A17: AFW | B17: =INDEX(F_Input_Water_totex!$F$8:$F$24,MATCH($A17,F_Input_Water_totex!$A$8:$A$24,0)) -> 2157.018576 | C17: =SUMIFS('Final Input'!$F:$F,'Final Input'!$A:$A,'Final data format'!$A17,'Final Input'!$B:$B,"POSTREALL_CW3_149TOT_PR24") -> 0.066 | D17: =SUMIFS('Final Input'!$G:$G,'Final Input'!$A:$A,'Final data format'!$A17,'Final Input'!$B:$B,"POSTREALL_CW3_149TOT_PR24") -> 0.245 | E17: 1.838931274 | F17: 2.249865637 | G17: 3.073547309 | H17: 3.482668726 | I17: 2.658987054 | J17: 13.615
A18: BRL | B18: =INDEX(F_Input_Water_totex!$F$8:$F$24,MATCH($A18,F_Input_Water_totex!$A$8:$A$24,0)) -> 688.9547248 | C18: =SUMIFS('Final Input'!$F:$F,'Final Input'!$A:$A,'Final data format'!$A18,'Final Input'!$B:$B,"POSTREALL_CW3_149TOT_PR24") -> 0 | D18: =SUMIFS('Final Input'!$G:$G,'Final Input'!$A:$A,'Final data format'!$A18,'Final Input'!$B:$B,"POSTREALL_CW3_149TOT_PR24") -> 0 | E18: =SUMIFS('Final Input'!$H:$H,'Final Input'!$A:$A,'Final data format'!$A18,'Final Input'!$B:$B,"POSTREALL_CW3_149TOT_PR24") -> 0 | F18: =SUMIFS('Final Input'!$I:$I,'Final Input'!$A:$A,'Final data format'!$A18,'Final Input'!$B:$B,"POSTREALL_CW3_149TOT_PR24") -> 0 | G18: =SUMIFS('Final Input'!$J:$J,'Final Input'!$A:$A,'Final data format'!$A18,'Final Input'!$B:$B,"POSTREALL_CW3_149TOT_PR24") -> 0 | H18: =SUMIFS('Final Input'!$K:$K,'Final Input'!$A:$A,'Final data format'!$A18,'Final Input'!$B:$B,"POSTREALL_CW3_149TOT_PR24") -> 0 | I18: =SUMIFS('Final Input'!$L:$L,'Final Input'!$A:$A,'Final data format'!$A18,'Final Input'!$B:$B,"POSTREALL_CW3_149TOT_PR24") -> 0 | J18: 0
A19: PRT | B19: =INDEX(F_Input_Water_totex!$F$8:$F$24,MATCH($A19,F_Input_Water_totex!$A$8:$A$24,0)) -> 341.6692826 | C19: =SUMIFS('Final Input'!$F:$F,'Final Input'!$A:$A,'Final data format'!$A19,'Final Input'!$B:$B,"POSTREALL_CW3_149TOT_PR24") -> 0 | D19: =SUMIFS('Final Input'!$G:$G,'Final Input'!$A:$A,'Final data format'!$A19,'Final Input'!$B:$B,"POSTREALL_CW3_149TOT_PR24") -> 0 | E19: =SUMIFS('Final Input'!$H:$H,'Final Input'!$A:$A,'Final data format'!$A19,'Final Input'!$B:$B,"POSTREALL_CW3_149TOT_PR24") -> 0 | F19: =SUMIFS('Final Input'!$I:$I,'Final Input'!$A:$A,'Final data format'!$A19,'Final Input'!$B:$B,"POSTREALL_CW3_149TOT_PR24") -> 0 | G19: =SUMIFS('Final Input'!$J:$J,'Final Input'!$A:$A,'Final data format'!$A19,'Final Input'!$B:$B,"POSTREALL_CW3_149TOT_PR24") -> 0 | H19: =SUMIFS('Final Input'!$K:$K,'Final Input'!$A:$A,'Final data format'!$A19,'Final Input'!$B:$B,"POSTREALL_CW3_149TOT_PR24") -> 0 | I19: =SUMIFS('Final Input'!$L:$L,'Final Input'!$A:$A,'Final data format'!$A19,'Final Input'!$B:$B,"POSTREALL_CW3_149TOT_PR24") -> 0 | J19: 0
A20: SEW | B20: =INDEX(F_Input_Water_totex!$F$8:$F$24,MATCH($A20,F_Input_Water_totex!$A$8:$A$24,0)) -> 1862.837225 | C20: =SUMIFS('Final Input'!$F:$F,'Final Input'!$A:$A,'Final data format'!$A20,'Final Input'!$B:$B,"POSTREALL_CW3_149TOT_PR24") -> 0.015 | D20: =SUMIFS('Final Input'!$G:$G,'Final Input'!$A:$A,'Final data format'!$A20,'Final Input'!$B:$B,"POSTREALL_CW3_149TOT_PR24") -> 0 | E20: =SUMIFS('Final Input'!$H:$H,'Final Input'!$A:$A,'Final data format'!$A20,'Final Input'!$B:$B,"POSTREALL_CW3_149TOT_PR24") -> 11.12 | F20: =SUMIFS('Final Input'!$I:$I,'Final Input'!$A:$A,'Final data format'!$A20,'Final Input'!$B:$B,"POSTREALL_CW3_149TOT_PR24") -> 21.494 | G20: =SUMIFS('Final Input'!$J:$J,'Final Input'!$A:$A,'Final data format'!$A20,'Final Input'!$B:$B,"POSTREALL_CW3_149TOT_PR24") -> 29.004 | H20: =SUMIFS('Final Input'!$K:$K,'Final Input'!$A:$A,'Final data format'!$A20,'Final Input'!$B:$B,"POSTREALL_CW3_149TOT_PR24") -> 40.063 | I20: =SUMIFS('Final Input'!$L:$L,'Final Input'!$A:$A,'Final data format'!$A20,'Final Input'!$B:$B,"POSTREALL_CW3_149TOT_PR24") -> 27.087 | J20: 128.783
A21: SSC | B21: =INDEX(F_Input_Water_totex!$F$8:$F$24,MATCH($A21,F_Input_Water_totex!$A$8:$A$24,0)) -> 737.9594339 | C21: =SUMIFS('Final Input'!$F:$F,'Final Input'!$A:$A,'Final data format'!$A21,'Final Input'!$B:$B,"POSTREALL_CW3_149TOT_PR24") -> 0 | D21: =SUMIFS('Final Input'!$G:$G,'Final Input'!$A:$A,'Final data format'!$A21,'Final Input'!$B:$B,"POSTREALL_CW3_149TOT_PR24") -> 0 | E21: =SUMIFS('Final Input'!$H:$H,'Final Input'!$A:$A,'Final data format'!$A21,'Final Input'!$B:$B,"POSTREALL_CW3_149TOT_PR24") -> 0.468 | F21: =SUMIFS('Final Input'!$I:$I,'Final Input'!$A:$A,'Final data format'!$A21,'Final Input'!$B:$B,"POSTREALL_CW3_149TOT_PR24") -> 1.034 | G21: =SUMIFS('Final Input'!$J:$J,'Final Input'!$A:$A,'Final data format'!$A21,'Final Input'!$B:$B,"POSTREALL_CW3_149TOT_PR24") -> 2.035 | H21: =SUMIFS('Final Input'!$K:$K,'Final Input'!$A:$A,'Final data format'!$A21,'Final Input'!$B:$B,"POSTREALL_CW3_149TOT_PR24") -> 2.571 | I21: =SUMIFS('Final Input'!$L:$L,'Final Input'!$A:$A,'Final data format'!$A21,'Final Input'!$B:$B,"POSTREALL_CW3_149TOT_PR24") -> 1.07 | J21: 7.178
A22: SES | B22: =INDEX(F_Input_Water_totex!$F$8:$F$24,MATCH($A22,F_Input_Water_totex!$A$8:$A$24,0)) -> 377.6353912 | C22: =SUMIFS('Final Input'!$F:$F,'Final Input'!$A:$A,'Final data format'!$A22,'Final Input'!$B:$B,"POSTREALL_CW3_149TOT_PR24") -> 0 | D22: =SUMIFS('Final Input'!$G:$G,'Final Input'!$A:$A,'Final data format'!$A22,'Final Input'!$B:$B,"POSTREALL_CW3_149TOT_PR24") -> 0 | E22: =SUMIFS('Final Input'!$H:$H,'Final Input'!$A:$A,'Final data format'!$A22,'Final Input'!$B:$B,"POSTREALL_CW3_149TOT_PR24") -> 0.075 | F22: =SUMIFS('Final Input'!$I:$I,'Final Input'!$A:$A,'Final data format'!$A22,'Final Input'!$B:$B,"POSTREALL_CW3_149TOT_PR24") -> 0.0125 | G22: =SUMIFS('Final Input'!$J:$J,'Final Input'!$A:$A,'Final data format'!$A22,'Final Input'!$B:$B,"POSTREALL_CW3_149TOT_PR24") -> 0.135 | H22: =SUMIFS('Final Input'!$K:$K,'Final Input'!$A:$A,'Final data format'!$A22,'Final Input'!$B:$B,"POSTREALL_CW3_149TOT_PR24") -> 0.1 | I22: =SUMIFS('Final Input'!$L:$L,'Final Input'!$A:$A,'Final data format'!$A22,'Final Input'!$B:$B,"POSTREALL_CW3_149TOT_PR24") -> 0.075 | J22: 0.3975
A23: Total | B23: =SUM(B6:B22) -> 45434.64701 | C23: =SUM(C6:C22) -> 0.958 | D23: =SUM(D6:D22) -> 4.418 | E23: 67.05118409 | F23: 84.2636175 | G23: 106.8048469 | H23: 81.55619884 | I23: 69.38665272 | J23: =SUM(J6:J22) -> 414.4385

Sheet Scheme level_assessment
A1: =RIGHT(CELL("filename", $A$1), LEN(CELL("filename", $A$1)) - SEARCH("]", CELL("filename", $A$1))) -> 
A4: Company | B4: Description | C4: Scheme Type | D4: Scheme costs (£m) | E4: Total scheme costs (£m) | F4: Total as assessed (£m) | G4: Variance Col.F - Col.E | H4: Data source | I4: Link to assessment
A5: ANH | B5: East Suffolk WRZ IPZ | C5: Pipeline | D5: 7.555 | E5: =D5 -> 7.555 | F5: =ANH!C7 ->  | G5: =F5-E5 ->  | H5: OFW-REP-AFW-052 | I5: ANH
A6: WSH | B6: 4 x Strategic Feasibility Studies | C6: Feasibility studies | D6: 4.911 | E6: =SUM(D6:D12) -> 54.479 | F6: =WSH!C7 -> 54.479 | G6: =F6-E6 -> 0 | H6: OFW-REP-WSH-078 | I6: WSH
A7: WSH | B7: 35,000 x Inspections to assess compliance of third parties with the Water Regs and also undertake programmes of education to help inform third parties of requirements placed on them by the Water Regs | D7: 5.303
A8: WSH | B8: 8 x critical trunk mains crossings schemes | C8: 5 cross connections between existing mains and dualling of 3 crossing by means of the provision of a second main | D8: 6.533
A9: WSH | B9: 8 x critical trunk mains crossings schemes | C9: Desktop assessment | D9: =6.843-D8 -> 0.31
A10: WSH | B10: Tywi/SEWCUS Transfer Main | D10: 22.846
A11: WSH | B11: 10 x network connectivity improvement schemes to remove dry weather hotspots | C11: Connecting distribution networks with smaller length and diameter links and dual mains | D11: 9.822
A12: WSH | B12: River Wye (River Usk) pipeline relocation scheme | D12: 4.754
A13: SVE | B13: Church Wilne GR Recovery Strelley DSR Pumping | C13: Pipeline | D13: 2.953 | E13: =SUM(D13:D19)-D19 -> 131.455 | F13: =SVE!C7 ->  | G13: =F13-E13 ->  | H13: OFW-REP-SVE-031 OFW-REP-SVE-121 OFW-REP-SVE-128 | I13: SVE
A14: SVE | B14: Hallgates to Elms Farm Pipeline | C14: Pipeline | D14: 47.796
A15: SVE | B15: Oldbury to Meriden | C15: Pipeline | D15: 61.546
A16: SVE | B16: Campion Peak Resilience (Part 1) | C16: Pipeline | D16: 4.553
A17: SVE | B17: Coventry South Pipeline Reinforcement (Part 1) | C17: Pipeline | D17: 7.355
A18: SVE | B18: Wem Whitchurch Resilience | C18: Pipeline and booster pumping station | D18: 7.252
A19: SVE | B19: CW12 - AMP7 transitional cost | C19: Related to Hallgates and Oldbury pipelines | D19: 5.05
A20: SWB | B20: Mayflower to Littlehempston – 37.2km x 800mm water main​ | C20: Pipeline | D20: 33.626 | E20: =SUM(D20:D24) -> 70.974 | F20: =SWB!C8 ->  | H20: OFW-REP-SBB-091 | I20: SWB
A21: SWB | B21: Brent Tor to Launceston – 15.5km x 400mm water main​ | C21: Pipeline | D21: 17.971
A22: SWB | B22: Roadford to Coliford via Saltash – new pumping station to enable transfer from service reservoir to support Coliford​ | C22: Pumping station | D22: 2.559
A23: SWB | B23: Cranbrook to Honiton – 16.7km x 450mm water main ​ | C23: Pipeline | D23: 14.26
A24: SWB | B24: Alderney – Knapp Mill pinch points – 0.4km x 600mm water main​ | C24: Pipeline | D24: 2.558
A25: AFW | B25: Connect 2050 | C25: 10 Ml additional storage cells at Hadham Mill Reservoir (£6.842m) and 10 Ml additional storage cells at The Hills Reservoir (£6.773m). | D25: =6.842+6.773 -> 13.615 | E25: =D25 -> 13.615 | F25: =AFW!C8 -> 13.615 | G25: 0 | H25: OFW-REP-AFW-052 | I25: AFW
A26: SEW_1 | B26: Scheme 20 | C26: Resilience of Supply for Telham SR | D26: 2.662 | E26: =SUM(D26:D34) -> 41.177 | F26: =SEW_1!C8 -> 41.177 | G26: =F26-E26 -> 0 | H26: OFW-REP-SEW-059 | I26: SEW_1
A27: SEW_1 | B27: Scheme 17 | C27: Groombridge reinforcement | D27: 2.606
A28: SEW_1 | B28: Scheme 24 | C28: Transfer between Burham and Halling systems – RZ6 Scheme 1 | D28: 0.836
A29: SEW_1 | B29: Scheme 21 | C29: Windover SR resilience / reinforcement | D29: 1.086
A30: SEW_1 | B30: Scheme 18 | C30: RZ1 Sub-zonal – Tonbridge to Bloodshots Main reinforcement | D30: 0.69
A31: SEW_1 | B31: Scheme 23 | C31: Interconnectivity – Kilnwood supply SPoF – RZ1 scheme 7 | D31: 2.806
A32: SEW_1 | B32: Scheme 25 | C32: Transfer between Row Dow and Kemsing to support Hartley system – RZ6 Scheme 5 | D32: 3.42
A33: SEW_1 | B33: Scheme 19: | C33: Ashford improved supply resilience (RZ8) | D33: 20.585
A34: SEW_1 | B34: Scheme 22 | C34: Interconnectivity – East and west RZ8 (Thanington WTW to Dunkirk) – RZ8 Scheme 1 | D34: 6.486
A35: SEW_2 | B35: RZ1 Scheme 2 | C35: Darnley Driver booster | D35: 1.167 | E35: =SUM(D35:D41) -> 87.608 | F35: =SEW_2!C8 -> 87.608 | G35: 0 | H35: OFW-REP-SEW-059 | I35: SEW_2
A36: SEW_2 | B36: RZ2 Scheme 3 | C36: Poverty Bottom | D36: 0.126
A37: SEW_2 | B37: RZ4 Scheme 3 | C37: Greywell to Swaineshill | D37: 12.433
A38: SEW_2 | B38: RZ4 Scheme 2 | C38: Surrey Hills to Fleet | D38: 43.694
A39: SEW_2 | B39: RZ4 Scheme 5 | C39: Ewshot to Itchel | D39: 5.173
A40: SEW_2 | B40: RZ4 Scheme 6 | C40: Greywell to Whitedown | D40: 22.302
A41: SEW_2 | B41: RZ4 Scheme 7 | C41: Oakhanger to Alton | D41: 2.713
A42: SES | B42: Inter-zonal resilience | C42: Reservoir bypass | D42: =0.1775+0.075+0.145 -> 0.3975 | E42: =D42 -> 0.3975 | F42: =SES!C8 -> 0.398 | G42: =F42-E42 -> 0.0005 | H42: OFW-RESP-SES-033 | I42: SES
A43: SSC | B43: Burntwood resilience | C43: Pipeline | D43: 0.396 | E43: =SUM(D43:D45) -> 7.178 | F43: =SSC!C8 -> 7.178 | G43: =F43-E43 -> 0 | H43: OFW-REP-025 | I43: SSC
A44: SSC | B44: Hanbury resilience | C44: Pipeline | D44: 2.502
A45: SSC | B45: Langley reservoir | C45: Reservoir Augmentation | D45: 4.28

Sheet Materiality & shallow dive
A1: =RIGHT(CELL("filename", $A$1), LEN(CELL("filename", $A$1)) - SEARCH("]", CELL("filename", $A$1))) -> 
B4: Company | C4: Total Totex for Price control (£m) | D4: Totex requested in business plan (£m) | E4: Materiality (%) | F4: Type of assessment | G4: Efficiency factor | H4: Shallow dive output
A5: 1 | B5: ANH | C5: =SUMIF(F_Input_Water_totex!$A$8:$A$24,'Materiality & shallow dive'!B5,F_Input_Water_totex!$F$8:$F$24) -> 4187.353839 | D5: =VLOOKUP('Materiality & shallow dive'!B5,'Final data format'!$A$5:$J$23,10,0) -> 7.557 | E5: =D5/C5 -> 0.001804719708 | F5: Deep dive
A6: 2 | B6: HDD | C6: =SUMIF(F_Input_Water_totex!$A$8:$A$24,'Materiality & shallow dive'!B6,F_Input_Water_totex!$F$8:$F$24) -> 202.9929059 | D6: =VLOOKUP('Materiality & shallow dive'!B6,'Final data format'!$A$5:$J$23,10,0) -> 0 | E6: =D6/C6 -> 0
A7: 3 | B7: NES | C7: =SUMIF(F_Input_Water_totex!$A$8:$A$24,'Materiality & shallow dive'!B7,F_Input_Water_totex!$F$8:$F$24) -> 3081.858466 | D7: =VLOOKUP('Materiality & shallow dive'!B7,'Final data format'!$A$5:$J$23,10,0) -> 0 | E7: 0
A8: 4 | B8: NWT | C8: =SUMIF(F_Input_Water_totex!$A$8:$A$24,'Materiality & shallow dive'!B8,F_Input_Water_totex!$F$8:$F$24) -> 4204.144554 | D8: =VLOOKUP('Materiality & shallow dive'!B8,'Final data format'!$A$5:$J$23,10,0) -> 0 | E8: 0
A9: 5 | B9: SRN | C9: =SUMIF(F_Input_Water_totex!$A$8:$A$24,'Materiality & shallow dive'!B9,F_Input_Water_totex!$F$8:$F$24) -> 3614.763 | D9: =VLOOKUP('Materiality & shallow dive'!B9,'Final data format'!$A$5:$J$23,10,0) -> 0 | E9: 0
A10: 6 | B10: SVE | C10: =SUMIF(F_Input_Water_totex!$A$8:$A$24,'Materiality & shallow dive'!B10,F_Input_Water_totex!$F$8:$F$24) -> 5623.042444 | D10: =VLOOKUP('Materiality & shallow dive'!B10,'Final data format'!$A$5:$J$23,10,0) -> 131.455 | E10: 0.02337791352 | F10: Deep Dive
A11: 7 | B11: SWB | C11: =SUMIF(F_Input_Water_totex!$A$8:$A$24,'Materiality & shallow dive'!B11,F_Input_Water_totex!$F$8:$F$24) -> 1570.211528 | D11: =VLOOKUP('Materiality & shallow dive'!B11,'Final data format'!$A$5:$J$23,10,0) -> 70.974 | E11: 0.04520027954 | F11: Deep Dive
A12: 8 | B12: TMS | C12: =SUMIF(F_Input_Water_totex!$A$8:$A$24,'Materiality & shallow dive'!B12,F_Input_Water_totex!$F$8:$F$24) -> 10162.16273 | D12: =VLOOKUP('Materiality & shallow dive'!B12,'Final data format'!$A$5:$J$23,10,0) -> 0 | E12: 0
A13: 9 | B13: WSH | C13: =SUMIF(F_Input_Water_totex!$A$8:$A$24,'Materiality & shallow dive'!B13,F_Input_Water_totex!$F$8:$F$24) -> 2365.636 | D13: =VLOOKUP('Materiality & shallow dive'!B13,'Final data format'!$A$5:$J$23,10,0) -> 54.479 | E13: 0.02302932488 | F13: Deep Dive
A14: 10 | B14: WSX | C14: =SUMIF(F_Input_Water_totex!$A$8:$A$24,'Materiality & shallow dive'!B14,F_Input_Water_totex!$F$8:$F$24) -> 1136.356395 | D14: =VLOOKUP('Materiality & shallow dive'!B14,'Final data format'!$A$5:$J$23,10,0) -> 0 | E14: 0
A15: 11 | B15: YKY | C15: =SUMIF(F_Input_Water_totex!$A$8:$A$24,'Materiality & shallow dive'!B15,F_Input_Water_totex!$F$8:$F$24) -> 3120.05052 | D15: =VLOOKUP('Materiality & shallow dive'!B15,'Final data format'!$A$5:$J$23,10,0) -> 0 | E15: 0
A16: 12 | B16: AFW | C16: =SUMIF(F_Input_Water_totex!$A$8:$A$24,'Materiality & shallow dive'!B16,F_Input_Water_totex!$F$8:$F$24) -> 2157.018576 | D16: =VLOOKUP('Materiality & shallow dive'!B16,'Final data format'!$A$5:$J$23,10,0) -> 13.615 | E16: 0.006311953058 | F16: Deep Dive
A17: 13 | B17: BRL | C17: =SUMIF(F_Input_Water_totex!$A$8:$A$24,'Materiality & shallow dive'!B17,F_Input_Water_totex!$F$8:$F$24) -> 688.9547248 | D17: =VLOOKUP('Materiality & shallow dive'!B17,'Final data format'!$A$5:$J$23,10,0) -> 0 | E17: 0
A18: 14 | B18: PRT | C18: =SUMIF(F_Input_Water_totex!$A$8:$A$24,'Materiality & shallow dive'!B18,F_Input_Water_totex!$F$8:$F$24) -> 341.6692826 | D18: =VLOOKUP('Materiality & shallow dive'!B18,'Final data format'!$A$5:$J$23,10,0) -> 0 | E18: 0
A19: 15 | B19: SES | C19: =SUMIF(F_Input_Water_totex!$A$8:$A$24,'Materiality & shallow dive'!B19,F_Input_Water_totex!$F$8:$F$24) -> 377.6353912 | D19: =VLOOKUP('Materiality & shallow dive'!B19,'Final data format'!$A$5:$J$23,10,0) -> 0.3975 | E19: 0.001052602614 | F19: Deep Dive
A20: 16 | B20: SEW | C20: =SUMIF(F_Input_Water_totex!$A$8:$A$24,'Materiality & shallow dive'!B20,F_Input_Water_totex!$F$8:$F$24) -> 1862.837225 | D20: =VLOOKUP('Materiality & shallow dive'!B20,'Final data format'!$A$5:$J$23,10,0) -> 128.783 | E20: 0.06913271771 | F20: Deep Dive
A21: 17 | B21: SSC | C21: =SUMIF(F_Input_Water_totex!$A$8:$A$24,'Materiality & shallow dive'!B21,F_Input_Water_totex!$F$8:$F$24) -> 737.9594339 | D21: =VLOOKUP('Materiality & shallow dive'!B21,'Final data format'!$A$5:$J$23,10,0) -> 7.178 | E21: 0.009726821924 | F21: Deep Dive
B22: Total | C22: =SUM(C5:C21) -> 45434.64701 | D22: =SUM(D5:D21) -> 414.4385

Sheet DeepDives>>

Sheet ANH
A1: =RIGHT(CELL("filename", $A$1), LEN(CELL("filename", $A$1)) - SEARCH("]", CELL("filename", $A$1))) ->  | K1: Draft Determination
B3: Company | C3: Anglian Water | G3: Pass | K3: Company | L3: Anglian Water
B4: Scheme/Programme name | C4: Strategic Interconnectors | G4: Partial pass | K4: Scheme/Programme name | L4: Strategic Interconnectors
B5: Scheme/Programme overview | C5: East Suffolk WRZ IPZ A pipeline scheme delivering connectivity at the southern end of the Strategic Grid into Ipswich. This allows reduction of abstraction from groundwater sources in Ipswich and east Suffolk required by the Environment Agency by the end of the investment period. | G5: Fail | K5: Scheme/Programme overview | L5: East Suffolk WRZ IPZ A pipeline scheme delivering connectivity at the southern end of the Strategic Grid into Ipswich. This allows reduction of abstraction from groundwater sources in Ipswich and east Suffolk required by the Environment Agency by the end of the investment period.
B6: PR24 table line allocation | C6: Water resilience and security - Resilience | G6: Pass | K6: PR24 table line allocation | L6: Water resilience and security - Resilience
B7: Total requested in business plan (totex, £m) | C7: =INDEX('Materiality & shallow dive'!$D$5:$D$21,MATCH($A$1,'Materiality & shallow dive'!$B$5:$B$21,0)) ->  | G7: Minor concerns | K7: Total requested in business plan (totex, £m) | L7: 7.555
B8: Scheme/Programme value assessed in deep dive (totex, £m) | C8: 7.555 | G8: Some concerns | K8: Scheme/Programme value assessed in deep dive (totex, £m) | L8: 7.555
B9: Overall adjustment | C9: 0.1 | K9: Overall adjustment | L9: 0.2
B10: Totex allowance from deep dive (£m) | C10: =C8*(1-C9) -> 6.7995 | K10: Totex allowance from deep dive (£m) | L10: 6.044
B12: Enhancement assessment criteria grouping | C12: Assessment comments | D12: Criteria decision | E12: % adjustment | F12: Reference (e.g. document and page number) | K12: Enhancement assessment criteria grouping | L12: Assessment comments | M12: Criteria decision | N12: % adjustment | O12: Reference (e.g. document and page number)
B13: Need for enhancement investment | C13: In the draft determination the proposed investment partially met the criteria for enhancement investment and additional customer funding. In its representation the company provides sufficient and convincing evidence to demonstrate that the investment meets the need for enhancement criteria. Therefore, for the final determination, we do not apply an adjustment. At draft determination, the company justified the need of this enhancement investment by two peak-flow management issues (a) the need to balance peak flows occurring within a single WRZ as a result of changes in groundwater licences, and (b) the effect of saline intrusion causing unbalanced peaks. However, there was a residual uncertainty regarding why these challenges which have been increasing over time have not been addressed in previous periods. In its representation the company explains that a steady increase in chloride levels detected in Belstead sources since 2017, reaching critical levels in 2020. The company assumed this issue could be transient at the time of developing its PR19 business plan, hence not requested in the previous period. But the continued increase has now shown that the saline intrusion is not a transient issue and so there is an emerging need in 20252030 period to alleviate pressure on the Belstead sources. The company provides sufficient and convincing evidence that its proposed revised investment meets the need for enhancement criteria. Therefore, for the final determination we do not apply an adjustment. | D13: Pass | E13: 0 | F13: Resilient to flood PR24 DD Representation enhancement strategy (sharepoint.com) | K13: Need for enhancement investment | L13: Partial pass: The investment partly meets the criteria for enhancement investment and additional customer funding. The company does not provide sufficient and convincing evidence to demonstrate that the underlying need isn’t covered by previous base or enhancement funding. The need for this enhancement investment is justified by two peak-flow management issues (a) the need to balance peak flows occurring within a single WRZ as a result of changes in groundwater licences, and (b) the effect of saline intrusion causing unbalanced peaks. There is a clear line of sight from Long Term Development Statements (LTDS). However, there is residual uncertainty regarding why these challenges which have been increasing over time have not been addressed in previous periods. | M13: Partial Pass | N13: 0.1
B14: Best option for customers | C14: In the draft determination we had minor concerns that the proposed investment was the best option for customers and applied an adjustment. The company in its representation provides additional evidence, however we still have minor concerns that the investment is the best option for customers. Therefore, we retain our draft determination approach for our final determination. At draft determination, the company did not provide sufficient and convincing evidence of how it assessed the alternative options and the scoring mechanism applied. The company in its representation of draft determination states that "alternative abstraction regimes have been explored but none have been effective without leaving the company at risk of failing to meet demand". However, the company does not provide further evidence except the preceding high-level statement. | D14: Minor concerns | E14: 0.1 | K14: Best option for customers | L14: Minor concerns: We have minor concerns whether the investment is the best option for customers. The company presents sufficient and convincing evidence that they consider a number of options, take account of costs and benefits and that proposed schemes are flexible. The company makes reference to the 4 Rs of resilience (resistance, reliability, redundancy, response and recovery) but does not explain how this has been applied in its optioneering process. The company states that the WRMP24 process identified WRZ deficits and considered a large unconstrained options list which were optimised against demand scenarios. However, the East Suffolk WRZ IPZ scheme was not selected for WRMP as it provides no zonal WAFU benefit. The company provides details of its process for derivation of a longlist, and cost-benefit analysis is set out with good pipeline route optioneering using GIS. The company does not provide sufficient evidence of the alternative options considered and the scoring mechanism applied. | M14: Minor concerns | N14: =IF(M14="Pass",0%,IF(M14="Minor concerns",10%,IF(M14="Some concerns",20%,IF(M14="Significant concerns",30%)))) -> 0.1
B15: Cost efficiency | C15: In the draft determination we had no concerns that the proposed investment was efficient and applied an adjustment. In its representation the company includes its proposed investment submitted in its October 2023 business plan submission, but it provides no additional supporting evidence . Therefore, we retain our draft determination approach for the final determination. | D15: Pass | E15: 0 | K15: Cost efficiency | L15: Pass: The company provides sufficient and convincing evidence that the investment is efficient. The development of costs is well-explained, and sufficient solution detail is provided of the proposed assets. Costs are based on experience from the 2020-2025 period , feasibility studies, and optimised GIS pipe routing together with in-house and external cost databases. External cost consultants have been used to benchmark costs against industry outturn data. We have found the costs for the proposed interconnectors scheme to be efficient when applying the costs, pipeline lengths and benefits in our supply interconnector model. | M15: Pass | N15: =IF(M15="Pass",0%,IF(M15="Minor concerns",10%,IF(M15="Some concerns",20%,IF(M15="Significant concerns",30%)))) -> 0
B16: Customer protection | C16: In the draft determination we had some concerns whether the company's proposal fully protects customers from non- or under delivery. The company provides no comments in its representation. Therefore, we retain our draft determination approach for the final determination. At draft determination, the company provided a brief description of what it would use to protect customers even though the investment was not material enough for a price control deliverable (PCD) to be proposed. However, we did not consider the company's proposal would provide sufficient customer protection. The company in its representation provides no specific comments on our proposed PCD in the draft determination. Therefore, we retain our draft determination approach for the final determination. For more information on PCD decisions see the PR24 final determinations: Expenditure allowances - Price control deliverable appendix. | D16: Some concerns | E16: n/a | K16: Customer protection | L16: Some concerns: We have some concerns whether the company's proposal fully protects customers from non-or under delivery. Although the investment is not material enough for a price control deliverable (PCD) to be proposed the company does provide a brief description of what it would use to protect customers. The PCD proposed for all interconnectors is based on WRZ WAFU benefit, rather than capacity, which would not apply to this scheme as there is no WAFU benefit. We do not consider to that this proposal would provide sufficient customer protection. The expenditure in this area is not material and so we do not consider a PCD is required. For more information on PCD decisions see the PR24 draft determinations: Expenditure allowances - Price control deliverable appendix. | M16: Some Concerns | N16: NA
B18: End of published version | K18: End of published version

Sheet WSH
A1: WSH | K1: Draft Determination
B3: Company | C3: Dŵr Cymru | G3: Pass | K3: Company | L3: Dŵr Cymru
B4: Scheme/Programme name | C4: Strategic Interconnectors | G4: Partial pass | K4: Scheme/Programme name | L4: Strategic Interconnectors
B5: Scheme/Programme overview | C5: Approximately 70% of this request is covered by three schemes: (i) increasing capacity within Tywi/SEWCUS transfer main, the next stage of work for ‘Extending the South Wales Grid’ that started in AMP7. It will improve medium to long duration resilience by enhancing the Strategic Network to Birchgrove WPS and Margam WPS and dualling of a single length of main between the two sites. (ii) Critical Crossings and Connectivity Improvement Schemes - a ‘targeted interventions’ programme to reduce risk at locations where a single asset failure would create a significant negative impact on customer supplies. (iii) Relocation of the Wye transfer crossing - reduce the risk of a catastrophic failure resulting increased levels of soil erosion where the main is currently laid. The rest of the request relates to Strategic Resilience Feasibility Studies to define strategic schemes which will provide long term resilience across the Welsh Water area and facilitate the maximisation of water resources, major maintenance for water treatment works and strategic mains. | G5: Fail | K5: Scheme/Programme overview | L5: Approximately 70% of this request is covered by three schemes: (i) increasing capacity within Tywi/SEWCUS transfer main, the next stage of work for ‘Extending the South Wales Grid’ that started in AMP7. It will improve medium to long duration resilience by enhancing the Strategic Network to Birchgrove WPS and Margam WPS and dualling of a single length of main between the two sites. (ii) Critical Crossings and Connectivity Improvement Schemes - a ‘targeted interventions’ programme to reduce risk at locations where a single asset failure would create a significant negative impact on customer supplies. (iii) Relocation of the Wye transfer crossing - reduce the risk of a catastrophic failure resulting increased levels of soil erosion where the main is currently laid. The rest of the request relates to Strategic Resilience Feasibility Studies to define strategic schemes which will provide long term resilience cross the Welsh Water area and facilitate the maximisation of water resources, major maintenance for water treatment works and strategic mains.
B6: PR24 table line allocation | C6: Water resilience and security - Resilience | G6: Pass | K6: PR24 table line allocation | L6: Water resilience and security - Resilience
B7: Total requested in business plan (totex, £m) | C7: =INDEX('Materiality & shallow dive'!$D$5:$D$21,MATCH($A$1,'Materiality & shallow dive'!$B$5:$B$21,0)) -> 54.479 | G7: Minor concerns | K7: Total requested in business plan (totex, £m) | L7: 54.403
B8: Scheme/Programme value assessed in deep dive (totex, £m) | C8: =INDEX('Materiality & shallow dive'!$D$5:$D$21,MATCH($A$1,'Materiality & shallow dive'!$B$5:$B$21,0)) -> 54.479 | G8: Some concerns | K8: Scheme/Programme value assessed in deep dive (totex, £m) | L8: 54.403
B9: Overall adjustment | C9: =E13+E14+E15 -> 0.193175352 | K9: Overall adjustment | L9: 0.5866365041
B10: Totex allowance from deep dive (£m) | C10: =C8*(1-C9) -> 43.955 | K10: Totex allowance from deep dive (£m) | L10: 22.48821427
B12: Enhancement assessment criteria grouping | C12: Assessment comments | D12: Criteria decision | E12: % adjustment | F12: Reference (e.g. document and page number) | K12: Enhancement assessment criteria grouping | L12: Assessment comments | M12: Criteria decision | N12: % adjustment | O12: Reference (e.g. document and page number)
B13: Need for enhancement investment | C13: In the draft determination the proposed investment partially met the criteria for enhancement investment and additional customer funding. The company in its representation provides additional evidence, however the investment still partially meets the need for enhancement criteria. Therefore, we reduce the draft determination adjustment for the final determination. In the draft determination, we removed £16.913m of the investment request related to strategic resilience feasibility studies and inspections to reduce incidents of third parties, due to overlap with base allowances. The company also did not provide clear scheme descriptions to demonstrate the proposed investment was an enhancement. . The company in its representation on the draft determination states that the feasibility studies and inspection activities provide learning and supporting information for more efficient outcomes for the resilience interconnectors investments. However, no new evidence has been provided regarding these studies. Therefore, we retain our draft determination approach and remove these two activities (totalled £10.21m) from the proposed investment. The company also clarifies that the request of the critical crossing schemes is to provide resilience to low probability and high consequences critical location across the strategic network and is not driven by the need to increase mains capacity to meet growth requirements. However, it also states that out of the £6.85m request, £0.32m belongs to "desk top assessment". However, this type of activity is delivered under base allowance. Therefore, we remove £0.32m due to overlap with base expenditure. The company does not provide sufficient and convincing evidence that there is no overlap with base allowances. Therefore, we reduce draft determination adjustment for the final determination and apply a £10.407m adjustment (£10.087m + £0.32m). | D13: Partial pass | E13: =10.524/C8 -> 0.193175352 | F13: WSH-DD-08 TOTEX - Enhancement Cost Allowances.pdf (sharepoint.com) | K13: Need for enhancement investment | L13: Partial pass. The investment partly meets the criteria for enhancement investment and additional customer funding. The company does not provide sufficient and convincing evidence that there are no overlaps with base allowances and previously funded enhancement schemes. We identify £11.749m of this investment request relates to strategic resilience feasibility studies. We expect this type of work to be conducted under base expenditure. Similarly, the request of £5.164m for inspections to reduce incidents of third parties compromising water quality would be expected to be delivered through base allowances. Removing the above activities from the claim, equates to a removal of £16.913m. The remaining investment is related three infrastructure components: (1) Tywi/SEWCUS transfer main (£22.802m), (2) 12 network connectivity improvements (£9.842m), and (3) River Wye pipeline relocation (£4.767m). The needs of these schemes are not clearly evidenced, scheme descriptions are insufficient, and the differentiation from base or growth funding is not clearly defined. Therefore, we apply a challenge of 20% on need. | M13: Partial Pass | N13: Bespoke: £16.913m removed and 20% challenge on the residual | O13: WSH60-RS04_-_Increasing_Resilience_of_Tap_Water_Supply_-_Network_Capacity_and_Connectivity.pdf
B14: Best option for customers | C14: In the draft determination we had some concerns that the proposed investment was the best option for customers and applied an adjustment. The company in its representation provides sufficient and convincing evidence to address our concerns and to demonstrate that the proposed investment is the best option for customers. Therefore, for the final determination, we do not apply an adjustment. In the draft determination, the company described a two-stage optioneering approach but did not provide sufficient and convincing evidence of the option analysis it undertook, and the valuation of benefits was not explained. The company in its representation on the draft determination provides additional evidence, including the cost-benefit analysis for the proposed investment, which helps to underpin the selection of the preferred options. The company provides sufficient and convincing evidence that its proposed investment is the best option for customers. Therefore, for the final determination we do not apply an adjustment. | D14: Pass | E14: 0 | K14: Best option for customers | L14: Some concerns: We have some concerns whether the investment is the best option for customers. The company provides limited evidence that alternative options have been considered and does not provide details of a cost benefit analysis to demonstrate that the chosen option is the right solution. A two-stage optioneering approach is described, but analysis of options is lacking in detail whilst the valuation of benefits in the cost benefits analysis is not clearly explained. Clearer justifications for each intervention would allow for a more informed decision on the option that best balances cost, benefits, and long-term sustainability for customers. | M14: Some concerns | N14: =IF(M14="Pass",0%,IF(M14="Minor concerns",10%,IF(M14="Some concerns",20%,IF(M14="Significant concerns",30%)))) -> 0.2
B15: Cost efficiency | C15: In the draft determination we did not apply an adjustment because the company provided sufficient and convincing evidence to demonstrate that the proposed investment was efficient. The company in its representation on draft determination includes its proposed investment submitted in its October 2023 business plan submission, but it provides no additional supporting evidence. Therefore, we retain our draft determination approach for the final determination. | D15: Pass | E15: 0 | K15: Cost efficiency | L15: Pass: The company provides sufficient and convincing evidence that the investment is efficient. Option costs are based on an internal unit cost database and a carbon and cost estimating tool but it is not clear how these were used to develop the option costs presented, or how non-standard or outlier costs were handled (tunnelling rates for example). However, applying the costs, pipeline lengths and benefits presented by the company into our supply interconnector model suggests that the proposed interconnectors are efficient, and, for this reason, we pass these schemes on cost efficiency and do not challenge costs further. | M15: Pass | N15: =IF(M15="Pass",0%,IF(M15="Minor concerns",10%,IF(M15="Some concerns",20%,IF(M15="Significant concerns",30%)))) -> 0
B16: Customer protection | C16: At draft determination, we had no significant concerns with the company's proposal to include a price control deliverable (PCD). Therefore, we retain our draft determination approach for our final determination for the final determination. In the draft determination, the company proposed a PCD that covered the three infrastructure components of this claim, handling each of them separately. The proposed PCD would report progress in length of pipeline constructed and return a proportion of the funding if only part of the scheme is delivered. The company in its representation provides no further comments on the customer protection. The expenditure in this area is material and so we consider a PCD is required. For more information on PCD decisions see the PR24 final determinations: Expenditure allowances - Price control deliverable appendix. | D16: Pass | E16: 0 | K16: Customer protection | L16: Pass: We find no significant concerns with the company's proposal to include a price control deliverable (PCD). The company proposes a PCD that covers the three infrastructure components of this claim, handling each of them separately. The proposed PCD would report progress in length of pipeline constructed and return a proportion of the funding if only part of the scheme is delivered. The expenditure in this area is material and so we consider a PCD is required. For more information on PCD decisions see the PR24 draft determinations: Expenditure allowances - Price control deliverable appendix. | M16: Pass | N16: NA
B18: End of published version | K18: End of published version

Sheet NES
A1: NES | K1: Draft Determination
B3: Company | C3: Northumbrian Water | G3: Pass | K3: Company | L3: Northumbrian Water
B4: Scheme/Programme name | C4: Bungay to Barsham pipeline | G4: Partial pass | K4: Scheme/Programme name | L4: Bungay to Barsham pipeline
B5: Scheme/Programme overview | C5: Bungay to Barsham pipeline. Two new raw water pipelines to transfer water from existing groundwater sources at Bungay and Broome for treatment at Barsham WTW. To be commissioned in 2030/31 (Combined DO is 1 Mld) | G5: Fail | K5: Scheme/Programme overview | L5: Bungay to Barsham pipeline. Two new raw water pipelines to transfer water from existing groundwater sources at Bungay and Broome for treatment at Barsham WTW. To be commissioned in 2030/31 (Combined DO is 1 Mld)
B6: PR24 table line allocation | C6: Water resilience and security - Resilience | G6: Pass | K6: PR24 table line allocation | L6: Water resilience and security - Resilience
B7: Total requested in business plan (totex, £m) | C7: =INDEX('Materiality & shallow dive'!$D$5:$D$21,MATCH($A$1,'Materiality & shallow dive'!$B$5:$B$21,0)) -> 0 | G7: Minor concerns | K7: Total requested in business plan (totex, £m) | L7: 8.935
B8: Scheme/Programme value assessed in deep dive (totex, £m) | C8: This scheme is no longer assessed under "Resilience Interconnectors". | G8: Some concerns | K8: Scheme/Programme value assessed in deep dive (totex, £m) | L8: 8.935
B9: Overall adjustment | K9: Overall adjustment | L9: 0.6
B10: Totex allowance from deep dive (£m) | K10: Totex allowance from deep dive (£m) | L10: 3.574
B12: Enhancement assessment criteria grouping | C12: Assessment comments | D12: Criteria decision | E12: % adjustment | F12: Reference (e.g. document and page number) | K12: Enhancement assessment criteria grouping | L12: Assessment comments | M12: Criteria decision | N12: % adjustment | O12: Reference (e.g. document and page number)
B13: Need for enhancement investment | K13: Need for enhancement investment | L13: Partial pass: The investment partly meets the criteria for enhancement investment and additional customer funding. The company does not provide sufficient and convincing evidence that there are no overlaps with base allowances and previously funded enhancement schemes. Northumbrian Water submits the Bungay to Barsham pipeline scheme in its business plan as a supply interconnector. The company describes the scheme as an intra-zonal transfer rather than a scheme which provides a specific supply-demand balance benefit. As the scheme may provide wider resilience benefits to the company, it has been reallocated to Resilience for assessment. The company states that a significant supply-demand deficit is forecasted in the Essex and Suffolk Water Resource Zones that has highlighted the need for more investment to address these deficits and deliver the supply-side interventions described in the case. The needs case presented by the company is very general, although they state that it aligns with the company's long-term strategy (LTS) and their long-term WRMP target of ensuring sustainable water supplies. The company does not provide sufficient and convincing evidence for why this investment is wholly enhancement. It also does not provide any evidence to demonstrate that there are not any overlaps in needs case with WRMP and WINEP investments also being requested at PR24. | M13: Partial Pass | N13: 0.2 | O13: NES14 - A3-01 Enhancement Case WR - Water Supplies.pdf OFW-OBQ-NES-192 - response from NES.docx OFW-OBQ-NES-133
B14: Best option for customers | K14: Best option for customers | L14: Some concerns: We have some concerns whether the investment is the best option for customers. The company considers a narrow range of alternative options but does not provide sufficient and convincing evidence to demonstrate that the chosen options are best value for customers. The company states it has considered 64 water transfer options through its options appraisal methodology. However, the company provides limited evidence of the metrics and scoring used to determine the preferred plan and makes no mention of the 4Rs of resilience: resistance, reliability, redundancy, response and recovery. The company is also not providing sufficient and convincing evidence to demonstrate that the chosen option is the most cost beneficial in comparison to others. Therefore, it is not possible to determine if the proposal is the right solution. | M14: Some concerns | N14: =IF(M14="Pass",0%,IF(M14="Minor concerns",10%,IF(M14="Some concerns",20%,IF(M14="Significant concerns",30%)))) -> 0.2
B15: Cost efficiency | K15: Cost efficiency | L15: Some concerns: We have some concerns whether the investment is efficient. The company does not provide sufficient and convincing evidence that the proposed costs are efficient. The company states that its costs are developed using their proprietary cost assessment database of historical investments. However, the company does not provide evidence of cost benchmarking or external assurance of costs to demonstrate that they are efficient. We have found the costs for the proposed interconnectors scheme to be inefficient when applying the costs, pipeline lengths and benefits in our supply interconnector model. The company is not providing sufficient and convincing evidence to explain this difference in costs. | M15: Some concerns | N15: =IF(M15="Pass",0%,IF(M15="Minor concerns",10%,IF(M15="Some concerns",20%,IF(M15="Significant concerns",30%)))) -> 0.2
B16: Customer protection | K16: Customer protection | L16: Some concerns: We have some concerns whether the company's proposal fully protects customers from non-or under delivery. The company proposes a single "pooled" PCD for three enhancement cases (water supplies, reservoir safety and climate change resilience) with measurement based on completion of individual schemes with external assurance at the next price review. The PCD should report progress in length of pipeline constructed and return a proportion of the funding if only part of the scheme is delivered. We do not consider that this proposal would provide sufficient customer protection to ensure the funding is returned in the event of non or partial delivery. The expenditure in this area is material and so we consider a PCD is required. For more information on PCD decisions see the PR24 draft determinations: Expenditure allowances - Price control deliverable appendix. | M16: Some concerns | N16: NA | O16: NES14 - A3-01 Enhancement Case WR - Water Supplies.pdf p. 89 Ofwat guidance: Further guidance on price control deliverables for PR24.pdf p.7
B18: End of published version | K18: End of published version

Sheet SVE
A1: =RIGHT(CELL("filename", $A$1), LEN(CELL("filename", $A$1)) - SEARCH("]", CELL("filename", $A$1))) ->  | K1: Draft Determination
B3: Company | C3: Severn Trent Water | G3: Pass | K3: Company | L3: Severn Trent Water
B4: Scheme/Programme name | C4: Strategic Interconnectors | G4: Partial pass | K4: Scheme/Programme name | L4: Strategic Interconnectors
B5: Scheme/Programme overview | C5: Six interconnectors totaling 66km in length, mostly located at the southern end of the Nottingham/Leicester/Coventry strategic grid system. These are to to enable the transfer of increased interzonal flows which are required because of increasingly long duration extreme climate events. | G5: Fail | K5: Scheme/Programme overview | L5: Six interconnectors totaling 66km in length, mostly located at the southern end of the Nottingham/Leicester/Coventry strategic grid system. These are to to enable the transfer of increased interzonal flows which are required because of increasingly long duration extreme climate events.
B6: PR24 table line allocation | C6: Water resilience and security - Resilience | G6: Pass | K6: PR24 table line allocation | L6: Water resilience and security - Resilience
B7: Total requested in business plan (totex, £m) | C7: =INDEX('Materiality & shallow dive'!$D$5:$D$21,MATCH($A$1,'Materiality & shallow dive'!$B$5:$B$21,0)) ->  | G7: Minor concerns | K7: Total requested in business plan (totex, £m) | L7: 129.97
B8: Scheme/Programme value assessed in deep dive (totex, £m) | C8: =INDEX('Materiality & shallow dive'!$D$5:$D$21,MATCH($A$1,'Materiality & shallow dive'!$B$5:$B$21,0)) ->  | G8: Some concerns | K8: Scheme/Programme value assessed in deep dive (totex, £m) | L8: 129.97
B9: Overall adjustment | C9: =E13+E14+E15 -> 0 | K9: Overall adjustment | L9: 0.3
B10: Totex allowance from deep dive (£m) | C10: =C8*(1-C9) ->  | K10: Totex allowance from deep dive (£m) | L10: 90.979
B12: Enhancement assessment criteria grouping | C12: Assessment comments | D12: Criteria decision | E12: % adjustment | F12: Reference (e.g. document and page number) | K12: Enhancement assessment criteria grouping | L12: Assessment comments | M12: Criteria decision | N12: % adjustment | O12: Reference (e.g. document and page number)
B13: Need for enhancement investment | C13: In the draft determination the proposed investment partially met the criteria for enhancement investment and additional customer funding due to overlap with base expenditures. In its representation the company provides sufficient and convincing evidence to demonstrate that the investment meets the need for enhancement criteria. Therefore, for the final determination, we do not apply an adjustment. At draft determination, the company did not explain clearly the threshold used to estimate increase in extreme peak demands due to climate change and any overlap with WRMP and WINEP investments in its PR24 business plan and why the issues are not being managed in previous price review period. The company in its representation of draft determination provides the analysis from the Met Office to support the use of the threshold to estimate climate change impact. The company also benchmarks its hot weather uplift and suggests the selection of the climate impact thresholds are appropriate. The company also clarifies and separates clearly the resilience interconnectors from the WINEP and WRMP and illustrates geographically in its representation. Moreover, the proposed investment is included in large schemes enhanced engagement to take account of some uncertainties and provide additional protection in case of non-delivery. In its representation the company provides sufficient and convincing evidence to demonstrate that the investment meets the need for enhancement criteria. Therefore, for the final determination, we do not apply an adjustment. | D13: Pass | E13: 0 | F13: SVE4.02 Resilient water networks.pdf (sharepoint.com) | K13: Need for enhancement investment | L13: Partial pass: The investment partly meets the criteria for enhancement investment and additional customer funding. The company does not provide sufficient and convincing evidence that there are no overlaps with base allowances. The company presents an investment based on the potential increase in extreme peak demands due to climate change. There is uncertainty regarding why the thresholds used are appropriate (e.g. use of 97th percentile for defining extreme peaks) and any overlap in needs case with WRMP and WINEP investments also being requested at PR24. The company does not provide sufficient and convincing evidence for why this investment is wholly enhancement and why some of the issues being identified have not been managed in previous periods from base or in 2025-30 from base maintenance allowances, and indeed how much of the impact can be attributed to aging infrastructure. We will undertake further work ahead of final determinations on base overlap, which could lead to an increasing (or decreasing) base overlap challenge. We request that the company provide evidence that the base overlap challenge should not be higher than the 10% used. | M13: Partial Pass | N13: 0.1 | O13: SVE36 01 Resilient Water Networks.pdf
B14: Best option for customers | C14: In the draft determination we had some concerns that the proposed investment was the best option for customers and applied an adjustment. In its representation the company provides additional evidence to address our concerns. Therefore, we do not apply an adjustment for the final determination. In the draft determination, the company did not compare the options and their costs and benefits against the problem that the selected options were trying to resolve . There was also a lack of transparency in the optioneering process. The company also presented inconsistent cost figures and the breakdown between costs covered by this enhancement, the WRMP, and WINEP was not clearly explained. The company in its representation of draft determination presents a table with cost-benefit ratios for resilience options across different counties, including the proposed interconnectors for this investment. The company also provides additional information to address our concern whether customers input have been considered in the proposed solution. The company further clarifies the concerns on overlapping with Water WINEP investment and presents the schemes costed independently and then combined to obtain an overall cost reduction of £140m. In its representation the company provides sufficient and convincing evidence to address our concerns and to demonstrate that the proposed investment is the best option for customers Therefore, for the final determination, we do not apply an adjustment. | D14: Pass | E14: 0 | F14: p.53: SVE6.02 Data table commentary document.pdf (sharepoint.com) | K14: Best option for customers | L14: Some concerns: We have some concerns whether the investment is the best option for customers. The company considers a range of alternative options but does not provide sufficient and convincing evidence to demonstrate that the chosen options are the most cost beneficial in comparison to alternatives. There is no direct comparison of options and their costs and benefits against the problem that the selected options are trying to resolve. The case presented could be improved with greater transparency in option selection and greater input from customers on specific solutions could further ensure they align with customer priorities. The company has not provided sufficient and convincing evidence to demonstrate that the most cost beneficial option has been selected. There are inconsistent cost figures in various locations of the documents presented, making it difficult to determine the total project cost; the breakdown between costs covered by this enhancement, the WRMP, and WINEP is not clearly explained, especially regarding the Coventry South and Wem Whitchurch schemes. This raises concerns about appropriateness of the selected options based on the costs and benefits assumed by the company when making decisions. | M14: Some concerns | N14: =IF(M14="Pass",0%,IF(M14="Minor concerns",10%,IF(M14="Some concerns",20%,IF(M14="Significant concerns",30%)))) -> 0.2
B15: Cost efficiency | C15: In the draft determination we did not apply an adjustment because the company provided sufficient and convincing evidence to demonstrate that the proposed investment was efficient. in its representation the company provides no additional evidence Therefore, we retain our draft determination approach for the final determination. | D15: Pass | E15: 0 | F15: SVE3.01.01 Annex Acceptability and Affordability research summary.pdf (sharepoint.com) | K15: Cost efficiency | L15: Pass: The company does not provide sufficient and convincing evidence that the proposed costs are efficient but applying the costs, pipeline lengths and benefits presented by the company into our supply interconnector model suggests that the proposed interconnectors are efficient, and, for this reason, we pass these schemes on cost efficiency. The company provides a description of the costing methodology and third-party benchmarking, but the presentation of cost information lacks clarity and transparency. This would make it difficult to assess the cost efficiency of the proposed solutions without the ability to test in the Supply interconnector model. Applying the costs and pipeline lengths and benefits in our supply interconnector model suggests that the proposed interconnectors are efficient. We have therefore not applied an additional efficiency challenge to the investment. However, due to uncertainty with optioneering, base overlap and cost efficiency for a large scale project which may suffer from poor cost estimation and cost overruns we allocate this programme into the enhanced engagement and cost sharing programme. | M15: Pass | N15: =IF(M15="Pass",0%,IF(M15="Minor concerns",10%,IF(M15="Some concerns",20%,IF(M15="Significant concerns",30%)))) -> 0 | O15: SVE12 Annex 4a Costs, stretch and efficiency.pdf OFW-OBQ-SVE-258 response
B16: Customer protection | C16: In the draft determination we had some concerns with the proposed price control deliverable (PCD) and customer protections. The company provides no comments in its representation. Therefore, we retain our draft determination approach for the final determination. At draft determination, the company proposed a PCD based on earned value against an annual completion percentage and with a cost sharing mechanism. We did not consider that this proposal would provide sufficient customer protection to ensure the funding is returned in the event of non or partial delivery. Therefore, we proposed a PCD that will report progress in length of pipeline constructed and return a proportion of the funding if only part of the scheme is delivered. In its representation the company provides no comments on our proposed PCD in the draft determination. Therefore, we retain our draft determination approach for the final determination. For more information on PCD decisions see the PR24 final determinations: Expenditure allowances - Price control deliverable appendix. | D16: Pass | E16: 0 | F16: SVE4.02 Resilient water networks.pdf (sharepoint.com) | K16: Customer protection | L16: Some concerns. We have some concerns with the company's proposed customer protections, including a price control deliverable (PCD). The company proposes a PCD based on earned value against an annual completion percentage and with a cost sharing mechanism. The company will report its earned value from the schemes at a program level on an annual basis through the APR process. We do not consider that this proposal would provide sufficient customer protection to ensure the funding is returned in the event of non or partial delivery. The expenditure in this area is material and so we consider a PCD is required. The PCD used will report progress in length of pipeline constructed and return a proportion of the funding if only part of the scheme is delivered. For more information on PCD decisions see the PR24 draft determinations: Expenditure allowances - Price control deliverable appendix. | M16: Some concerns | N16: NA | O16: SVE36 01 Resilient Water Networks.pdf p.79
B18: End of published version | K18: End of published version

Sheet SWB
A1: =RIGHT(CELL("filename", $A$1), LEN(CELL("filename", $A$1)) - SEARCH("]", CELL("filename", $A$1))) ->  | K1: Draft Determination
B3: Company | C3: South West Water | G3: Pass | K3: Company | L3: South West Water
B4: Scheme/Programme name | C4: Strategic Interconnectors | G4: Partial pass | K4: Scheme/Programme name | L4: Strategic Interconnectors
B5: Scheme/Programme overview | C5: Four inter-zonal transfer pipelines between water supply catchments in Devon and Cornwall, (plus a small pipeline in Bournemouth). The interconnectors are to mitigate differential effects of drought on adjacent catchments. | G5: Fail | K5: Scheme/Programme overview | L5: Four inter-zonal transfer pipelines between water supply catchments in Devon and Cornwall, (plus a small pipeline in Bournemouth). The interconnectors are to mitigate differential effects of drought on adjacent catchments.
B6: PR24 table line allocation | C6: Water resilience and security - Resilience | G6: Pass | K6: PR24 table line allocation | L6: Water resilience and security - Resilience
B7: Total requested in business plan (totex, £m) | C7: =INDEX('Materiality & shallow dive'!$D$5:$D$21,MATCH($A$1,'Materiality & shallow dive'!$B$5:$B$21,0)) ->  | G7: Minor concerns | K7: Total requested in business plan (totex, £m) | L7: 70.51
B8: Scheme/Programme value assessed in deep dive (totex, £m) | C8: =INDEX('Materiality & shallow dive'!$D$5:$D$21,MATCH($A$1,'Materiality & shallow dive'!$B$5:$B$21,0)) ->  | G8: Some concerns | K8: Scheme/Programme value assessed in deep dive (totex, £m) | L8: 70.98
B9: Overall adjustment | C9: =E13+E14+E15 ->  | K9: Overall adjustment | L9: 0.3
B10: Totex allowance from deep dive (£m) | C10: =C8*(1-C9) ->  | K10: Totex allowance from deep dive (£m) | L10: 49.686
B12: Enhancement assessment criteria grouping | C12: Assessment comments | D12: Criteria decision | E12: % adjustment | F12: Reference (e.g. document and page number) | K12: Enhancement assessment criteria grouping | L12: Assessment comments | M12: Criteria decision | N12: % adjustment | O12: Reference (e.g. document and page number)
B13: Need for enhancement investment | C13: In the draft determination the proposed investment partially met the criteria for enhancement investment and additional customer funding. In its representation the company provides sufficient and convincing evidence to demonstrate that the investment meets the need for an enhancement criteria. Therefore, for the final determination, we do not apply an adjustment. At draft determination, the company did not provide sufficient and convincing evidence to support that the additional investment was required to achieve resilience and mitigate drought beyond the requirements of the WRMP and would not be delivered through base allowance. In its representation to the draft determination the company states that the primary scenarios the proposed resilience interconnectors are designed to prevent extreme water quality challenges, extreme freeze/thaw events leading to leakage, ground shift caused by dry soils, power outages and planned works outages at peak times. Hence, the proposed investment is hazard driven. The company provides sufficient and convincing evidence to demonstrate that the revised investment meets the need for enhancement criteria. Therefore, for the final determination, we do not apply an adjustment. | D13: Pass | E13: 0 | F13: SBBDD04_L2_Water_quality_and_resilience.pdf (sharepoint.com) | K13: Need for enhancement investment | L13: Partial pass: The investment partly meets the criteria for enhancement investment and additional customer funding. However, the company does not provide sufficient and convincing evidence that there are no overlaps with base allowances. The company states that the investment is required due to the region being made up of relatively isolated water resource zones with small catchments. The company states that this investment is part of an aspiration aim to achieve resilience and mitigate drought beyond the requirements of the WRMP. It implies that the additional investment goes beyond the requirements of the WRMP and would not be delivered through base allowances. However, the company does not provide sufficient or convincing evidence why this additional investment cannot be delivered through base allowances. Therefore, we apply a challenge of 10% for part of the scheme. We will undertake further work ahead of final determinations on base overlap, which could lead to an increasing (or decreasing) base overlap challenge. We request that the company provide evidence that the base overlap challenge should not be higher than 10%. | M13: Partial Pass | N13: 0.1 | O13: SBB24_Enhancement_Case_Strategic_Interconnectors.pdf
B14: Best option for customers | C14: In the draft determination the proposed investment partially met the criteria for enhancement investment and additional customer funding. In its representation the company provides sufficient and convincing evidence to demonstrate that the investment meets the need for an enhancement criteria. Therefore, for the final determination, we do not apply an adjustment. At draft determination, the company did not provide sufficient and convincing evidence to support that the additional investment was required to achieve resilience and mitigate drought beyond the requirements of the WRMP and would not be delivered through base allowance. In its representation to the draft determination the company states that the primary scenarios the proposed resilience interconnectors are designed to prevent extreme water quality challenges, extreme freeze/thaw events leading to leakage, ground shift caused by dry soils, power outages and planned works outages at peak times. Hence, the proposed investment is hazard driven. The company provides sufficient and convincing evidence to demonstrate that the revised investment meets the need for enhancement criteria. Therefore, for the final determination, we do not apply an adjustment. | D14: Pass | E14: 0 | F14: SBBDD78_L5_CEAPP_Strategic_Interconnectors.pdf (sharepoint.com) | K14: Best option for customers | L14: Minor concerns: We have minor concerns whether the investment is the best option for customers. The company considers a range of alternative options but does not provide sufficient and convincing evidence to demonstrate that the chosen options are the most cost beneficial in comparison to alternatives. The company demonstrates that a long list of options that have been considered based on input from engineering, operational, and water resources teams. A well-defined process has been used by the company to identify and screen options, focusing on potential benefits in reducing customer service interruptions. The company's engagement with customers has shown support for affordable investments that ensure continued water supply during climate change. It states that options were identified as part of its WRMP, but that they don’t contribute to the supply demand balance as the deficits are already met via other schemes selected in the WRMP. It is unclear why these interconnectors are not selected in the WRMP to resolve both supply demand balance deficits and resilience issues. All options have been developed to a conceptual level, including cost, environmental impact, and carbon footprint. Third party technical assurance has been provided, and the extent of this assurance is described. However, the company does not provide evidence of the data used in the optioneering process to determine the alternative options. For example, model extracts have not been provided, so that the process, and the nature of its inputs cannot be verified. | M14: Minor concerns | N14: =IF(M14="Pass",0%,IF(M14="Minor concerns",10%,IF(M14="Some concerns",20%,IF(M14="Significant concerns",30%)))) -> 0.1
B15: Cost efficiency | C15: In the draft determination we had minor concerns that the proposed investment was efficient and applied an adjustment. The company in its representation provides additional evidence, however we still have minor concerns that the investment is efficient. Therefore, we retain our draft determination approach for our final determination. At draft determination, we applied our cost model to test the efficiency of the proposed interconnectors and the model indicated the pipeline lengths and benefits were not efficient and we applied a 10% challenge. The company in its representation on draft determination provides independent assurance report but did not directly address our concerns. Based on the cost models, we estimate a 5% challenge is appropriate to be applied on the pipelines only. There is no challenge to the pumping station request. The company in its representation provides additional evidence, however we still have minor concerns that the investment is efficient. Therefore, we reduce the draft determination adjustment for the final determination. | D15: Minor concerns | E15: =0.05*(33.63+17.971+14.26+2.56)/C8 ->  | F15: SBBDD76_L5_CEAPP_Strategic_Interconnectors_Assurance_Report.xlsx (sharepoint.com) | K15: Cost efficiency | L15: Minor concerns: We have minor concerns whether the investment is efficient. The company provides a description of the costing methodology and third-party benchmarking, but our analysis indicates there is room for improved efficiency. The company states that it has used cost models that use captured actual costs from historical projects to develop it to provide cost, carbon and environmental impact metrics for the options presented. The company states that independent consultants were used to benchmark costs to ensure "robustness and efficiency", however, it does not provide any direct evidence of efficiency through examples from the benchmarking. We have found that when we apply the costs, pipeline lengths and benefits in our supply interconnector model, that a 10% challenge on efficiency across this claim is appropriate. | M15: Minor concerns | N15: =IF(M15="Pass",0%,IF(M15="Minor concerns",10%,IF(M15="Some concerns",20%,IF(M15="Significant concerns",30%)))) -> 0.1
B16: Customer protection | C16: In the draft determination we had some concerns with the proposed customer protection and applied a PCD for each interconnector. The company in its representation accepts the proposed PCDs but proposes an adjustment on one of the PCDs. Therefore, we have minor concerns whether the proposed adjustment provide sufficient customer protection. In draft determination, we did not consider the company's proposal would provide sufficient customer protection to ensure the funding would be returned in the event of non or partial delivery. The expenditure in this area is material so we proposed a PCD that will report progress in length of pipeline constructed and return a proportion of the funding if only part of the scheme is delivered. The company in its representation "do not challenge the PCDs for strategic interconnectors in principle" but also proposes an adjustment for one of the schemes. Instead of delivering the whole length 37.2km of the Mayflower WTW to Littlehampton WTW scheme, the adjustment PCD allows 9km of installed mains into the AMP8 PCD as a pro-rata allocation of total length (37.2km) to forecast AMP8 expenditure less an allowance to allow for early programme activities such as design and planning. For more information on PCD decisions see the PR24 final determinations: Expenditure allowances - Price control deliverable appendix. | D16: Minor concerns | E16: N/A | K16: Customer protection | L16: Some concerns: We have some concerns whether the company's proposal fully protects customers from non- or under delivery. The company proposes a PCD that covers the five individual infrastructure components of this claim, handling each of them separately. We do not consider that this proposal would provide sufficient customer protection to ensure the funding is returned in the event of non or partial delivery. The expenditure in this area is material and so we consider a PCD is required. The PCD will report progress in length of pipeline constructed and return a proportion of the funding if only part of the scheme is delivered. For more information on PCD decisions see the PR24 draft determinations: Expenditure allowances - Price control deliverable appendix. | M16: Some Concerns | N16: NA
B18: End of published version | K18: End of published version

Sheet AFW
A1: =RIGHT(CELL("filename", $A$1), LEN(CELL("filename", $A$1)) - SEARCH("]", CELL("filename", $A$1))) ->  | K1: Draft Determination
B3: Company | C3: Affinity Water | G3: Pass | K3: Company | L3: Affinity Water
B4: Scheme/Programme name | C4: Strategic Interconnectors | G4: Partial pass | K4: Scheme/Programme name | L4: Strategic Interconnectors
B5: Scheme/Programme overview | C5: 10 Ml additional storage cells at each of two existing reservoir sites (Hadham Mill Reservoir and The Hills Reservoir) in vulnerable WRZs. Required to manage extended periods of acute peak demands. Forms part of a much larger 'Connect 2050' programme driven by WRMP and WINEP comprising pumping, interconnectors, storage and treatment improvements. | G5: Fail | K5: Scheme/Programme overview | L5: 10 Ml additional storage cells at each of two existing reservoir sites (Hadham Mill Reservoir and The Hills Reservoir) in vulnerable WRZs. Required to manage extended periods of acute peak demands. Forms part of a much larger 'Connect 2050' programme driven by WRMP and WINEP comprising pumping, interconnectors, storage and treatment improvements.
B6: PR24 table line allocation | C6: Water resilience and security - Resilience | G6: Pass | K6: PR24 table line allocation | L6: Water resilience and security - Resilience
B7: Total requested in business plan (totex, £m) | C7: 13.615 | G7: Minor concerns | K7: Total requested in business plan (totex, £m) | L7: 13.73
B8: Scheme/Programme value assessed in deep dive (totex, £m) | C8: 13.615 | G8: Some concerns | K8: Scheme/Programme value assessed in deep dive (totex, £m) | L8: 13.73
B9: Overall adjustment | C9: =E13+E14+E15 -> 0.1 | K9: Overall adjustment | L9: 0.2
B10: Totex allowance from deep dive (£m) | C10: =C8*(1-C9) -> 12.2535 | K10: Totex allowance from deep dive (£m) | L10: 10.984
B12: Enhancement assessment criteria grouping | C12: Assessment comments | D12: Criteria decision | E12: % adjustment | F12: Reference (e.g. document and page number) | K12: Enhancement assessment criteria grouping | L12: Assessment comments | M12: Criteria decision | N12: % adjustment | O12: Reference (e.g. document and page number)
B13: Need for enhancement investment | C13: In the draft determination the proposed investment partially met the criteria for enhancement investment and additional customer funding. In its representation the company provides additional evidence, however the investment still partially meets the need for enhancement criteria. Therefore, we retain our draft determination approach for our final determination. The proposed investment partially met the enhancement criteria in the draft determination as the company did not provide sufficient and convincing evidence that it had accounted for overlap with existing base allowances. In its representation to the draft determination, the company states that all investment is to provide new additional assets and that it has not received prior funding in either base or enhancement allowances. The company provides the assumptions it has used to classify spend into base or enhancement, and states that additional Opex has not been included in the enhancement investment request. However the company does not provide a quantified assessment to account for potential base overlap. Therefore, we retain our draft determination approach for our final determination and apply a 10% adjustment for overlap with base activities. | D13: Partial pass | E13: 0.1 | F13: OFW-PR24 - AFW101 - Affinity Water PR24 draft Determination Representation.pdf - All Documents (sharepoint.com) P136-143 | K13: Need for enhancement investment | L13: Partial pass: The investment partly meets the criteria for enhancement investment and additional customer funding. The company provides sufficient and convincing evidence of the need for the scheme but does not demonstrate that parts of the scheme do not overlap with base allowances. The company presents the investment as part of their "Connect 2050" plan, which the company states is a long-term initiative that aims to improve their ability to move water around the region. bringing together their water resource management plan (WRMP), Water Industry National Environmental Programme (WINEP), and resilience strategies. The investment, which is for additional resilience against climate change, follows a consistent approach in needs identification for all components – risk, value and option development. However, although the company claims to avoid overlap with existing base allowances, it fails to provide sufficient and convincing evidence for this. | M13: Partial Pass | N13: 0.1 | O13: OFW-OBQ-AFW-028 Connect 2050.pdf OFW-OBQ-AFW-135 Final.pdf OFW-OBQ-AFW-028 Connect 2050.pdf p.943
B14: Best option for customers | C14: At the draft determination we had minor concerns that the proposed investment was the best option for customers and applied an adjustment. In its representation the company provides sufficient and convincing evidence to address our concerns and to demonstrate that the proposed investment is the best option for customers. Therefore, for the final determination, we do not apply an adjustment. In the draft determination we had concerns that the proposed investment is the best option for customers because the company did not provide sufficient and convincing evidence of the data used within the optioneering process. In its representation to the draft determination the company provides a summary of its optioneering process. For the two schemes being considered, the company provides tables of options for each stage together with risk reduction, feasibility, and cost data. The company provides sufficient and convincing evidence to demonstrate that the revised investment is the best option for customers. Therefore, for the final determination, we do not apply an adjustment. | D14: Pass | E14: 0 | K14: Best option for customers | L14: Minor concerns: We have minor concerns whether the investment is the best option for customers. The company considers a range of alternative options but does not provide sufficient and convincing evidence to demonstrate that the chosen options are the most cost beneficial in comparison to alternatives. A clear and robust methodology is described for identifying options, assessing risk and cost benefit analysis. There is a line of sight from Water Resources South East (WRSE) regional planning through internal strategic planning to option development. A consistent approach to risk analysis taking account of relevant hazards is described and valuation takes account of carbon, biodiversity net gain and natural capital. The Company's Resilience Assessment Tool uses an asset-by-asset as well as a system-based approach in line with the 4R’s methodology (resistance, Reliability, Redundancy, Response and Recovery) and assesses the risks from a broad range of hazards. The company provides results for alternative options to demonstrate selection of the most beneficial option. However, the company provides no evidence of the data used in the optioneering process to determine the alternative options. For example, model extracts have not been provided, so that the process, and the nature of its inputs cannot be verified. | M14: Minor concerns | N14: 0.1
B15: Cost efficiency | C15: In the draft determination we did not apply an adjustment because the company provided sufficient and convincing evidence to demonstrate that the proposed investment was efficient. In its representation the company accepts the draft determination assessment. Therefore, we retain our draft determination approach for the final determination. | D15: Pass | E15: 0 | K15: Cost efficiency | L15: Pass: The company provides sufficient and convincing evidence that the investment is efficient. A clear and robust methodology is described for identifying options, assessing risk and cost benefit analysis. There is line of sight from WRSE regional planning through internal strategic planning to option development. A consistent risk analysis process taking account of relevant hazards is described. The costing process is assured by a third party, and the solution costs benchmarked by independent consultants. | M15: Pass | N15: 0
B16: Customer protection | C16: For the final determination, the company's proposed investment does not meet the materiality threshold for a price control deliverable (PCD). The company proposes a PCD. In order to provide customer protection, we consider a PCD is required. Therefore, for the final determination we apply a PCD. We discuss the PCD and our consideration of any consultation responses received in the Price Control Deliverables Appendix. | K16: Customer protection | L16: Some concerns: We have some concerns whether the company's proposal fully protects customers from non-or under delivery. The company proposes a PCD based on the additional annual average transfer capacity (AATC) provided calculated by aggregating the transfer capacities of individual zonal connectors. They state that the benefit would be derived by comparing the initial AATC against the post project implementation AATC. We do not consider that this proposal would provide sufficient customer protection. The company does not provide sufficient and convincing evidence that the AATC measured before and after the implementation of the scheme could be fully isolated from other variables to demonstrate the benefit provided by this scheme was fully attributed to the scheme. The expenditure in this area does not meet the material threshold for a PCD and so we do not consider a PCD is required. For more information on PCD decisions see the PR24 draft determinations: Expenditure allowances - Price control deliverable appendix. | M16: Some Concerns | N16: NA
B18: End of published version

Sheet SEW_1
A1: =RIGHT(CELL("filename", $A$1), LEN(CELL("filename", $A$1)) - SEARCH("]", CELL("filename", $A$1))) ->  | K1: Draft Determination
B3: Company | C3: South East Water | G3: Pass | K3: Company | L3: South East Water
B4: Scheme/Programme name | C4: Strategic Interconnectors | G4: Partial pass | K4: Scheme/Programme name | L4: Strategic Interconnectors
B5: Scheme/Programme overview | C5: 12 resilience transfer and interconnectivity mains to allow greater flexibility in transferring water between zones during periods of localised water shortages. | G5: Fail | K5: Scheme/Programme overview | L5: 12 resilience transfer and interconnectivity mains to allow greater flexibility in transferring water between zones during periods of localised water shortages.
B6: PR24 table line allocation | C6: Water resilience and security - Resilience | G6: Pass | K6: PR24 table line allocation | L6: Water resilience and security - Resilience
B7: Total requested in business plan (totex, £m) | C7: 128.778 | G7: Minor concerns | K7: Total requested in business plan (totex, £m) | L7: 128.777
B8: Scheme/Programme value assessed in deep dive (totex, £m) | C8: 41.177 | G8: Some concerns | K8: Scheme/Programme value assessed in deep dive (totex, £m) | L8: 41.172
B9: Overall adjustment | C9: =E13+E14+E15 -> 0.4190721399 | K9: Overall adjustment | L9: 0.8
B10: Totex allowance from deep dive (£m) | C10: =C8*(1-C9) -> 23.9208665 | K10: Totex allowance from deep dive (£m) | L10: 8.2344
B12: Enhancement assessment criteria grouping | C12: Assessment comments | D12: Criteria decision | E12: % adjustment | F12: Reference (e.g. document and page number) | K12: Enhancement assessment criteria grouping | L12: Assessment comments | M12: Criteria decision | N12: % adjustment | O12: Reference (e.g. document and page number)
